Workbook

Sheet Overblik
A1: =A906 -> Retten i Holstebro | B1: =B906 -> 102.5444604 | C1: 103.5572491 | D1: 104.7558316 | E1: 103.5300145 | F1: 105.9156364 | G1: 106.9435187 | H1: 0.2323087287 | I1: 0.2155162205 | J1: 92 | K1: 86 | L1: 550.6423358 | M1: 475.9032258 | N1: 33.75932 | O1: 32.54022491 | P1: 68.42105263 | Q1: 72.72727273 | R1: - | S1: 100 | T1: 8.955644828 | U1: 5 | V1: 20.3 | W1: 16.2 | X1: 43.06072 | Y1: 38.40156 | Z1: 10.21529 | AA1: 9.67165 | AB1: 21.61701 | AC1: 20.53304 | AD1: 20.61569091 | AE1: 19.40336905 | AF1: Retten i Holstebro | AG1: Retten i Holstebro | AH1: 95.42831396
A2: =A1 -> Retten i Holstebro | B2: =AF1 -> Retten i Holstebro
B3: ÅRSNØGLETAL 2013
I4: Evt. sammenligning
B5: =A1 -> Retten i Holstebro | I5: =B34 -> Retten i Herning | L5: Datatabeller
D6: 2012 | E6: 2013 | F6: Gnst. BR 2013 | G6: 5. bedste 2013 | I6: 2012 | J6: 2013 | L6: KLIK PÅ PILENE FOR AT HOPPE TIL DATA:
B7: Samlet produktivitet, retten (indeks) | D7: =B1 -> 102.5444604 | E7: =C1 -> 103.5572491 | F7: 99.35432144 | G7: 103.0055282 | I7: =IF($B$5=$I$5,"",C34) -> 98.43564203 | J7: =IF($B$5=$I$5,"",D34) -> 92.5848018 | M7: Produktivitet, samlet for retten
B8: Samlet produktivitet, jurister (indeks) | D8: =D1 -> 104.7558316 | E8: =E1 -> 103.5300145 | F8: 95.86614282 | G8: 101.2406033 | I8: =IF($B$5=$I$5,"",E34) -> 91.78927512 | J8: =IF($B$5=$I$5,"",F34) -> 82.04356593 | M8: Produktivitet, jurister
B9: Samlet produktivitet, kontorfunktionærer (indeks) | D9: =F1 -> 105.9156364 | E9: =G1 -> 106.9435187 | F9: 102.9817489 | G9: 110.7851418 | I9: =IF($B$5=$I$5,"",G34) -> 109.6591234 | J9: =IF($B$5=$I$5,"",H34) -> 104.7436876 | M9: Produktivitet, kontor
B10: Årsværksandel til generel ledelse og administration (procent) | D10: =H1*100 -> 23.23087287 | E10: =I1*100 -> 21.55162205 | F10: 16.47248254 | I10: =IF($B$5=$I$5,"",I34*100) -> 22.12270095 | J10: =IF($B$5=$I$5,"",J34*100) -> 19.55231872 | M10: Årsværk, ledelse og administration
B11: Gnst. sagsbehandlingstid, domsmandssager (dage) | D11: =J1 -> 92 | E11: =K1 -> 86 | F11: 115.1223558 | G11: 94 | I11: =IF($B$5=$I$5,"",K34) -> 96 | J11: =IF($B$5=$I$5,"",L34) -> 94 | M11: Aktivitet ved retten
B12: Gnst. sagsbehandlingstid, hovedforhandlet alm. civil sag (mdr.) | D12: =L1/30 -> 18.35474453 | E12: =M1/30 -> 15.86344086 | F12: =530.168926683521/30 -> 17.67229756 | G12: =433.970873786408/30 -> 14.46569579 | I12: =IF($B$5=$I$5,"",M34/30) -> 17.06146789 | J12: =IF($B$5=$I$5,"",N34/30) -> 14.46569579 | M12: Målopfyldelse, straffesager
B13: Gnst. sagsbehandlingstid, almindelig fogedsag (dage) | D13: =N1 -> 33.75932 | E13: =O1 -> 32.54022491 | F13: 57.09138611 | G13: 46.31372549 | I13: =IF($B$5=$I$5,"",O34) -> 46.06627 | J13: =IF($B$5=$I$5,"",P34) -> 46.84155791 | M13: Målopfyldelse, civile sager
B14: Målopfyldelse, voldssager 37-dages frist (procent) | D14: =P1 -> 68.42105263 | E14: =Q1 -> 72.72727273 | F14: 52.70034843 | G14: 70 | I14: =IF($B$5=$I$5,"",Q34) -> 56.09756098 | J14: =IF($B$5=$I$5,"",R34) -> 52.63157895 | M14: Målopfyldelse, fogedsager
B15: Målopfyldelse, voldtægtssager 37-dages frist (procent) | D15: =IF(R1=999," -",R1) -> - | E15: =IF(S1=999," -",S1) -> 100 | F15: 42.1875 | G15: 100 | I15: =IF($B$5=$I$5,"",S34) -> 60 | J15: =IF($B$5=$I$5,"",T34) -> 16.66666667 | M15: Gnst. Sagsbehandlingstid, straffesager
... 4 more rows

Sheet Produkt.SAML.
B2: PRODUKTIVITETSINDEKS SAMLET FOR RETTEN
B4: EID | C4: Ret | D4: Samlet | F4: Retssager | H4: Straffesager | J4: Civile sager | L4: Fogedsager | N4: Skiftesager
D5: 2012 | E5: 2013 | F5: 2012 | G5: 2013 | H5: 2012 | I5: 2013 | J5: 2012 | K5: 2013 | L5: 2012 | M5: 2013 | N5: 2012 | O5: 2013
C6: 5. BEDSTE RET | D6: 103.6514836 | E6: 103.0055282 | F6: 106.3381538 | G6: 105.5733156 | H6: 117.0804719 | I6: 111.841034 | J6: 95.55459294 | K6: 103.1915557 | L6: 109.441224 | M6: 103.4987961 | N6: 126.2310292 | O6: 123.7888678
C7: SAMLET BYRETTERNE | D7: 100.7870778 | E7: 99.35432144 | F7: 102.0411329 | G7: 98.87226611 | H7: 109.1610946 | I7: 103.1886995 | J7: 90.18168122 | K7: 90.37791065 | L7: 95.31051875 | M7: 97.18633676 | N7: 109.9393546 | O7: 109.2690559
B9: 901 | C9: Retten i Hjørring | D9: 101.608501 | E9: 102.9146793 | F9: 95.8557647 | G9: 97.34553856 | H9: 110.2918384 | I9: 101.0928685 | J9: 81.85564171 | K9: 97.15523489 | L9: 93.44166619 | M9: 99.14454017 | N9: 128.2751379 | O9: 121.3378409
B10: 902 | C10: Retten i Aalborg | D10: 103.397762 | E10: 98.62855147 | F10: 101.3353871 | G10: 95.64862287 | H10: 115.2954289 | I10: 100.3988988 | J10: 91.12817031 | K10: 89.88729507 | L10: 97.60209775 | M10: 97.63884246 | N10: 117.5203582 | O10: 107.8737686
B11: 903 | C11: Retten i Randers | D11: 96.15675216 | E11: 97.0241151 | F11: 88.90229259 | G11: 84.38016637 | H11: 96.90609275 | I11: 89.39826434 | J11: 82.68102064 | K11: 84.20106013 | L11: 109.441224 | M11: 111.4236828 | N11: 103.1077407 | O11: 117.9114881
B12: 904 | C12: Retten i Århus | D12: 100.3477046 | E12: 98.14882931 | F12: 98.26800176 | G12: 96.36066514 | H12: 99.17492452 | I12: 96.15103821 | J12: 95.55459294 | K12: 95.41272763 | L12: 115.6868244 | M12: 106.0219088 | N12: 99.61287669 | O12: 99.45600272
B13: 905 | C13: Retten i Viborg | D13: 100.8562344 | E13: 97.24417792 | F13: 102.5210499 | G13: 92.41311508 | H13: 117.0804719 | I13: 109.5983433 | J13: 90.25645846 | K13: 82.89567703 | L13: 90.49390621 | M13: 84.90600574 | N13: 105.5464192 | O13: 130.0478337
B14: 906 | C14: Retten i Holstebro | D14: 102.5444604 | E14: 103.5572491 | F14: 102.0902851 | G14: 105.5733156 | H14: 108.5077436 | I14: 100.9653435 | J14: 88.68090551 | K14: 105.7792332 | L14: 118.8635828 | M14: 108.1829313 | N14: 97.72204394 | O14: 95.62978021
B15: 907 | C15: Retten i Herning | D15: 98.43564203 | E15: 92.5848018 | F15: 100.0983257 | G15: 90.26853627 | H15: 99.08097617 | I15: 91.99815536 | J15: 94.17987366 | K15: 83.84373422 | L15: 103.8540579 | M15: 118.5203841 | N15: 95.52682856 | O15: 82.23558382
B16: 908 | C16: Retten i Horsens | D16: 100.5766153 | E16: 96.30874721 | F16: 98.54011364 | G16: 100.3241124 | H16: 123.428883 | I16: 125.0637744 | J16: 81.39480709 | K16: 81.41903257 | L16: 100.6227717 | M16: 82.80287349 | N16: 112.0075634 | O16: 102.2032248
B17: 909 | C17: Retten i Kolding | D17: 110.0190829 | E17: 103.4065127 | F17: 100.7452011 | G17: 95.23439086 | H17: 108.3429675 | I17: 100.2141628 | J17: 94.59084916 | K17: 90.90269104 | L17: 141.664106 | M17: 121.1235906 | N17: 126.2310292 | O17: 121.8128929
B18: 910 | C18: Retten i Esbjerg | D18: 103.6514836 | E18: 99.69839621 | F18: 99.76911147 | G18: 92.16363136 | H18: 108.819207 | I18: 95.92939814 | J18: 82.13257683 | K18: 79.70891987 | L18: 103.4987961 | M18: 105.6815046 | N18: 133.6952209 | O18: 139.3972893
B19: 911 | C19: Retten i Sønderborg | D19: 107.0772868 | E19: 103.0055282 | F19: 107.0748871 | G19: 97.87365808 | H19: 117.8893615 | I19: 113.9379462 | J19: 86.49028111 | K19: 81.07142231 | L19: 107.7322098 | M19: 113.0969807 | N19: 119.4441551 | O19: 123.7888678
B20: 912 | C20: Retten i Odense | D20: 105.27082 | E20: 108.3800934 | F20: 108.6789154 | G20: 111.9957731 | H20: 114.5539818 | I20: 111.6177625 | J20: 91.82913824 | K20: 104.1306576 | L20: 92.98873139 | M20: 96.81566201 | N20: 119.3588815 | O20: 115.2795668
B21: 913 | C21: Retten i Svendborg | D21: 103.6473742 | E21: 98.99112703 | F21: 97.69819038 | G21: 91.935225 | H21: 89.46305829 | I21: 86.04984074 | J21: 105.8646751 | K21: 96.91637811 | L21: 95.97690454 | M21: 110.4677182 | N21: 126.7395188 | O21: 101.9028085
B22: 914 | C22: Retten i Nykøbing F. | D22: 92.45252938 | E22: 101.1958707 | F22: 94.34931392 | G22: 115.9765599 | H22: 98.58745993 | I22: 114.6608505 | J22: 85.03947664 | K22: 111.9390897 | L22: 81.478391 | M22: 72.13039357 | N22: 101.29173 | O22: 106.1266208
B23: 915 | C23: Retten i Næstved | D23: 97.9656872 | E23: 106.4522251 | F23: 101.2315358 | G23: 105.720313 | H23: 93.15898156 | I23: 105.1218769 | J23: 108.0024258 | K23: 101.66591 | L23: 89.07159845 | M23: 103.3191154 | N23: 103.0664845 | O23: 115.1829883
B24: 916 | C24: Retten i Holbæk | D24: 98.1335432 | E24: 97.5198651 | F24: 104.1655952 | G24: 99.23413069 | H24: 101.8718253 | I24: 84.69462629 | J24: 104.6224372 | K24: 120.3366686 | L24: 85.32962956 | M24: 92.99672115 | N24: 97.26388694 | O24: 93.72785867
B25: 917 | C25: Retten i Roskilde | D25: 102.9507689 | E25: 101.069153 | F25: 106.3381538 | G25: 101.0970664 | H25: 108.3545447 | I25: 96.28236864 | J25: 97.17684438 | K25: 103.1915557 | L25: 91.62436876 | M25: 97.30841572 | N25: 110.0649291 | O25: 107.2447766
B26: 918 | C26: Retten i Hillerød | D26: 104.5136836 | E26: 98.37624366 | F26: 99.70263095 | G26: 99.19036887 | H26: 102.3708812 | I26: 105.886877 | J26: 94.73284501 | K26: 86.07197912 | L26: 111.5646458 | M26: 95.41434054 | N26: 124.7976982 | O26: 105.8037821
B27: 919 | C27: Retten i Helsingør | D27: 94.61025543 | E27: 96.60724523 | F27: 93.95633866 | G27: 87.48135186 | H27: 106.6365925 | I27: 93.44075906 | J27: 83.82856092 | K27: 84.39274075 | L27: 77.66233969 | M27: 93.15228191 | N27: 122.3378647 | O27: 132.034356
B28: 920 | C28: Retten i Lyngby | D28: 97.5738025 | E28: 96.82753324 | F28: 92.83694338 | G28: 85.28460944 | H28: 132.6403043 | I28: 103.5920404 | J28: 82.48022517 | K28: 84.22889595 | L28: 103.4587015 | M28: 129.0263281 | N28: 100.1156173 | O28: 108.0782491
B29: 921 | C29: Retten i Glostrup | D29: 99.60205684 | E29: 98.98202225 | F29: 98.24991382 | G29: 94.39118364 | H29: 103.8790801 | I29: 96.28799028 | J29: 88.29483059 | K29: 88.84616484 | L29: 97.92615255 | M29: 110.4753364 | N29: 137.6717932 | O29: 128.9663481
B30: 922 | C30: Retten på Frederiksberg | D30: 102.4240415 | E30: 101.2561076 | F30: 108.8940798 | G30: 103.900921 | H30: 132.2542804 | I30: 111.841034 | J30: 79.46936086 | K30: 85.90666073 | L30: 96.67597864 | M30: 102.2853565 | N30: 96.6815282 | O30: 99.75321623
B31: 923 | C31: Københavns Byret | D31: 100.7150795 | E31: 96.14494276 | F31: 113.8661254 | G31: 108.8602796 | H31: 115.2179819 | I31: 112.5274778 | J31: 95.501341 | K31: 84.90709872 | L31: 78.01583272 | M31: 73.59587917 | N31: 91.67660432 | O31: 89.07655984
B32: 924 | C32: Retten på Bornholm | D32: 61.45274762 | E32: 63.43657445 | F32: 64.18022476 | G32: 60.77119555 | H32: 59.9795023 | I32: 62.68898894 | J32: 64.45321722 | K32: 54.71247107 | L32: 47.25506685 | M32: 46.65430526 | N32: 67.26410238 | O32: 83.69420724
B35: 1) Indeks 100 svarer til gennemsnittet ved byretterne i 2011.
B36: 2) "Retssager" svarer til den samlede produktivitet for "straffesager" og "civile sager".
B37: 3) Ved beregningen af den samlede produktivitet, samlet for retten, anvendes rettens samlede vægtede årsværksforbrug - dvs. også årsværksforbruget til generel ledelse og administration mv. Ved beregning af produktiviteten på de enkelte sagsområder er årsværkforbruget til generel ledelse og administration mv. nøgletalsfordelt, således at forskelle i andele i årsværksforbrug til generel ledelse og administration mv. ikke vanskeliggør en sammenligning af de enkelte retter.

Sheet Produkt.JUR
B2: PRODUKTIVITETSINDEKS JURISTER
B4: EID | C4: Ret | D4: Samlet | F4: Retssager | H4: Straffesager | J4: Civile sager | L4: Fogedsager | N4: Skiftesager
D5: 2012 | E5: 2013 | F5: 2012 | G5: 2013 | H5: 2012 | I5: 2013 | J5: 2012 | K5: 2013 | L5: 2012 | M5: 2013 | N5: 2012 | O5: 2013
C6: 5. BEDSTE RET | D6: 103.8910409 | E6: 101.2406033 | F6: 104.1984153 | G6: 102.4311896 | H6: 117.225733 | I6: 110.8898962 | J6: 99.81912859 | K6: 102.4236774 | L6: 116.6375598 | M6: 114.8603385 | N6: 141.8397434 | O6: 138.0178889
C7: SAMLET BYRETTERNE | D7: 98.43008709 | E7: 95.86614282 | F7: 98.58207058 | G7: 95.86703098 | H7: 105.6435265 | I7: 100.9367507 | J7: 87.41886297 | K7: 87.29937223 | L7: 92.76896506 | M7: 92.96036256 | N7: 110.108086 | O7: 104.7245123
B9: 901 | C9: Retten i Hjørring | D9: 97.53770583 | E9: 101.4346809 | F9: 92.20595101 | G9: 94.70553699 | H9: 109.614046 | I9: 97.65717272 | J9: 77.76741113 | K9: 96.56868309 | L9: 116.6375598 | M9: 140.7032888 | N9: 118.2595339 | O9: 136.9910967
B10: 902 | C10: Retten i Aalborg | D10: 105.2750334 | E10: 98.45801217 | F10: 96.99017157 | G10: 91.80703615 | H10: 117.225733 | I10: 99.39419117 | J10: 85.05104729 | K10: 84.98693721 | L10: 110.4968224 | M10: 106.5051973 | N10: 106.2127259 | O10: 91.66972583
B11: 903 | C11: Retten i Randers | D11: 89.34304966 | E11: 91.55018696 | F11: 83.69098976 | G11: 85.80870447 | H11: 85.87147675 | I11: 88.31470233 | J11: 82.285865 | K11: 88.21367698 | L11: 114.7206489 | M11: 109.5664064 | N11: 105.5719786 | O11: 121.2515921
B12: 904 | C12: Retten i Århus | D12: 99.09221998 | E12: 94.28098483 | F12: 99.78381677 | G12: 99.33233932 | H12: 93.49080651 | I12: 101.0303541 | J12: 105.8348236 | K12: 97.70913544 | L12: 106.1757964 | M12: 80.72633648 | N12: 76.63203587 | O12: 70.73466852
B13: 905 | C13: Retten i Viborg | D13: 96.11459489 | E13: 92.31263346 | F13: 94.57579489 | G13: 87.41418359 | H13: 105.4870328 | I13: 102.1052079 | J13: 85.83260698 | K13: 80.66347128 | L13: 101.0124006 | M13: 90.55756529 | N13: 94.71511172 | O13: 121.4100533
B14: 906 | C14: Retten i Holstebro | D14: 104.7558316 | E14: 103.5300145 | F14: 117.2688915 | G14: 114.0495828 | H14: 128.1956949 | I14: 107.0694549 | J14: 99.81912859 | K14: 116.6872493 | L14: 193.1369362 | M14: 101.8277626 | N14: 113.1839687 | O14: 89.08285539
B15: 907 | C15: Retten i Herning | D15: 91.78927512 | E15: 82.04356593 | F15: 90.8917863 | G15: 79.55314341 | H15: 86.61261654 | I15: 79.09199955 | J15: 89.33504139 | K15: 75.76046776 | L15: 110.0068852 | M15: 102.2219726 | N15: 85.02978802 | O15: 72.34614166
B16: 908 | C16: Retten i Horsens | D16: 92.51026242 | E16: 90.97352822 | F16: 89.55443475 | G16: 95.60986248 | H16: 102.9382408 | I16: 110.8898962 | J16: 79.59270524 | K16: 82.38905396 | L16: 108.556051 | M16: 79.14791402 | N16: 87.903363 | O16: 78.9106164
B17: 909 | C17: Retten i Kolding | D17: 101.5939537 | E17: 93.44213967 | F17: 93.75653254 | G17: 87.01526096 | H17: 99.54453604 | I17: 92.64790694 | J17: 90.43689002 | K17: 83.02262848 | L17: 121.3326226 | M17: 99.58033543 | N17: 144.1121532 | O17: 132.4347904
B18: 910 | C18: Retten i Esbjerg | D18: 99.13883723 | E18: 95.03327915 | F18: 93.35012275 | G18: 86.11792152 | H18: 96.621572 | I18: 83.9589805 | J18: 81.67629737 | K18: 80.83056656 | L18: 119.6252709 | M18: 114.8603385 | N18: 168.5677561 | O18: 164.843277
B19: 911 | C19: Retten i Sønderborg | D19: 107.6559285 | E19: 98.84884045 | F19: 106.5233558 | G19: 94.62244295 | H19: 114.3570654 | I19: 114.3271819 | J19: 88.02896831 | K19: 76.90629332 | L19: 96.12332471 | M19: 118.4540005 | N19: 151.8254488 | O19: 158.0723857
B20: 912 | C20: Retten i Odense | D20: 103.8910409 | E20: 106.2807687 | F20: 104.1984153 | G20: 105.541642 | H20: 108.9560801 | I20: 102.2062278 | J20: 88.62273641 | K20: 101.3796686 | L20: 81.73023829 | M20: 90.5741306 | N20: 123.1177965 | O20: 104.5586352
B21: 913 | C21: Retten i Svendborg | D21: 104.7766743 | E21: 96.48288534 | F21: 103.1355613 | G21: 94.52016411 | H21: 91.97578835 | I21: 85.89795093 | J21: 114.6901595 | K21: 102.4236774 | L21: 92.09211169 | M21: 125.1256199 | N21: 140.8877726 | O21: 77.50993073
B22: 914 | C22: Retten i Nykøbing F. | D22: 95.38638008 | E22: 103.2506045 | F22: 92.42210928 | G22: 119.6116076 | H22: 97.75068492 | I22: 121.3020988 | J22: 82.13113131 | K22: 112.0357728 | L22: 81.99255768 | M22: 55.89570361 | N22: 113.744089 | O22: 108.9022397
B23: 915 | C23: Retten i Næstved | D23: 91.72064455 | E23: 101.2406033 | F23: 91.69212765 | G23: 100.9465858 | H23: 79.88512197 | I23: 93.57486355 | J23: 104.2931221 | K23: 105.0968868 | L23: 77.40992602 | M23: 99.19665893 | N23: 103.8110138 | O23: 101.2821857
B24: 916 | C24: Retten i Holbæk | D24: 100.1226093 | E24: 98.0654575 | F24: 109.1312836 | G24: 98.5069603 | H24: 105.1063918 | I24: 81.47628522 | J24: 111.2012568 | K24: 123.2959753 | L24: 79.1905012 | M24: 83.33719253 | N24: 107.3432856 | O24: 85.87958187
B25: 917 | C25: Retten i Roskilde | D25: 101.0655399 | E25: 93.84592474 | F25: 101.5146769 | G25: 96.64653572 | H25: 102.3350531 | I25: 91.87534345 | J25: 93.43168141 | K25: 98.07254386 | L25: 109.397107 | M25: 93.03543283 | N25: 104.7029891 | O25: 100.3838396
B26: 918 | C26: Retten i Hillerød | D26: 102.2756418 | E26: 93.0362009 | F26: 98.76176035 | G26: 102.4311896 | H26: 113.7854892 | I26: 117.1815867 | J26: 85.94595762 | K26: 83.47056883 | L26: 117.294931 | M26: 86.00150967 | N26: 131.8699536 | O26: 93.14053821
B27: 919 | C27: Retten i Helsingør | D27: 88.30871725 | E27: 85.9110245 | F27: 85.49296586 | G27: 76.75387132 | H27: 105.4207854 | I27: 85.96008109 | J27: 72.41147864 | K27: 71.69501606 | L27: 69.4449671 | M27: 88.2778014 | N27: 141.8397434 | O27: 161.8985681
B28: 920 | C28: Retten i Lyngby | D28: 91.4498475 | E28: 86.51477605 | F28: 87.37912603 | G28: 76.1341765 | H28: 128.4255177 | I28: 92.19615994 | J28: 78.5004904 | K28: 76.94878409 | L28: 93.66097112 | M28: 119.396587 | N28: 86.81849766 | O28: 105.8626735
B29: 921 | C29: Retten i Glostrup | D29: 99.33818845 | E29: 100.008897 | F29: 96.68511023 | G29: 96.00344694 | H29: 99.090089 | I29: 98.86169244 | J29: 89.84497405 | K29: 89.39409957 | L29: 96.73228887 | M29: 114.2414001 | N29: 171.9992214 | O29: 155.5630186
B30: 922 | C30: Retten på Frederiksberg | D30: 97.73990342 | E30: 97.63529013 | F30: 98.85767919 | G30: 97.65826341 | H30: 119.7920993 | I30: 103.3441781 | J30: 72.13840686 | K30: 81.64626468 | L30: 85.08209106 | M30: 102.5200665 | N30: 84.95703991 | O30: 103.6524997
B31: 923 | C31: Københavns Byret | D31: 101.5332574 | E31: 97.09472333 | F31: 112.6932364 | G31: 107.2273786 | H31: 121.103128 | I31: 118.0070645 | J31: 87.2777223 | K31: 77.15540499 | L31: 67.50176113 | M31: 69.70002185 | N31: 96.59360045 | O31: 94.10917584
B32: 924 | C32: Retten på Bornholm | D32: 61.85688567 | E32: 64.7059556 | F32: 74.05520017 | G32: 69.45422226 | H32: 68.29066385 | I32: 74.65780644 | J32: 74.19285653 | K32: 59.23489453 | L32: 52.19451371 | M32: 45.80167769 | N32: 93.80010675 | O32: 138.0178889
B35: 1) Indeks 100 svarer til gennemsnittet ved byretterne i 2011.
B36: 2) "Retssager" svarer til den samlede produktivitet for "straffesager" og "civile sager".
B37: 3) Ved beregningen af den samlede produktivitet for juristerne anvendes det samlede årsværksforbrug for gruppen - dvs. også årsværksforbruget til generel ledelse og administration mv. Ved beregning af produktiviteten på de enkelte sagsområder er kun medtaget det direkte årsværksforbrug - dvs. der er ikke foretaget en nøgletalsfordeling af årsværkforbruget til generel ledelse og administration mv.

Sheet Produkt.KON
B2: PRODUKTIVITETSINDEKS KONTORPERSONALE
B4: EID | C4: Ret | D4: Samlet | F4: Retssager | H4: Straffesager | J4: Civile sager | L4: Fogedsager | N4: Skiftesager
D5: 2012 | E5: 2013 | F5: 2012 | G5: 2013 | H5: 2012 | I5: 2013 | J5: 2012 | K5: 2013 | L5: 2012 | M5: 2013 | N5: 2012 | O5: 2013
C6: 5. BEDSTE RET | D6: 106.9287878 | E6: 110.7851418 | F6: 115.7200126 | G6: 111.8996516 | H6: 133.3143226 | I6: 121.968961 | J6: 107.7657468 | K6: 108.6744866 | L6: 108.2578856 | M6: 114.0635112 | N6: 119.9795282 | O6: 120.3088007
C7: SAMLET BYRETTERNE | D7: 103.014514 | E7: 102.9817489 | F7: 106.2405572 | G7: 102.6977458 | H7: 113.2810853 | I7: 104.6885856 | J7: 93.52331501 | K7: 95.89617608 | L7: 94.95390715 | M7: 98.09054954 | N7: 108.3585943 | O7: 110.8421744
B9: 901 | C9: Retten i Hjørring | D9: 106.2985107 | E9: 103.2149744 | F9: 98.45974444 | G9: 101.9554047 | H9: 107.1683669 | I9: 106.5474209 | J9: 86.98859319 | K9: 98.27011693 | L9: 83.02592089 | M9: 85.63636971 | N9: 132.4579741 | O9: 113.0929821
B10: 902 | C10: Retten i Aalborg | D10: 99.54491084 | E10: 98.27397591 | F10: 98.62337033 | G10: 90.12587663 | H10: 112.7540703 | I10: 98.038437 | J10: 85.85856551 | K10: 80.07861533 | L10: 95.57611946 | M10: 97.60211383 | N10: 112.756547 | O10: 109.093334
B11: 903 | C11: Retten i Randers | D11: 106.4168365 | E11: 105.3368061 | F11: 97.94106502 | G11: 83.3375759 | H11: 118.4550926 | I11: 92.43020041 | J11: 82.81951501 | K11: 78.93499807 | L11: 107.4343466 | M11: 117.9981637 | N11: 103.9456229 | O11: 118.2758116
B12: 904 | C12: Retten i Århus | D12: 101.7033542 | E12: 104.1593869 | F12: 88.68117112 | G12: 89.22347862 | H12: 103.5780148 | I12: 84.77599318 | J12: 72.64857261 | K12: 92.52202632 | L12: 112.2353658 | M12: 114.0635112 | N12: 112.9973763 | O12: 120.3088007
B13: 905 | C13: Retten i Viborg | D13: 105.4691255 | E13: 105.8387295 | F13: 115.7200126 | G13: 101.5646732 | H13: 139.0144827 | I13: 121.968961 | J13: 95.57346892 | K13: 87.26496784 | L13: 85.1369121 | M13: 88.35177048 | N13: 110.7961317 | O13: 133.6908927
B14: 906 | C14: Retten i Holstebro | D14: 105.9156364 | E14: 106.9435187 | F14: 97.4658162 | G14: 99.60880299 | H14: 99.65880718 | I14: 98.8366814 | J14: 87.99161013 | K14: 95.33617944 | L14: 108.056461 | M14: 113.7947303 | N14: 101.485954 | O14: 105.0226649
B15: 907 | C15: Retten i Herning | D15: 109.6591234 | E15: 104.7436876 | F15: 125.4358065 | G15: 110.27365 | H15: 133.3143226 | I15: 116.8284568 | J15: 108.4575671 | K15: 98.31294227 | L15: 100.3561792 | M15: 122.3281429 | N15: 105.2372542 | O15: 87.25656106
B16: 908 | C16: Retten i Horsens | D16: 111.0834389 | E16: 103.1020684 | F16: 119.2940094 | G16: 107.8150117 | H16: 181.7015249 | I16: 156.1222169 | J16: 84.66114838 | K16: 77.65042643 | L16: 95.42468303 | M16: 83.64103139 | N16: 132.6760661 | O16: 121.760398
B17: 909 | C17: Retten i Kolding | D17: 116.958728 | E17: 112.1976912 | F17: 103.7867448 | G17: 104.6812508 | H17: 112.9704917 | I17: 106.077702 | J17: 93.50441784 | K17: 102.3877248 | L17: 142.9060255 | M17: 126.9207609 | N17: 112.3877535 | O17: 112.4868872
B18: 910 | C18: Retten i Esbjerg | D18: 104.9467279 | E18: 101.4630039 | F18: 99.55334692 | G18: 89.67846135 | H18: 119.3388321 | I18: 105.1073785 | J18: 73.42912922 | K18: 67.18891987 | L18: 89.83070417 | M18: 92.68876215 | N18: 113.1126365 | O18: 118.9665996
B19: 911 | C19: Retten i Sønderborg | D19: 106.6503244 | E19: 105.9415153 | F19: 103.7582853 | G19: 102.9853018 | H19: 119.1640846 | I19: 111.5192017 | J19: 80.5293832 | K19: 90.16891052 | L19: 109.8494452 | M19: 108.3470427 | N19: 105.3119642 | O19: 109.9876848
B20: 912 | C20: Retten i Odense | D20: 106.4838156 | E20: 110.9626462 | F20: 102.6812447 | G20: 109.0460156 | H20: 109.637945 | I20: 114.2125212 | J20: 85.8305114 | K20: 95.52391719 | L20: 90.9854934 | M20: 91.69821723 | N20: 109.8044058 | O20: 114.052523
B21: 913 | C21: Retten i Svendborg | D21: 106.3248986 | E21: 103.5551398 | F21: 92.77457876 | G21: 80.19636344 | H21: 88.67758776 | I21: 78.73275573 | J21: 96.16598339 | K21: 80.67708223 | L21: 98.48169494 | M21: 98.18015542 | N21: 122.6486646 | O21: 118.0323154
B22: 914 | C22: Retten i Nykøbing F. | D22: 90.34853719 | E22: 99.98645671 | F22: 96.13941222 | G22: 113.2557282 | H22: 98.29272668 | I22: 107.7379962 | J22: 89.26927062 | K22: 116.0030381 | L22: 78.85221233 | M22: 84.12893974 | N22: 92.69356818 | O22: 105.3611776
B23: 915 | C23: Retten i Næstved | D23: 105.2696408 | E23: 111.6879755 | F23: 122.5070583 | G23: 118.1553227 | H23: 127.019925 | I23: 136.7377493 | J23: 114.2239497 | K23: 96.94862992 | L23: 93.77171298 | M23: 104.1143379 | N23: 101.7022713 | O23: 126.7906193
B24: 916 | C24: Retten i Holbæk | D24: 94.55354075 | E24: 95.65987869 | F24: 96.09285841 | G24: 94.37433146 | H24: 97.44849066 | I24: 85.69951064 | J24: 92.64852835 | K24: 106.4205946 | L24: 88.14710159 | M24: 92.92004767 | N24: 91.90670071 | O24: 95.10904832
B25: 917 | C25: Retten i Roskilde | D25: 103.2930941 | E25: 107.666467 | F25: 110.8083715 | G25: 106.1342888 | H25: 114.6652263 | I25: 100.8838763 | J25: 100.2992376 | K25: 110.1703853 | L25: 81.59909659 | M25: 98.41165841 | N25: 111.31702 | O25: 110.0891163
B26: 918 | C26: Retten i Hillerød | D26: 111.9204914 | E26: 111.8642549 | F26: 115.6612317 | G26: 111.9700817 | H26: 101.7465469 | I26: 108.6929381 | J26: 134.8782309 | K26: 109.8686852 | L26: 114.3598995 | M26: 111.1243112 | N26: 123.1670785 | O26: 141.8027705
B27: 919 | C27: Retten i Helsingør | D27: 100.9814948 | E27: 105.9668203 | F27: 104.2130454 | G27: 100.2274091 | H27: 101.0733068 | I27: 96.01410473 | J27: 107.7657468 | K27: 106.9241766 | L27: 77.88510949 | M27: 88.07097207 | N27: 108.2733078 | O27: 111.0976589
B28: 920 | C28: Retten i Lyngby | D28: 105.1754956 | E28: 110.7851418 | F28: 107.1772043 | G28: 111.8996516 | H28: 136.9573539 | I28: 129.856631 | J28: 96.59369004 | K28: 108.6744866 | L28: 108.2578856 | M28: 131.6576972 | N28: 115.5266984 | O28: 109.3423897
B29: 921 | C29: Retten i Glostrup | D29: 100.5687187 | E29: 99.29484206 | F29: 104.0564401 | G29: 96.06874769 | H29: 114.1484293 | I29: 91.89772236 | J29: 89.53429882 | K29: 98.4750463 | L29: 99.46131728 | M29: 110.7798604 | N29: 119.9795282 | O29: 117.9924203
B30: 922 | C30: Retten på Frederiksberg | D30: 106.9287878 | E30: 107.7453051 | F30: 114.115072 | G30: 116.478723 | H30: 136.7583363 | I30: 127.027009 | J30: 84.62600024 | K30: 96.05374743 | L30: 99.86001431 | M30: 104.9539552 | N30: 96.62000927 | O30: 99.68379299
B31: 923 | C31: Københavns Byret | D31: 96.38904872 | E31: 91.31934696 | F31: 118.4110828 | G31: 111.8909438 | H31: 107.2095984 | I31: 103.3923732 | J31: 124.9776841 | K31: 110.1113885 | L31: 85.54476305 | M31: 73.56721714 | N31: 89.60713849 | O31: 84.29012773
B32: 924 | C32: Retten på Bornholm | D32: 62.76058041 | E32: 66.6434586 | F32: 88.40121445 | G32: 79.69003294 | H32: 84.56032991 | I32: 76.10689236 | J32: 88.66835905 | K32: 80.97440061 | L32: 60.0287218 | M32: 61.80541166 | N32: 75.79259263 | O32: 83.96275563
B35: 1) Indeks 100 svarer til gennemsnittet ved byretterne i 2011.
B36: 2) "Retssager" svarer til den samlede produktivitet for "straffesager" og "civile sager".
B37: 3) Ved beregningen af den samlede produktivitet for juristerne anvendes det samlede årsværksforbrug for gruppen - dvs. også årsværksforbruget til generel ledelse og administration mv. Ved beregning af produktiviteten på de enkelte sagsområder er kun medtaget det direkte årsværksforbrug - dvs. der er ikke foretaget en nøgletalsfordeling af årsværkforbruget til generel ledelse og administration mv.

Sheet Generel ledelse_Adm.
B3: ÅRSVÆRKSFORBRUG ANVENDT TIL GENEREL LEDELSE OG ADMINISTRATION MV.
B5: EID | C5: Ret | E5: Årsværk til generel ledelse og administration | H5: %-del til generel ledelse og administration
E6: 2011 | F6: 2012 | G6: 2013 | H6: 2011 | I6: 2012 | J6: 2013
C8: SAMLET BYRETTERNE | D8: Jurister | E8: 40.26765613 | F8: 35.43838169 | G8: 36.35702278 | H8: 0.0879263445 | I8: 0.07710167841 | J8: 0.08133507374
D9: Kontor | E9: 174.4931743 | F9: 164.7444036 | G9: 155.2515591 | H9: 0.1798581356 | I9: 0.1815564871 | J9: 0.1810402546
D10: Elev | E10: 15.56682294 | F10: 13.21277838 | G10: 15.68827025 | H10: 0.1601928278 | I10: 0.1554048873 | J10: 0.1822297913
D11: Fleks | E11: 28.34235436 | F11: 23.84581215 | G11: 22.97564793 | H11: 0.4305938459 | I11: 0.4189774443 | J11: 0.4688870421
D12: Øvrige | E12: 85.18324984 | F12: 80.13301352 | G12: 74.78483108 | H12: 0.8479813065 | I12: 0.8412997832 | J12: 0.8134693366
C13: Samlet byretterne | D13: Samlet | E13: 343.8532575 | F13: 317.3743894 | G13: 305.0573311 | H13: 0.2032718961 | I13: 0.1978375616 | J13: 0.1991782049
D14: - ekskl. fleks og elever | E14: 299.9440802 | F14: 280.3157988 | G14: 230.0363902 | H14: 0.1962219925 | I14: 0.1916976147 | J14: 0.1647248254
B16: 901 | C16: Retten i Hjørring | D16: Jurister | E16: 1.059359706 | F16: 1.379726192 | G16: 1.711579293 | H16: 0.07936449842 | I16: 0.0978198292 | J16: 0.1179035896
B17: 901 | C17: Retten i Hjørring | D17: Kontor | E17: 4.709397216 | F17: 4.065890905 | G17: 4.464384705 | H17: 0.1424079647 | I17: 0.1423169337 | J17: 0.1522361061
B18: 901 | C18: Retten i Hjørring | D18: Elev | E18: 1.087924919 | F18: 0.03561366761 | G18: 1.04652633 | H18: 0.2555992356 | I18: 0.009505850157 | J18: 0.3331952606
B19: 901 | C19: Retten i Hjørring | D19: Fleks | E19: 0.3078901584 | F19: 0.2620350515 | G19: 0.4090567352 | H19: 0.05237518749 | I19: 0.05640026163 | J19: 0.1108960555
B20: 901 | C20: Retten i Hjørring | D20: Øvrige | E20: 2.894157176 | F20: 2.946596046 | G20: 2.538818452 | H20: 0.8925559131 | I20: 0.9677311022 | J20: 0.9053305467
B21: 901 | C21: Retten i Hjørring | D21: Samlet | E21: 10.05872917 | F21: 8.689861863 | G21: 10.17036552 | H21: 0.1682195073 | I21: 0.1605921317 | J21: 0.1901856069
D22: - ekskl. fleks og elever | E22: 8.662914098 | F22: 8.392213144 | G22: 8.71478245 | H22: 0.1744433103 | I22: 0.1835611745 | J22: 0.1868261939
B23: 902 | C23: Retten i Aalborg | D23: Jurister | E23: 1.269618719 | F23: 0.767146282 | G23: 0.8460539844 | H23: 0.05722297428 | I23: 0.03725685828 | J23: 0.04072313044
B24: 902 | C24: Retten i Aalborg | D24: Kontor | E24: 8.50462573 | F24: 8.513079363 | G24: 7.365112991 | H24: 0.1744824942 | I24: 0.1887216607 | J24: 0.1675004336
B25: 902 | C25: Retten i Aalborg | D25: Elev | E25: 0.1956404732 | F25: 0.288898093 | G25: 0.113336412 | H25: 0.05615623855 | I25: 0.07447977071 | J25: 0.02728939666
B26: 902 | C26: Retten i Aalborg | D26: Fleks | E26: 0.9444791846 | F26: 0.6209882878 | G26: 1.592083399 | H26: 0.3649991825 | I26: 0.3712068862 | J26: 0.6666373838
B27: 902 | C27: Retten i Aalborg | D27: Øvrige | E27: 1.257693838 | F27: 0.9726949087 | G27: 1.037785109 | H27: 0.3584930046 | I27: 0.2568001871 | J27: 0.2403537751
B28: 902 | C28: Retten i Aalborg | D28: Samlet | E28: 12.17205795 | F28: 11.16280693 | G28: 10.9543719 | H28: 0.1511888232 | I28: 0.1487591983 | J28: 0.1448884242
D29: - ekskl. fleks og elever | E29: 11.03193829 | F29: 10.25292055 | G29: 9.248952085 | H29: 0.1482040408 | I29: 0.1475502136 | J29: 0.1339181623
B30: 903 | C30: Retten i Randers | D30: Jurister | E30: 2.457701273 | F30: 1.707592867 | G30: 1.865190253 | H30: 0.1571335857 | I30: 0.1024216295 | J30: 0.128240422
B31: 903 | C31: Retten i Randers | D31: Kontor | E31: 4.634087678 | F31: 4.583380578 | G31: 4.021040646 | H31: 0.1466390633 | I31: 0.1467866412 | J31: 0.1431059858
B32: 903 | C32: Retten i Randers | D32: Elev | E32: 0.899566708 | F32: 0.83066264 | G32: 0.3271675159 | H32: 0.226128032 | I32: 0.2345967843 | J32: 0.1045534199
B33: 903 | C33: Retten i Randers | D33: Fleks | E33: 2.01327 | F33: 2.00006 | G33: 2.00006 | H33: 1 | I33: 1 | J33: 1
B34: 903 | C34: Retten i Randers | D34: Øvrige | E34: 4.602010227 | F34: 3.608870894 | G34: 3.268930812 | H34: 0.9325437653 | I34: 0.8799205371 | J34: 0.9121893321
B35: 903 | C35: Retten i Randers | D35: Samlet | E35: 14.60663589 | F35: 12.73056698 | G35: 11.48238923 | H35: 0.2511062719 | I35: 0.2212503298 | J35: 0.2235855747
D36: - ekskl. fleks og elever | E36: 11.69379918 | F36: 9.899844338 | G36: 9.155161711 | H36: 0.2241147121 | I36: 0.1903877363 | J36: 0.1980503732
B37: 904 | C37: Retten i Århus | D37: Jurister | E37: 2.283327639 | F37: 1.444334383 | G37: 1.727330528 | H37: 0.08594031634 | I37: 0.05550501844 | J37: 0.06847082134
B38: 904 | C38: Retten i Århus | D38: Kontor | E38: 8.016149736 | F38: 7.93474981 | G38: 7.090608628 | H38: 0.1583729486 | I38: 0.1580157182 | J38: 0.1563449
B39: 904 | C39: Retten i Århus | D39: Elev | E39: 0.7127019773 | F39: 0.6237708503 | G39: 0.04737915046 | H39: 0.169832474 | I39: 0.2079173792 | J39: 0.01705242887
B40: 904 | C40: Retten i Århus | D40: Fleks | E40: 0.831959407 | F40: 1.113773234 | G40: 2.45948994 | H40: 0.277311483 | I40: 0.3271473738 | J40: 0.5170710762
B41: 904 | C41: Retten i Århus | D41: Øvrige | E41: 4.132642606 | F41: 4.691729376 | G41: 3.846141491 | H41: 0.7352082984 | I41: 0.8381889957 | J41: 0.6545632221
B42: 904 | C42: Retten i Århus | D42: Samlet | E42: 15.97678136 | F42: 15.80835765 | G42: 15.17094974 | H42: 0.1775157495 | I42: 0.179154512 | J42: 0.180626951
D43: - ekskl. fleks og elever | E43: 14.43211998 | F43: 14.07081357 | G43: 12.66408065 | H43: 0.1742894729 | I43: 0.1719431788 | J43: 0.1656399121
B44: 905 | C44: Retten i Viborg | D44: Jurister | E44: 1.242217873 | F44: 1.290502498 | G44: 1.430296292 | H44: 0.08188593831 | I44: 0.08476201314 | J44: 0.09533598919
B45: 905 | C45: Retten i Viborg | D45: Kontor | E45: 5.279208039 | F45: 5.186196788 | G45: 4.578198862 | H45: 0.1749100317 | I45: 0.1718202545 | J45: 0.1632739121
B46: 905 | C46: Retten i Viborg | D46: Elev | E46: 0.5572972906 | F46: 0.3571489567 | G46: 0.6714420804 | H46: 0.1313534659 | I46: 0.08678395596 | J46: 0.161433839
B47: 905 | C47: Retten i Viborg | D47: Fleks | E47: 0.5884963509 | F47: 0.6658233457 | G47: 0.8174955916 | H47: 0.2344971334 | I47: 0.3329016858 | J47: 0.4087355337
B48: 905 | C48: Retten i Viborg | D48: Øvrige | E48: 2.769032704 | F48: 2.62721473 | G48: 2.588169923 | H48: 0.8956256544 | I48: 0.8707575105 | J48: 0.666597107
B49: 905 | C49: Retten i Viborg | D49: Samlet | E49: 10.43625226 | F49: 10.12688632 | G49: 10.08560275 | H49: 0.189074221 | I49: 0.18567318 | J49: 0.1899909795
D50: - ekskl. fleks og elever | E50: 9.290458616 | F50: 9.103914016 | G50: 8.596665077 | H50: 0.1917762916 | I50: 0.1879963296 | J50: 0.1831987808
B51: 906 | C51: Retten i Holstebro | D51: Jurister | E51: 1.895121643 | F51: 2.039425904 | G51: 1.221986447 | H51: 0.1681563126 | I51: 0.1996444452 | J51: 0.1263472569
B52: 906 | C52: Retten i Holstebro | D52: Kontor | E52: 3.361257142 | F52: 2.962390025 | G52: 3.381041056 | H52: 0.1457866561 | I52: 0.1370397675 | J52: 0.1646634427
B53: 906 | C53: Retten i Holstebro | D53: Elev | E53: 0.3681536819 | F53: 0.4406790173 | G53: 0.250976155 | H53: 0.1273531231 | I53: 0.2058180184 | J53: 0.1076494819
B54: 906 | C54: Retten i Holstebro | D54: Fleks | E54: 4.485837861 | F54: 4.14321595 | G54: 2.00005428 | H54: 0.8155846406 | I54: 0.7252703999 | J54: 0.6365058938
B55: 906 | C55: Retten i Holstebro | D55: Øvrige | E55: 3.20598204 | F55: 3.17706819 | G55: 2.493469055 | H55: 0.860881251 | I55: 0.9414483799 | J55: 0.9156359791
B56: 906 | C56: Retten i Holstebro | D56: Samlet | E56: 13.31635237 | F56: 12.76277909 | G56: 9.347526992 | H56: 0.2867368008 | I56: 0.2963902853 | J56: 0.2434152933
D57: - ekskl. fleks og elever | E57: 8.462360825 | F57: 8.178884119 | G57: 7.096496557 | H57: 0.2224006638 | I57: 0.2323087287 | J57: 0.2155162205
B58: 907 | C58: Retten i Herning | D58: Jurister | E58: 0.8945324398 | F58: 0.8472877229 | G58: 0.7810083426 | H58: 0.07549606074 | I58: 0.07176542478 | J58: 0.06595880723
B59: 907 | C59: Retten i Herning | D59: Kontor | E59: 4.600633586 | F59: 4.121811994 | G59: 3.895425067 | H59: 0.1951814465 | I59: 0.1922043182 | J59: 0.1876559948
B60: 907 | C60: Retten i Herning | D60: Elev | E60: 0.730855666 | F60: 0.05426524662 | G60: 1.342690553 | H60: 0.2077256417 | I60: 0.02087646782 | J60: 0.3306533207
B61: 907 | C61: Retten i Herning | D61: Fleks | E61: 0.1858774786 | F61: 0 | G61: 0 | H61: 0.2058603419 | I61: 0 | J61: 0
B62: 907 | C62: Retten i Herning | D62: Øvrige | E62: 2.68506 | F62: 3.06506 | G62: 2.11002 | H62: 1 | I62: 1 | J62: 1
B63: 907 | C63: Retten i Herning | D63: Samlet | E63: 9.09695917 | F63: 8.088424964 | G63: 8.129143962 | H63: 0.2139144778 | I63: 0.207844723 | J63: 0.2096765189
D64: - ekskl. fleks og elever | E64: 8.180226025 | F64: 8.034159717 | G64: 6.786453409 | H64: 0.2146767675 | I64: 0.2212270095 | J64: 0.1955231872
B65: 908 | C65: Retten i Horsens | D65: Jurister | E65: 1.133333287 | F65: 0.9644593654 | G65: 1.153397266 | H65: 0.07876370309 | I65: 0.066270791 | J65: 0.08200006014
B66: 908 | C66: Retten i Horsens | D66: Kontor | E66: 4.86193959 | F66: 5.013790169 | G66: 4.369533089 | H66: 0.184030329 | I66: 0.2018327604 | J66: 0.1725936644
B67: 908 | C67: Retten i Horsens | D67: Elev | E67: 0.5717603323 | F67: 0.6740886665 | G67: 0.8223624035 | H67: 0.1193143503 | I67: 0.1652048532 | J67: 0.2087807711
B68: 908 | C68: Retten i Horsens | D68: Fleks | E68: 2.025641718 | F68: 1.875121006 | G68: 1.002587431 | H68: 0.4293296563 | I68: 0.5179062487 | J68: 0.2809769105
B69: 908 | C69: Retten i Horsens | D69: Øvrige | E69: 3.068674806 | F69: 2.920600443 | G69: 2.866348658 | H69: 0.9924338084 | I69: 0.9760092913 | J69: 0.9554208901
B70: 908 | C70: Retten i Horsens | D70: Samlet | E70: 11.66134973 | F70: 11.44805965 | G70: 10.21422885 | H70: 0.2183342823 | I70: 0.22855934 | J70: 0.2047354864
D71: - ekskl. fleks og elever | E71: 9.063947682 | F71: 8.898849977 | G71: 8.389279013 | H71: 0.2064665045 | I71: 0.209942857 | J71: 0.1979407442
B72: 909 | C72: Retten i Kolding | D72: Jurister | E72: 1.384406124 | F72: 1.547235198 | G72: 1.657589582 | H72: 0.06736926821 | I72: 0.07415933725 | J72: 0.07769082001
B73: 909 | C73: Retten i Kolding | D73: Kontor | E73: 7.034552531 | F73: 5.817910645 | G73: 6.488451367 | H73: 0.1560960444 | I73: 0.1569628343 | J73: 0.1743452798
B74: 909 | C74: Retten i Kolding | D74: Elev | E74: 0.6075599823 | F74: 0.7633703691 | G74: 0.1620074364 | H74: 0.1280645471 | I74: 0.2504085187 | J74: 0.04746789073
B75: 909 | C75: Retten i Kolding | D75: Fleks | E75: 2.000111815 | F75: 0.9563020175 | G75: 0.8473533333 | H75: 0.6660467722 | I75: 0.3469589069 | J75: 0.3333333333
B76: 909 | C76: Retten i Kolding | D76: Øvrige | E76: 3.129367764 | F76: 3.13261 | G76: 3.02865 | H76: 0.9410754978 | I76: 1 | J76: 1
B77: 909 | C77: Retten i Kolding | D77: Samlet | E77: 14.15599822 | F77: 12.21742823 | G77: 12.18405172 | H77: 0.1845932938 | I77: 0.1827136297 | J77: 0.1804095344
D78: - ekskl. fleks og elever | E78: 11.54832642 | F78: 10.49775584 | G78: 11.17469095 | H78: 0.1675118138 | I78: 0.1719201832 | J78: 0.1814648532
B79: 910 | C79: Retten i Esbjerg | D79: Jurister | E79: 1.160367795 | F79: 1.26653252 | G79: 0.9842534688 | H79: 0.0766212672 | I79: 0.08302588779 | J79: 0.06593010989
B80: 910 | C80: Retten i Esbjerg | D80: Kontor | E80: 4.493902269 | F80: 4.137269329 | G80: 4.077491019 | H80: 0.1402960351 | I80: 0.1361406468 | J80: 0.1370703166
B81: 910 | C81: Retten i Esbjerg | D81: Elev | E81: 0.4456365248 | F81: 0.1889431023 | G81: 0.2077267303 | H81: 0.1190828287 | I81: 0.07678241774 | J81: 0.06231546415
B82: 910 | C82: Retten i Esbjerg | D82: Fleks | E82: 1.998862103 | F82: 2.058258981 | G82: 2.017117625 | H82: 0.710355452 | I82: 0.5547045535 | J82: 0.4962012499
B83: 910 | C83: Retten i Esbjerg | D83: Øvrige | E83: 2.494211423 | F83: 2.2123 | G83: 2.177761759 | H83: 0.9976606252 | I83: 1 | J83: 0.9900402148
B84: 910 | C84: Retten i Esbjerg | D84: Samlet | E84: 10.59298011 | F84: 9.863303932 | G84: 9.464350602 | H84: 0.1883800621 | I84: 0.1825592852 | J84: 0.1743795164
D85: - ekskl. fleks og elever | E85: 8.148481487 | F85: 7.616101849 | G85: 7.239506247 | H85: 0.1640331221 | I85: 0.1591440989 | J85: 0.1544399994
B86: 911 | C86: Retten i Sønderborg | D86: Jurister | E86: 1.169355292 | F86: 1.239427671 | G86: 1.731698581 | H86: 0.07587796324 | I86: 0.07264040703 | J86: 0.09974389129
B87: 911 | C87: Retten i Sønderborg | D87: Kontor | E87: 6.329214842 | F87: 6.034045871 | G87: 5.846119635 | H87: 0.1715001989 | I87: 0.166509675 | J87: 0.174480669
B88: 911 | C88: Retten i Sønderborg | D88: Elev | E88: 0.5262988888 | F88: 0.2027072263 | G88: 0.9449837657 | H88: 0.131064227 | I88: 0.05099450232 | J88: 0.2408418052
B89: 911 | C89: Retten i Sønderborg | D89: Fleks | E89: 1.00003 | F89: 0.99122 | G89: 0.5 | H89: 1 | I89: 1 | J89: 1
B90: 911 | C90: Retten i Sønderborg | D90: Øvrige | E90: 4.869035147 | F90: 3.770068393 | G90: 3.049404946 | H90: 0.9267221314 | I90: 0.992016228 | J90: 0.9752197698
B91: 911 | C91: Retten i Sønderborg | D91: Samlet | E91: 13.89393417 | F91: 12.23746916 | G91: 12.07220693 | H91: 0.2219987197 | I91: 0.1971634677 | J91: 0.2066527439
D92: - ekskl. fleks og elever | E92: 12.36760528 | F92: 11.04354194 | G92: 10.62722316 | H92: 0.2148271094 | I92: 0.1934025343 | J92: 0.1968216784
B93: 912 | C93: Retten i Odense | D93: Jurister | E93: 1.451886822 | F93: 1.288867731 | G93: 1.16149438 | H93: 0.05984334091 | I93: 0.05727949712 | J93: 0.05324363147
B94: 912 | C94: Retten i Odense | D94: Kontor | E94: 6.292629396 | F94: 5.975918294 | G94: 5.717530347 | H94: 0.1203743051 | I94: 0.1265562072 | J94: 0.1264111119
B95: 912 | C95: Retten i Odense | D95: Elev | E95: 0.06539374453 | F95: 0.1306439309 | G95: 0.43227057 | H95: 0.01677468077 | I95: 0.04972876517 | J95: 0.1083251856
B96: 912 | C96: Retten i Odense | D96: Fleks | E96: 2.676975449 | F96: 2.115961291 | G96: 2.00006 | H96: 0.6646973325 | I96: 0.7990066198 | J96: 1
B97: 912 | C97: Retten i Odense | D97: Øvrige | E97: 4.65475046 | F97: 4.76643333 | G97: 4.694404146 | H97: 0.9851594774 | I97: 0.9989527939 | J97: 0.9723188754
B98: 912 | C98: Retten i Odense | D98: Samlet | E98: 15.14163587 | F98: 14.27782458 | G98: 14.00575944 | H98: 0.1697729389 | I98: 0.1789926466 | J98: 0.1798770486
D99: - ekskl. fleks og elever | E99: 12.39926668 | F99: 12.03121935 | G99: 11.57342887 | H99: 0.1525841053 | I99: 0.1615095919 | J99: 0.1610274217
B100: 913 | C100: Retten i Svendborg | D100: Jurister | E100: 1.607107144 | F100: 1.145907237 | G100: 0.8474480396 | H100: 0.1439572568 | I100: 0.1118650206 | J100: 0.08227483125
B101: 913 | C101: Retten i Svendborg | D101: Kontor | E101: 4.38673617 | F101: 3.331050062 | G101: 2.32071822 | H101: 0.163296235 | I101: 0.1487839102 | J101: 0.1069119885
B102: 913 | C102: Retten i Svendborg | D102: Elev | E102: 1.18591699 | F102: 0.7897604523 | G102: 0.2390917663 | H102: 0.2796215624 | I102: 0.2289260264 | J102: 0.1758984788
B103: 913 | C103: Retten i Svendborg | D103: Fleks | E103: 0.4517778202 | F103: 0.5239972396 | G103: 0.5543142599 | H103: 0.4517642672 | I103: 0.571618802 | J103: 0.554297631
B104: 913 | C104: Retten i Svendborg | D104: Øvrige | E104: 3.36072 | F104: 3.01963 | G104: 2.585208709 | H104: 1 | I104: 1 | J104: 0.9963535667
B105: 913 | C105: Retten i Svendborg | D105: Samlet | E105: 10.99225812 | F105: 8.81034499 | G105: 6.546780995 | H105: 0.2357368937 | I105: 0.2201576825 | J105: 0.1771268239
D106: - ekskl. fleks og elever | E106: 9.354563314 | F106: 7.496587298 | G106: 5.753374969 | H106: 0.2260202206 | I106: 0.2102723368 | J106: 0.1662743921
B107: 914 | C107: Retten i Nykøbing F. | D107: Jurister | E107: 1.510109577 | F107: 1.158146506 | G107: 1.295914033 | H107: 0.0998806531 | I107: 0.07866544487 | J107: 0.0927106451
B108: 914 | C108: Retten i Nykøbing F. | D108: Kontor | E108: 6.190823562 | F108: 5.479977962 | G108: 5.582460346 | H108: 0.1716655236 | I108: 0.163492804 | J108: 0.1827234928
B109: 914 | C109: Retten i Nykøbing F. | D109: Elev | E109: 0.3530877466 | F109: 0.760858049 | G109: 0.385803918 | H109: 0.1653256981 | I109: 0.3418926001 | J109: 0.1928942432
B110: 914 | C110: Retten i Nykøbing F. | D110: Fleks | E110: 0 | F110: 0 | G110: 0 | H110: 0 | I110: 0 | J110: 0
B111: 914 | C111: Retten i Nykøbing F. | D111: Øvrige | E111: 4.041656021 | F111: 3.506286127 | G111: 3.35203681 | H111: 0.9871204309 | I111: 0.9837677889 | J111: 0.9981052911
B112: 914 | C112: Retten i Nykøbing F. | D112: Samlet | E112: 12.09567691 | F112: 10.90526864 | G112: 10.61621511 | H112: 0.2095624592 | I112: 0.2010612499 | J112: 0.2126084746
D113: - ekskl. fleks og elever | E113: 11.74258916 | F113: 10.14441059 | G113: 10.23041119 | H113: 0.2124324294 | I113: 0.1958201615 | J113: 0.2136326657
B114: 915 | C114: Retten i Næstved | D114: Jurister | E114: 1.740462059 | F114: 1.645678068 | G114: 1.608808756 | H114: 0.08720898892 | I114: 0.08186284188 | J114: 0.08602684933
B115: 915 | C115: Retten i Næstved | D115: Kontor | E115: 6.809407446 | F115: 6.883548134 | G115: 7.126083293 | H115: 0.169250571 | I115: 0.1799292556 | J115: 0.1989985206
B116: 915 | C116: Retten i Næstved | D116: Elev | E116: 1.013940233 | F116: 0.6696666994 | G116: 0.6677756321 | H116: 0.236464354 | I116: 0.1717560925 | J116: 0.2750515409
B117: 915 | C117: Retten i Næstved | D117: Fleks | E117: 1.255311454 | F117: 1.70730107 | G117: 2.579130576 | H117: 0.4127806802 | I117: 0.5183315129 | J117: 0.9127339495
B118: 915 | C118: Retten i Næstved | D118: Øvrige | E118: 4.285479291 | F118: 4.160795424 | G118: 3.546260046 | H118: 0.9659616703 | I118: 0.9911776855 | J118: 0.9602601788
B119: 915 | C119: Retten i Næstved | D119: Samlet | E119: 15.10460048 | F119: 15.0669894 | G119: 15.5280583 | H119: 0.2099155949 | I119: 0.2160127913 | J119: 0.2447000112
D120: - ekskl. fleks og elever | E120: 12.8353488 | F120: 12.69002163 | G120: 12.28115209 | H120: 0.1986079531 | I120: 0.2028531693 | J120: 0.2110018934
B121: 916 | C121: Retten i Holbæk | D121: Jurister | E121: 1.326085181 | F121: 1.612148002 | G121: 0.9256281188 | H121: 0.1022663877 | I121: 0.1238290703 | J121: 0.07186112954
B122: 916 | C122: Retten i Holbæk | D122: Kontor | E122: 5.197457327 | F122: 4.469229333 | G122: 4.428882005 | H122: 0.1664351657 | I122: 0.1552590958 | J122: 0.1610022468
B123: 916 | C123: Retten i Holbæk | D123: Elev | E123: 0.9364592136 | F123: 0.1618303192 | G123: 1.050256038 | H123: 0.3059374422 | I123: 0.05403295434 | J123: 0.3354636056
B124: 916 | C124: Retten i Holbæk | D124: Fleks | E124: 1.00003 | F124: 0.9881813033 | G124: 1.00003 | H124: 0.3333333333 | I124: 0.3293838863 | J124: 0.3333333333
B125: 916 | C125: Retten i Holbæk | D125: Øvrige | E125: 2.575916272 | F125: 2.213503707 | G125: 2.328462706 | H125: 0.9938255316 | I125: 0.8937166222 | J125: 0.9295000561
B126: 916 | C126: Retten i Holbæk | D126: Samlet | E126: 11.03594799 | F126: 9.444892664 | G126: 9.733258867 | H126: 0.2088241287 | I126: 0.1878585447 | J126: 0.1985370063
D127: - ekskl. fleks og elever | E127: 9.09945878 | F127: 8.294881042 | G127: 7.682972829 | H127: 0.1944868625 | I127: 0.1873215912 | J127: 0.1791150763
B128: 917 | C128: Retten i Roskilde | D128: Jurister | E128: 2.574764026 | F128: 2.029562398 | G128: 2.465676969 | H128: 0.1226603795 | I128: 0.09154040227 | J128: 0.1096671867
B129: 917 | C129: Retten i Roskilde | D129: Kontor | E129: 8.712038866 | F129: 7.572415372 | G129: 6.543050036 | H129: 0.1737132449 | I129: 0.1616606361 | J129: 0.1572889401
B130: 917 | C130: Retten i Roskilde | D130: Elev | E130: 0.8517664878 | F130: 0.8979748005 | G130: 0.514708254 | H130: 0.1496209245 | I130: 0.2923656563 | J130: 0.1032230368
B131: 917 | C131: Retten i Roskilde | D131: Fleks | E131: 0 | F131: 0 | G131: 0 | H131: 0 | I131: 0 | J131: 0
B132: 917 | C132: Retten i Roskilde | D132: Øvrige | E132: 3.927730276 | F132: 4.073239241 | G132: 3.607227626 | H132: 0.9586353339 | I132: 0.9947904763 | J132: 0.9344713527
B133: 917 | C133: Retten i Roskilde | D133: Samlet | E133: 16.06629966 | F133: 14.57319181 | G133: 13.13066289 | H133: 0.1960909195 | I133: 0.1888241103 | J133: 0.1776123542
D134: - ekskl. fleks og elever | E134: 15.21453317 | F134: 13.67521701 | G134: 12.61595463 | H134: 0.2022132251 | I134: 0.1870569967 | J134: 0.1856861136
B135: 918 | C135: Retten i Hillerød | D135: Jurister | E135: 1.475710343 | F135: 1.308668217 | G135: 1.917792908 | H135: 0.09511942494 | I135: 0.0872681684 | J135: 0.1285599402
B136: 918 | C136: Retten i Hillerød | D136: Kontor | E136: 6.581705283 | F136: 5.996567975 | G136: 5.680527422 | H136: 0.2069016608 | I136: 0.2152711734 | J136: 0.2194150976
B137: 918 | C137: Retten i Hillerød | D137: Elev | E137: 0.3215368343 | F137: 0.5701859475 | G137: 0.1906740076 | H137: 0.0735501157 | I137: 0.1488572918 | J137: 0.04663301578
B138: 918 | C138: Retten i Hillerød | D138: Fleks | E138: 3.027722189 | F138: 1.841933388 | G138: 1.168203155 | H138: 0.7495252378 | I138: 0.6697793458 | J138: 0.5042748663
B139: 918 | C139: Retten i Hillerød | D139: Øvrige | E139: 2.61458923 | F139: 2.941379349 | G139: 2.691975178 | H139: 0.6221953335 | I139: 0.6695361308 | J139: 0.5680650745
B140: 918 | C140: Retten i Hillerød | D140: Samlet | E140: 14.02126388 | F140: 12.65873488 | G140: 11.64917267 | H140: 0.2339276241 | I140: 0.235181174 | J140: 0.2242330717
D141: - ekskl. fleks og elever | E141: 10.67200486 | F141: 10.24661554 | G141: 10.29029551 | H141: 0.2071136854 | I141: 0.2168826305 | J141: 0.2259331167
B142: 919 | C142: Retten i Helsingør | D142: Jurister | E142: 1.9197985 | F142: 1.355893635 | G142: 1.394779274 | H142: 0.1151645316 | I142: 0.08739502657 | J142: 0.09635208366
B143: 919 | C143: Retten i Helsingør | D143: Kontor | E143: 4.414836968 | F143: 4.152193695 | G143: 3.294942808 | H143: 0.1440363634 | I143: 0.1443422927 | J143: 0.130844588
B144: 919 | C144: Retten i Helsingør | D144: Elev | E144: 0.04252724309 | F144: 0.2936006561 | G144: 0.4013449307 | H144: 0.0104205089 | I144: 0.06979756281 | J144: 0.09544650806
B145: 919 | C145: Retten i Helsingør | D145: Fleks | E145: 1.384127866 | F145: 0.8931463678 | G145: 0.8697369233 | H145: 0.2802740653 | I145: 0.3071331831 | J145: 0.4110929036
B146: 919 | C146: Retten i Helsingør | D146: Øvrige | E146: 3.15423 | F146: 2.865249577 | G146: 1.863176694 | H146: 1 | I146: 0.9905926365 | J146: 0.9990437834
B147: 919 | C147: Retten i Helsingør | D147: Samlet | E147: 10.91552058 | F147: 9.560083931 | G147: 7.82398063 | H147: 0.1834704084 | I147: 0.1761001406 | J147: 0.1635327131
D148: - ekskl. fleks og elever | E148: 9.488865468 | F148: 8.373336907 | G148: 6.552898776 | H148: 0.187990907 | I148: 0.1775016144 | J148: 0.1578139783
B149: 920 | C149: Retten i Lyngby | D149: Jurister | E149: 1.14794877 | F149: 1.358805645 | G149: 1.171867033 | H149: 0.06051540392 | I149: 0.06842634884 | J149: 0.0600574933
B150: 920 | C150: Retten i Lyngby | D150: Kontor | E150: 8.744508645 | F150: 7.680642503 | G150: 6.985242451 | H150: 0.2347770579 | I150: 0.2273600995 | J150: 0.2358070821
B151: 920 | C151: Retten i Lyngby | D151: Elev | E151: 0.8075269174 | F151: 1.209936766 | G151: 1.645148052 | H151: 0.3153515095 | I151: 0.3962510615 | J151: 0.4785022198
B152: 920 | C152: Retten i Lyngby | D152: Fleks | E152: 0.440606 | F152: 0 | G152: -0.1428 | H152: 0.2 | I152: 0 | J152: 0.3333333333
B153: 920 | C153: Retten i Lyngby | D153: Øvrige | E153: 2.766177026 | F153: 2.752906977 | G153: 3.271606203 | H153: 0.7377416379 | I153: 0.6871787967 | J153: 0.909398397
B154: 920 | C154: Retten i Lyngby | D154: Samlet | E154: 13.90676736 | F154: 13.00229189 | G154: 12.93106374 | H154: 0.2148466403 | I154: 0.2127361653 | J154: 0.2319789973
D155: - ekskl. fleks og elever | E155: 12.65863444 | F155: 11.79235513 | G155: 11.42871569 | H155: 0.2111001714 | I155: 0.204565481 | J155: 0.2167293196
B156: 921 | C156: Retten i Glostrup | D156: Jurister | E156: 2.391526252 | F156: 2.649619766 | G156: 2.619334027 | H156: 0.06713870291 | I156: 0.07517199881 | J156: 0.08032896718
B157: 921 | C157: Retten i Glostrup | D157: Kontor | E157: 15.51739409 | F157: 14.30758667 | G157: 13.68923352 | H157: 0.2012580232 | I157: 0.2041212144 | J157: 0.2060845702
B158: 921 | C158: Retten i Glostrup | D158: Elev | E158: 0.7688489253 | F158: 0.8626439196 | G158: 0.8994684532 | H158: 0.146637904 | I158: 0.1749887761 | J158: 0.1783682851
B159: 921 | C159: Retten i Glostrup | D159: Fleks | E159: 1.000035018 | F159: 1.000034897 | G159: 1.004816961 | H159: 0.2995632576 | I159: 0.2564691831 | J159: 0.3115808122
B160: 921 | C160: Retten i Glostrup | D160: Øvrige | E160: 6.437078488 | F160: 4.999439236 | G160: 5.17710372 | H160: 0.6718187612 | I160: 0.6125720295 | J160: 0.6385061598
B161: 921 | C161: Retten i Glostrup | D161: Samlet | E161: 26.11488278 | F161: 23.81932449 | G161: 23.38995668 | H161: 0.1995242933 | I161: 0.1947115314 | J161: 0.2026706187
D162: - ekskl. fleks og elever | E162: 24.34599883 | F162: 21.95664567 | G162: 21.48567127 | H162: 0.1990609551 | I162: 0.1934465322 | J162: 0.2005362955
B163: 922 | C163: Retten på Frederiksberg | D163: Jurister | E163: 1.90195052 | F163: 1.074470057 | G163: 1.759340021 | H163: 0.08065640072 | I163: 0.04206847415 | J163: 0.07381069939
B164: 922 | C164: Retten på Frederiksberg | D164: Kontor | E164: 8.473068183 | F164: 8.059126665 | G164: 8.58306785 | H164: 0.1677868509 | I164: 0.1663582719 | J164: 0.1919548636
B165: 922 | C165: Retten på Frederiksberg | D165: Elev | E165: 0.09552749362 | F165: 0.5765352261 | G165: 0.6262782166 | H165: 0.02802107682 | I165: 0.1443315407 | J165: 0.2089620988
B166: 922 | C166: Retten på Frederiksberg | D166: Fleks | E166: 0.05662581701 | F166: 0.08845871977 | G166: 0.01042454241 | H166: 0.01887470609 | I166: 0.02948535536 | J166: 0.004344772252
B167: 922 | C167: Retten på Frederiksberg | D167: Øvrige | E167: 3.96864664 | F167: 3.948681787 | G167: 4.77074056 | H167: 0.7731661998 | I167: 0.7932361152 | J167: 0.797902788
B168: 922 | C168: Retten på Frederiksberg | D168: Samlet | E168: 14.49581865 | F168: 13.74727246 | G168: 15.74985119 | H168: 0.1692999664 | I168: 0.1599302409 | J168: 0.1970570187
D169: - ekskl. fleks og elever | E169: 14.34366534 | F169: 13.08227851 | G169: 15.11314843 | H169: 0.1810774377 | I169: 0.1656753859 | J169: 0.2027823079
B170: 923 | C170: Københavns Byret | D170: Jurister | E170: 4.289576149 | F170: 3.363973447 | G170: 3.285429929 | H170: 0.07403238226 | I170: 0.05659141127 | J170: 0.05593505519
B171: 923 | C171: Københavns Byret | D171: Kontor | E171: 29.02415462 | F171: 29.72374914 | G171: 27.5450978 | H171: 0.2493023593 | I171: 0.2563729285 | J171: 0.2423785039
B172: 923 | C172: Københavns Byret | D172: Elev | E172: 1.642991035 | F172: 1.130591452 | G172: 2.236469241 | H172: 0.199020884 | I172: 0.1400822772 | J172: 0.2766691912
B173: 923 | C173: Københavns Byret | D173: Fleks | E173: 0.6666866667 | F173: 0 | G173: 0.2864331744 | H173: 0.3333333333 | I173: 0 | J173: 0.3370158892
B174: 923 | C174: Københavns Byret | D174: Øvrige | E174: 7.102963449 | F174: 6.685159358 | G174: 6.613096491 | H174: 0.7762928845 | I174: 0.7043727342 | J174: 0.7452400771
B175: 923 | C175: Københavns Byret | D175: Samlet | E175: 42.72637192 | F175: 40.9034734 | G175: 39.96652664 | H175: 0.220501962 | I175: 0.2094397992 | J175: 0.2101414145
D176: - ekskl. fleks og elever | E176: 40.41669422 | F176: 39.77288195 | G176: 37.44362422 | H176: 0.2202385736 | I176: 0.2151355177 | J176: 0.2065795179
B177: 924 | C177: Retten på Bornholm | D177: Jurister | E177: 0.9813889956 | F177: 0.9529703745 | G177: 0.7931252527 | H177: 0.2662599728 | I177: 0.2442956286 | J177: 0.2273966061
B178: 924 | C178: Retten på Bornholm | D178: Kontor | E178: 2.323445356 | F178: 2.741882349 | G178: 2.177315947 | H178: 0.277736713 | I178: 0.3184647007 | J178: 0.278961745
B179: 924 | C179: Retten på Bornholm | D179: Elev | E179: 0.7779036328 | F179: 0.6984023296 | G179: 0.4623826341 | H179: 0.3746008576 | I179: 0.3355138762 | J179: 0.2337012687
B180: 924 | C180: Retten på Bornholm | D180: Fleks | E180: 0 | F180: 0 | G180: 0 | H180: 0 | I180: 0 | J180: 0
B181: 924 | C181: Retten på Bornholm | D181: Øvrige | E181: 1.185444952 | F181: 1.07549643 | G181: 1.278031987 | H181: 0.9886204968 | I181: 0.9988636137 | J181: 0.9994932171
B182: 924 | C182: Retten på Bornholm | D182: Samlet | E182: 5.268182936 | F182: 5.468751483 | G182: 4.71085582 | H182: 0.3437150824 | I182: 0.3490197125 | J182: 0.3237672667
D183: - ekskl. fleks og elever | E183: 4.490279303 | F183: 4.770349153 | G183: 4.248473186 | H183: 0.3388746818 | I183: 0.3510888222 | J183: 0.3379421224
B185: 1) I opgørelsen er årsværksforbrug under kategorierne "ledelse og administration", "hjælpefunktioner" og "transporttid" henført under generel ledelse og administration mv.
B186: 2) Ansatte under socialt kapitel (fleksjobbere mv.) uden tidsfordeling indgår ikke i denne opgørelse.

Sheet Aktivitet
B2: AKTIVITET VED RETTEN MÅLT SOM VÆGTEDE AFSLUTTEDE SAGER
B4: EID | C4: Ret | D4: Samlet | F4: Straffesager | H4: Civile sager | J4: Fogedsager | L4: Skiftesager | N4: Notarialforretninger
D5: 2012 | E5: 2013 | F5: 2012 | G5: 2013 | H5: 2012 | I5: 2013 | J5: 2012 | K5: 2013 | L5: 2012 | M5: 2013 | N5: 2012 | O5: 2013
C7: SAMLET BYRETTERNE | D7: 756822.2522 | E7: 716001.2395 | F7: 183768.651 | G7: 170002.9034 | H7: 60367.79675 | I7: 57425.91198 | J7: 355662.7341 | K7: 332392.5362 | L7: 75533.43271 | M7: 74755.22871 | N7: 64557 | O7: 64525
B9: 901 | C9: Retten i Hjørring | D9: 23738.63903 | E9: 24575.10471 | F9: 4960.241821 | G9: 4710.135132 | H9: 1803.279297 | I9: 2223.241394 | J9: 11188.27524 | K9: 11214.49612 | L9: 3253.963501 | M9: 3180.288574 | N9: 1278 | O9: 1271
B10: 902 | C10: Retten i Aalborg | D10: 36305.10993 | E10: 34570.64051 | F10: 7675.879395 | G10: 7395.641602 | H10: 3200.817871 | I10: 2824.090698 | J10: 16263.55508 | K10: 15459.42842 | L10: 4236.18576 | M10: 4320.291046 | N10: 2835 | O10: 3224
B11: 903 | C11: Retten i Randers | D11: 25834.8213 | E11: 23054.82967 | F11: 5044.601318 | G11: 3965.425781 | H11: 2099.83136 | I11: 2010.715393 | J11: 13808.713 | K11: 12075.06139 | L11: 3210.806396 | M11: 3110.293457 | N11: 1625 | O11: 1655
B12: 904 | C12: Retten i Århus | D12: 42308.2102 | E12: 39074.40224 | F12: 10226.06006 | G12: 9138.282959 | H12: 3829.937622 | I12: 3517.447266 | J12: 16569.80188 | K12: 15693.60326 | L12: 4086.460236 | M12: 3953.345886 | N12: 4962 | O12: 4882
B13: 905 | C13: Retten i Viborg | D13: 25077.18019 | E13: 23565.33393 | F13: 5247.415283 | G13: 4501.820679 | H13: 2059.151611 | I13: 2058.077637 | J13: 12454.6076 | K13: 11652.75294 | L13: 2979.961121 | M13: 2953.103149 | N13: 1804 | O13: 1693
B14: 906 | C14: Retten i Holstebro | D14: 18192.46218 | E14: 17221.94126 | F14: 4357.35498 | G14: 3796.739258 | H14: 1325.235931 | I14: 1230.416565 | J14: 7716.205429 | K14: 7320.781403 | L14: 2284.461365 | M14: 2463.411667 | N14: 1426 | O14: 1502
B15: 907 | C15: Retten i Herning | D15: 18547.10039 | E15: 16874.18175 | F15: 4394.998657 | G15: 3736.56311 | H15: 1318.311035 | I15: 1218.168579 | J15: 8423.075424 | K15: 8346.994629 | L15: 2292.912994 | M15: 2110.315201 | N15: 1568 | O15: 1537
B16: 908 | C16: Retten i Horsens | D16: 22439.7781 | E16: 21280.99767 | F16: 4999.31897 | G16: 4826.674438 | H16: 1983.930237 | I16: 1806.497559 | J16: 10466.49939 | K16: 9954.542664 | L16: 2324.954102 | M16: 2254.283844 | N16: 1484 | O16: 1472
B17: 909 | C17: Retten i Kolding | D17: 35294.05449 | E17: 33562.03351 | F17: 7689.319336 | G17: 7140.849609 | H17: 3178.824463 | I17: 2923.372253 | J17: 16608.83952 | K17: 16018.13136 | L17: 3620.767578 | M17: 3706.692566 | N17: 2889 | O17: 2809
B18: 910 | C18: Retten i Esbjerg | D18: 25538.53938 | E18: 24056.34489 | F18: 6456.035156 | G18: 5942.064697 | H18: 1819.175049 | I18: 1654.208374 | J18: 11478.17532 | K18: 11145.10789 | L18: 2884.569824 | M18: 2850.926178 | N18: 1603 | O18: 1672
B19: 911 | C19: Retten i Sønderborg | D19: 30985.11713 | E19: 28722.51743 | F19: 8078.40918 | G19: 6779.550049 | H19: 2221.17041 | I19: 2318.906982 | J19: 13330.28336 | K19: 12985.52687 | L19: 3392.281799 | M19: 3144.490082 | N19: 2074 | O19: 1836
B20: 912 | C20: Retten i Odense | D20: 39845.39614 | E20: 39636.82402 | F20: 9960.338623 | G20: 9333.363525 | H20: 2704.848816 | I20: 2766.667419 | J20: 20177.04282 | K20: 19796.37289 | L20: 4269.590332 | M20: 4634.622681 | N20: 3168 | O20: 3398
B21: 913 | C21: Retten i Svendborg | D21: 18561.80214 | E21: 17350.31753 | F21: 3759.513428 | G21: 3357.689941 | H21: 1371.264496 | I21: 1228.093689 | J21: 8957.80957 | K21: 8823.99678 | L21: 2661.011871 | M21: 2605.695435 | N21: 1055 | O21: 1067
B22: 914 | C22: Retten i Nykøbing F. | D22: 23968.79888 | E22: 24417.1276 | F22: 5016.716187 | G22: 5178.33252 | H22: 1621.02533 | I22: 1708.662903 | J22: 14150.21469 | K22: 13347.0365 | L22: 3024.507629 | M22: 3163.204651 | N22: 924 | O22: 920
B23: 915 | C23: Retten i Næstved | D23: 31662.31991 | E23: 32002.38243 | F23: 6666.134277 | G23: 6994.638916 | H23: 2296.485474 | I23: 2337.527588 | J23: 19031.07956 | K23: 17264.08099 | L23: 3572.32547 | M23: 3823.345795 | N23: 1718 | O23: 1536
B24: 916 | C24: Retten i Holbæk | D24: 21915.78641 | E24: 21214.5644 | F24: 4567.410889 | G24: 4033.603271 | H24: 1699.384583 | I24: 1841.053833 | J24: 12485.56702 | K24: 11659.72092 | L24: 2485.939194 | M24: 2481.28894 | N24: 1006 | O24: 947
B25: 917 | C25: Retten i Roskilde | D25: 38263.28399 | E25: 35741.97187 | F25: 9092.281494 | G25: 8087.312988 | H25: 2792.978394 | I25: 2794.327393 | J25: 19089.33151 | K25: 17289.45932 | L25: 4228.596893 | M25: 4092.980164 | N25: 2856 | O25: 2539
B26: 918 | C26: Retten i Hillerød | D26: 25465.69029 | E26: 23322.04225 | F26: 5910.146484 | G26: 5716.410889 | H26: 2165.439941 | I26: 1758.631775 | J26: 11557.82973 | K26: 10236.24776 | L26: 2652.594818 | M26: 2654.085632 | N26: 1825 | O26: 1621
B27: 919 | C27: Retten i Helsingør | D27: 23196.91742 | E27: 21174.81181 | F27: 4866.344116 | G27: 4016.65979 | H27: 1963.400269 | I27: 1807.247864 | J27: 11569.21875 | K27: 10912.1568 | L27: 2639.974365 | M27: 2658.925598 | N27: 1568 | O27: 1450
B28: 920 | C28: Retten i Lyngby | D28: 29632.73474 | E28: 27468.00154 | F28: 5570.698242 | G28: 4664.038818 | H28: 3412.250488 | I28: 3254.099121 | J28: 10606.57703 | K28: 10311.64227 | L28: 2909.13274 | M28: 2788.793209 | N28: 6133 | O28: 6388
B29: 921 | C29: Retten i Glostrup | D29: 57889.5764 | E29: 54030.05727 | F29: 14509.90479 | G29: 13201.94971 | H29: 4841.872925 | I29: 4541.584351 | J29: 30128.88486 | K29: 29089.93698 | L29: 4478.052559 | M29: 4151.954834 | N29: 3365 | O29: 3827
B30: 922 | C30: Retten på Frederiksberg | D30: 41848.55554 | E30: 38969.13339 | F30: 10778.61035 | G30: 10103.24878 | H30: 2925.450806 | I30: 2765.256042 | J30: 23957.10023 | K30: 21429.38348 | L30: 3340.188191 | M30: 3166.098563 | N30: 4702 | O30: 4532
B31: 923 | C31: Københavns Byret | D31: 96118.39061 | E31: 90139.86469 | F31: 33090.80371 | G31: 32646.33496 | H31: 7494.935303 | I31: 6612.151855 | J31: 33660.7729 | K31: 28464.50737 | L31: 3973.322157 | M31: 3738.498295 | N31: 12410 | O31: 12468
B32: 924 | C32: Retten på Bornholm | D32: 4191.987453 | E32: 3975.813158 | F32: 850.1142883 | G32: 735.571991 | H32: 238.7950363 | I32: 225.4654465 | J32: 1983.274189 | K32: 1901.567165 | L32: 730.8718109 | M32: 748.2932587 | N32: 279 | O32: 279
B34: 1) Vægtningen på tværs af sagstyper betyder, at antallet af vægtede sager inden for de enkelte sagområder ikke summer op til det samlede antal vægtede sager.
B35: 2) Der foretages en tilsvarende opgørelse samlet for henholdsvis jurister og kontor.

Sheet Målopf.Straf
B2: MÅLOPFYLDELSE STRAFFESAGER (PROCENT)
B4: EID | C4: Ret | D4: Nævningesager | H4: Domsmandssager | L4: Sager uden domsmænd | P4: Tilståelsessager | T4: Voldssager | X4: Voldtægtssager
D5: 2012 | E5: 2013 | F5: 2012 | G5: 2013 | H5: 2012 | I5: 2013 | J5: 2012 | K5: 2013 | L5: 2012 | M5: 2013 | N5: 2012 | O5: 2013 | P5: 2012 | Q5: 2013 | R5: 2012 | S5: 2013 | T5: 2012 | U5: 2013 | V5: 2012 | W5: 2013 | X5: 2012 | Y5: 2013 | Z5: 2012 | AA5: 2013
D6: <4 MDR. | F6: <6 MDR. | H6: <3 MDR. | J6: <6 MDR. | L6: <2 MDR. | N6: <6 MDR. | P6: <2 MDR. | R6: <6 MDR. | T6: <37 DG. | V6: <2 MDR. | X6: <37 DG. | Z6: <2 MDR.
C8: MÅL (procent) | D8: 60 | E8: 60 | F8: 80 | G8: 80 | H8: 65 | I8: 65 | J8: 90 | K8: 90 | L8: 65 | M8: 65 | N8: 95 | O8: 95 | P8: 62 | Q8: 62 | R8: 90 | S8: 90 | T8: 60 | U8: 60 | V8: 75 | W8: 75 | X8: 55 | Y8: 55 | Z8: 75 | AA8: 75
C9: SAMLET BYRETTERNE | D9: 44.44437037 | E9: 55.35529762 | F9: 80.74074074 | G9: 69.64315476 | H9: 55.59574434 | I9: 60.60585546 | J9: 79.65069113 | K9: 83.39839774 | L9: 84.24388555 | M9: 84.86785735 | N9: 95.52822774 | O9: 95.30135625 | P9: 51.41953896 | Q9: 56.93040602 | R9: 86.34302658 | S9: 90.53965517 | T9: 48.88059701 | U9: 52.70034843 | V9: 64.55223881 | W9: 66.02787456 | X9: 41.55844156 | Y9: 42.1875 | Z9: 63.63636364 | AA9: 57.8125
C10: 5. BEDSTE RET | D10: 66.67 | E10: 100 | F10: 100 | G10: 100 | H10: 69.72 | I10: 69.84 | J10: 89.61 | K10: 88.68 | L10: 87.93 | M10: 89.05 | N10: 98.59 | O10: 98.05 | P10: 65.19 | Q10: 72.7 | R10: 95.27 | S10: 96.33 | T10: 63.01369863 | U10: 70 | V10: 74.35897436 | W10: 82.43243243 | X10: 66.66666667 | Y10: 100 | Z10: 100 | AA10: 100
B12: 901 | C12: Retten i Hjørring | D12: - | E12: 50 | F12: - | G12: 100 | H12: 50.98 | I12: 69.2 | J12: 81.35 | K12: 86.88 | L12: 83.34 | M12: 85.68 | N12: 96.59 | O12: 97.64 | P12: 58.45 | Q12: 69.2 | R12: 92.24 | S12: 97.1 | T12: 58.62068966 | U12: 64 | V12: 70.11494253 | W12: 80 | X12: 50 | Y12: 75 | Z12: 100 | AA12: 87.5
B13: 902 | C13: Retten i Aalborg | D13: 66.67 | E13: 100 | F13: 100 | G13: 100 | H13: 57.21 | I13: 56.53 | J13: 89.7 | K13: 86.49 | L13: 85.74 | M13: 81.09 | N13: 97.6 | O13: 95.83 | P13: 32.88 | Q13: 32.09 | R13: 91.84 | S13: 89.3 | T13: 58.90410959 | U13: 33.89830508 | V13: 71.23287671 | W13: 55.93220339 | X13: 33.33333333 | Y13: 60 | Z13: 33.33333333 | AA13: 60
B14: 903 | C14: Retten i Randers | D14: 66.67 | E14: 0 | F14: 100 | G14: 100 | H14: 58.63 | I14: 53.53 | J14: 81.12 | K14: 79.08 | L14: 88.78 | M14: 83.05 | N14: 96.31 | O14: 94.59 | P14: 56.18 | Q14: 50.15 | R14: 88.2 | S14: 88.05 | T14: 55.35714286 | U14: 40 | V14: 64.28571429 | W14: 68 | X14: 50 | Y14: 0 | Z14: 50 | AA14: 0
B15: 904 | C15: Retten i Århus | D15: 100 | E15: 100 | F15: 100 | G15: 100 | H15: 62.95 | I15: 61.03 | J15: 81.73 | K15: 81.83 | L15: 86.47 | M15: 88.08 | N15: 97.13 | O15: 97.68 | P15: 55.33 | Q15: 53.86 | R15: 89.45 | S15: 93.65 | T15: 38.67924528 | U15: 38.46153846 | V15: 52.83018868 | W15: 49.45054945 | X15: 40 | Y15: 100 | Z15: 80 | AA15: 100
B16: 905 | C16: Retten i Viborg | D16: - | E16: 100 | F16: - | G16: 100 | H16: 59.36 | I16: 57 | J16: 85.2 | K16: 84 | L16: 85.76 | M16: 83.03 | N16: 97.77 | O16: 97.58 | P16: 60.31 | Q16: 60.29 | R16: 90.84 | S16: 94 | T16: 61.53846154 | U16: 67.74193548 | V16: 64.1025641 | W16: 74.19354839 | X16: 50 | Y16: 0 | Z16: 66.66666667 | AA16: 12.5
B17: 906 | C17: Retten i Holstebro | D17: 100 | E17: 100 | F17: 100 | G17: 100 | H17: 70.21 | I17: 74.27 | J17: 88.91 | K17: 89.71 | L17: 82.16 | M17: 84.6 | N17: 98.28 | O17: 97.95 | P17: 62.41 | Q17: 81.16 | R17: 94.53 | S17: 98.19 | T17: 68.42105263 | U17: 72.72727273 | V17: 73.68421053 | W17: 81.81818182 | X17: - | Y17: 100 | Z17: - | AA17: 100
B18: 907 | C18: Retten i Herning | D18: 0 | E18: 50 | F18: 0 | G18: 50 | H18: 64.87 | I18: 68.36 | J18: 86.21 | K18: 88.68 | L18: 87.93 | M18: 86.48 | N18: 97.77 | O18: 98.73 | P18: 55.48 | Q18: 60.67 | R18: 91.61 | S18: 96.33 | T18: 56.09756098 | U18: 52.63157895 | V18: 68.29268293 | W18: 57.89473684 | X18: 60 | Y18: 16.66666667 | Z18: 100 | AA18: 66.66666667
B19: 908 | C19: Retten i Horsens | D19: 40 | E19: 60 | F19: 100 | G19: 100 | H19: 75.93 | I19: 73.82 | J19: 91.67 | K19: 86.63 | L19: 87.68 | M19: 86.62 | N19: 98.59 | O19: 96.94 | P19: 68.29 | Q19: 63.84 | R19: 94.31 | S19: 96.31 | T19: 48.27586207 | U19: 47.05882353 | V19: 62.06896552 | W19: 64.70588235 | X19: 40 | Y19: 0 | Z19: 40 | AA19: 100
B20: 909 | C20: Retten i Kolding | D20: 0 | E20: 100 | F20: 100 | G20: 100 | H20: 47.15 | I20: 69.84 | J20: 64.81 | K20: 87.34 | L20: 85.78 | M20: 89.74 | N20: 94.58 | O20: 98.05 | P20: 41.31 | Q20: 72.25 | R20: 73.31 | S20: 95.81 | T20: 41.42857143 | U20: 61.2244898 | V20: 65.71428571 | W20: 77.55102041 | X20: 100 | Y20: 100 | Z20: 100 | AA20: 100
B21: 910 | C21: Retten i Esbjerg | D21: 66.67 | E21: 100 | F21: 100 | G21: 100 | H21: 48.06 | I21: 50.64 | J21: 80.05 | K21: 78.72 | L21: 81.8 | M21: 72.36 | N21: 97.14 | O21: 95.02 | P21: 64.07 | Q21: 58.07 | R21: 94.61 | S21: 95.75 | T21: 46.47887324 | U21: 30.86419753 | V21: 64.78873239 | W21: 51.85185185 | X21: 0 | Y21: 0 | Z21: 50 | AA21: 0
B22: 911 | C22: Retten i Sønderborg | D22: 66.67 | E22: 75 | F22: 100 | G22: 100 | H22: 56.78 | I22: 79.49 | J22: 76.78 | K22: 91.82 | L22: 71.93 | M22: 80.07 | N22: 89.91 | O22: 95.61 | P22: 55.43 | Q22: 74.15 | R22: 84.7 | S22: 95.12 | T22: 63.01369863 | U22: 75.67567568 | V22: 71.23287671 | W22: 82.43243243 | X22: 0 | Y22: 100 | Z22: 0 | AA22: 100
B23: 912 | C23: Retten i Odense | D23: 41.67 | E23: 16.67 | F23: 91.67 | G23: 100 | H23: 63.24 | I23: 69.58 | J23: 88.75 | K23: 88.9 | L23: 90.86 | M23: 90.67 | N23: 99.55 | O23: 98.83 | P23: 45.27 | Q23: 57.55 | R23: 92.76 | S23: 94.46 | T23: 37.5 | U23: 51.11111111 | V23: 53.125 | W23: 56.66666667 | X23: 20 | Y23: 40 | Z23: 60 | AA23: 40
B24: 913 | C24: Retten i Svendborg | D24: - | E24: 100 | F24: - | G24: 100 | H24: 67.76 | I24: 59.29 | J24: 89.47 | K24: 85.48 | L24: 83.06 | M24: 79.2 | N24: 97.76 | O24: 95.5 | P24: 56.78 | Q24: 46.44 | R24: 95.27 | S24: 92.47 | T24: 43.90243902 | U24: 56.60377358 | V24: 56.09756098 | W24: 73.58490566 | X24: 33.33333333 | Y24: 40 | Z24: 50 | AA24: 60
B25: 914 | C25: Retten i Nykøbing F. | D25: 28.57 | E25: 100 | F25: 100 | G25: 100 | H25: 72.77 | I25: 63.6 | J25: 91.07 | K25: 86.3 | L25: 90.92 | M25: 92.27 | N25: 98.71 | O25: 98.71 | P25: 65.68 | Q25: 72.7 | R25: 95.38 | S25: 93.59 | T25: 53.96825397 | U25: 43.83561644 | V25: 77.77777778 | W25: 50.68493151 | X25: 80 | Y25: 100 | Z25: 100 | AA25: 100
B26: 915 | C26: Retten i Næstved | D26: 28.57 | E26: 62.5 | F26: 85.71 | G26: 75 | H26: 38.12 | I26: 46.48 | J26: 73.3 | K26: 79.66 | L26: 84.8 | M26: 83.54 | N26: 90.58 | O26: 86.58 | P26: 40.32 | Q26: 31.93 | R26: 67.62 | S26: 73.61 | T26: 21.95121951 | U26: 38.0952381 | V26: 39.02439024 | W26: 54.76190476 | X26: 100 | Y26: 50 | Z26: 100 | AA26: 50
B27: 916 | C27: Retten i Holbæk | D27: 100 | E27: 75 | F27: 100 | G27: 75 | H27: 46.52 | I27: 57.05 | J27: 79.94 | K27: 83.18 | L27: 85.95 | M27: 77.7 | N27: 96.4 | O27: 94.84 | P27: 60 | Q27: 72.35 | R27: 90.13 | S27: 89.71 | T27: 34 | U27: 66.66666667 | V27: 66 | W27: 82.22222222 | X27: 66.66666667 | Y27: 66.66666667 | Z27: 100 | AA27: 100
B28: 917 | C28: Retten i Roskilde | D28: 33.33 | E28: 15.38 | F28: 100 | G28: 15.38 | H28: 37.27 | I28: 48.19 | J28: 53.9 | K28: 74.36 | L28: 62.91 | M28: 80.07 | N28: 92.32 | O28: 93.2 | P28: 23.68 | Q28: 49.9 | R28: 65.93 | S28: 85.83 | T28: 23.07692308 | U28: 38.46153846 | V28: 53.84615385 | W28: 50 | X28: 0 | Y28: - | Z28: 33.33333333 | AA28: -
B29: 918 | C29: Retten i Hillerød | D29: 50 | E29: 100 | F29: 100 | G29: 100 | H29: 51.88 | I29: 65.25 | J29: 84.35 | K29: 87.29 | L29: 83.55 | M29: 83.58 | N29: 96.75 | O29: 96.55 | P29: 39.3 | Q29: 53.15 | R29: 91.79 | S29: 92.31 | T29: 71.79487179 | U29: 56.25 | V29: 74.35897436 | W29: 87.5 | X29: 50 | Y29: 50 | Z29: 75 | AA29: 50
B30: 919 | C30: Retten i Helsingør | D30: - | E30: 100 | F30: - | G30: 100 | H30: 69.72 | I30: 55.08 | J30: 89.44 | K30: 88 | L30: 87.19 | M30: 80.76 | N30: 98.71 | O30: 96.16 | P30: 65.19 | Q30: 47.94 | R30: 96.52 | S30: 95.13 | T30: 60 | U30: 53.84615385 | V30: 84 | W30: 84.61538462 | X30: 0 | Y30: - | Z30: 0 | AA30: -
B31: 920 | C31: Retten i Lyngby | D31: - | E31: 100 | F31: - | G31: 100 | H31: 64.73 | I31: 64.67 | J31: 89.61 | K31: 84.33 | L31: 86.2 | M31: 89.05 | N31: 97.25 | O31: 97.5 | P31: 79.18 | Q31: 73.62 | R31: 97.61 | S31: 97.45 | T31: 81.81818182 | U31: 72.72727273 | V31: 81.81818182 | W31: 86.36363636 | X31: 0 | Y31: 100 | Z31: 100 | AA31: 100
B32: 921 | C32: Retten i Glostrup | D32: 47.37 | E32: 74.07 | F32: 89.47 | G32: 88.89 | H32: 50.59 | I32: 48.03 | J32: 78.86 | K32: 76.5 | L32: 81.83 | M32: 83.72 | N32: 90.99 | O32: 90.15 | P32: 44.87 | Q32: 52.05 | R32: 87.32 | S32: 88.66 | T32: 38.02816901 | U32: 43.75 | V32: 53.52112676 | W32: 54.16666667 | X32: 100 | Y32: 0 | Z32: 100 | AA32: 25
B33: 922 | C33: Retten på Frederiksberg | D33: 11.76 | E33: 9.09 | F33: 41.18 | G33: 31.82 | H33: 39.29 | I33: 35.67 | J33: 58.87 | K33: 60.7 | L33: 87.34 | M33: 86.59 | N33: 93.97 | O33: 93.17 | P33: 30.28 | Q33: 30.02 | R33: 59.91 | S33: 66.05 | T33: 30.76923077 | U33: 8.695652174 | V33: 53.84615385 | W33: 30.43478261 | X33: 33.33333333 | Y33: 0 | Z33: 33.33333333 | AA33: 50
B34: 923 | C34: Københavns Byret | D34: 37.5 | E34: 35.29 | F34: 68.75 | G34: 47.06 | H34: 55.96 | I34: 66.81 | J34: 80.87 | K34: 87.26 | L34: 85.74 | M34: 85.71 | N34: 95.26 | O34: 95.85 | P34: 54.71 | Q34: 60.15 | R34: 85.24 | S34: 90.91 | T34: 42.85714286 | U34: 70 | V34: 71.42857143 | W34: 76.25 | X34: 20 | Y34: - | Z34: 60 | AA34: -
B35: 924 | C35: Retten på Bornholm | D35: 100 | E35: - | F35: 100 | G35: - | H35: 98.28 | I35: 94.74 | J35: 100 | K35: 98.95 | L35: 94.47 | M35: 92.58 | N35: 99.39 | O35: 99.78 | P35: 95.12 | Q35: 90.67 | R35: 100 | S35: 100 | T35: 87.5 | U35: 94.73684211 | V35: 93.75 | W35: 94.73684211 | X35: - | Y35: 100 | Z35: - | AA35: 100
B37: 1) Målene for de enkelte sagstyper er opstillet i samarbejde med byretterne. Dog er målene for voldssager og voldtægtssager fastsat eksternt.

Sheet Målopf.Civil
B2: MÅLOPFYLDELSE CIVILE SAGER (PROCENT)
B4: EID | C4: Ret | D4: "Tunge" almindelige sager | H4: Øvrige almindelige sager | L4: Alle almindelige civile sager | P4: Ægteskabssager | T4: Forældreansvarssager
D5: 2012 | E5: 2013 | F5: 2012 | G5: 2013 | H5: 2012 | I5: 2013 | J5: 2012 | K5: 2013 | L5: 2012 | M5: 2013 | N5: 2012 | O5: 2013 | P5: 2012 | Q5: 2013 | R5: 2012 | S5: 2013 | T5: 2012 | U5: 2013 | V5: 2012 | W5: 2013
D6: <15 MDR. | F6: <18 MDR. | H6: <12 MDR. | J6: <15 MDR. | L6: <6 MDR. | N6: <12 MDR. | P6: <4 MDR. | R6: <6 MDR. | T6: <6 MDR. | V6: <8 MDR.
C8: MÅL (procent) | D8: 45 | E8: 45 | F8: 60 | G8: 60 | H8: 60 | I8: 60 | J8: 72 | K8: 72 | L8: 70 | M8: 70 | N8: 85 | O8: 85 | P8: 56 | Q8: 56 | R8: 83 | S8: 83 | T8: 60 | U8: 60 | V8: 75 | W8: 75
C9: SAMLET BYRETTERNE | D9: 41.19713936 | E9: 46.10301189 | F9: 54.52268949 | G9: 58.521321 | H9: 46.58261265 | I9: 55.09849152 | J9: 62.36896449 | K9: 67.88180749 | L9: 63.96445214 | M9: 66.53488856 | N9: 81.80185302 | O9: 84.7651841 | P9: 58.18694929 | Q9: 55.97210339 | R9: 81.04658354 | S9: 79.23456328 | T9: 61.27334104 | U9: 65.82465028 | V9: 78.34289865 | W9: 80.64373961
C10: 5. BEDSTE RET | D10: 53.332 | E10: 54.999 | F10: 67.9968 | G10: 69.23076923 | H10: 58.4437013 | I10: 68.44091255 | J10: 72.98483412 | K10: 79.53007874 | L10: 69.18 | M10: 73.44 | N10: 87.09 | O10: 88.8 | P10: 74.07 | Q10: 74.42 | R10: 91.3 | S10: 90.48 | T10: 74.39744 | U10: 81.39527132 | V10: 87.99872 | W10: 92.13280899
B12: 901 | C12: Retten i Hjørring | D12: 59.09 | E12: 36.96 | F12: 72.73 | G12: 41.3 | H12: 46.99185792 | I12: 55.66704433 | J12: 64.47967213 | K12: 65.5179803 | L12: 65.68 | M12: 67.08 | N12: 83.3 | O12: 83.32 | P12: 66.67 | Q12: 65.63 | R12: 78.79 | S12: 84.38 | T12: 63.9997 | U12: 69.85352941 | V12: 79.9995 | W12: 83.82294118
B13: 902 | C13: Retten i Aalborg | D13: 53.66 | E13: 32.61 | F13: 65.85 | G13: 47.83 | H13: 51.81423913 | I13: 58.04231373 | J13: 64.85543478 | K13: 69.01827451 | L13: 68.7 | M13: 67.38 | N13: 84.96 | O13: 83.45 | P13: 77.05 | Q13: 74.42 | R13: 91.8 | S13: 90.7 | T13: 72.83697531 | U13: 70.66746667 | V13: 84.56796296 | W13: 83.99666667
B14: 903 | C14: Retten i Randers | D14: 50 | E14: 35.29 | F14: 50 | G14: 41.18 | H14: 38.85822289 | I14: 48.30015094 | J14: 56.92677711 | K14: 58.86633962 | L14: 57.15 | M14: 63.25 | N14: 73.54 | O14: 79.72 | P14: 77.78 | Q14: 58.33 | R14: 86.11 | S14: 80.56 | T14: 66.18359712 | U14: 63.91203008 | V14: 82.01669065 | W14: 81.19924812
B15: 904 | C15: Retten i Århus | D15: 46.03190476 | E15: 55.10285714 | F15: 57.14619048 | G15: 59.17938776 | H15: 49.89069767 | I15: 64.02347561 | J15: 67.86627907 | K15: 75.3039939 | L15: 62.49 | M15: 69.02 | N15: 79.64 | O15: 86.72 | P15: 76.92 | Q15: 60.34 | R15: 94.87 | S15: 89.66 | T15: 73.68114833 | U15: 73.7174359 | V15: 82.77229665 | W15: 85.89724359
B16: 905 | C16: Retten i Viborg | D16: 26.92 | E16: 34.61538462 | F16: 38.46 | G16: 69.23076923 | H16: 47.63639485 | I16: 58.79725322 | J16: 63.94686695 | K16: 69.52592275 | L16: 64.83 | M16: 61.85 | N16: 82.91 | O16: 84.34 | P16: 72.73 | Q16: 29.41 | R16: 87.88 | S16: 79.41 | T16: 56.66433333 | U16: 79.12782609 | V16: 83.33506667 | W16: 86.95965217
B17: 906 | C17: Retten i Holstebro | D17: 53.332 | E17: 52.38 | F17: 56.664 | G17: 71.43 | H17: 57.78974026 | I17: 65.07232877 | J17: 64.93727273 | K17: 72.60479452 | L17: 69.18 | M17: 69.26 | N17: 83.22 | O17: 86.6 | P17: 47.06 | Q17: 66.67 | R17: 70.59 | S17: 72.22 | T17: 60.4622093 | U17: 80.46091954 | V17: 72.09523256 | W17: 88.50655172
B18: 907 | C18: Retten i Herning | D18: 70 | E18: 50 | F18: 80 | G18: 56.25 | H18: 58.4437013 | I18: 70.8680315 | J18: 70.78116883 | K18: 77.95598425 | L18: 66.37 | M18: 75.1 | N18: 84.38 | O18: 89.71 | P18: 44.83 | Q18: 71.43 | R18: 65.52 | S18: 85.71 | T18: 53.93033708 | U18: 52.85714286 | V18: 76.40314607 | W18: 75.71714286
B19: 908 | C19: Retten i Horsens | D19: 53.33 | E19: 80 | F19: 66.67 | G19: 93.33 | H19: 55.92592417 | I19: 65.49584795 | J19: 72.98483412 | K19: 77.19304094 | L19: 66.91 | M19: 67.72 | N19: 86.28 | O19: 88.57 | P19: 66.67 | Q19: 76.19 | R19: 74.07 | S19: 90.48 | T19: 74.39744 | U19: 81.39527132 | V19: 87.99872 | W19: 89.92209302
B20: 909 | C20: Retten i Kolding | D20: 30.77 | E20: 47.73 | F20: 53.85 | G20: 63.64 | H20: 33.76542208 | I20: 51.73769716 | J20: 50.64808442 | K20: 66.24968454 | L20: 65.02 | M20: 65.74 | N20: 79.49 | O20: 83.01 | P20: 79.71 | Q20: 79.59 | R20: 91.3 | S20: 87.76 | T20: 79.19543624 | U20: 83.71953488 | V20: 95.29825503 | W20: 95.34511628
B21: 910 | C21: Retten i Esbjerg | D21: 41.67 | E21: 19.999 | F21: 50 | G21: 19.999 | H21: 44.66979508 | I21: 38.04795122 | J21: 60.65364754 | K21: 52.19756098 | L21: 60.45 | M21: 60.44 | N21: 77.66 | O21: 79.82 | P21: 67.65 | Q21: 65.96 | R21: 85.29 | S21: 78.72 | T21: 67.55218543 | U21: 74.03778846 | V21: 84.10642384 | W21: 86.54163462
B22: 911 | C22: Retten i Sønderborg | D22: 33.32944444 | E22: 47.50125 | F22: 41.66888889 | G22: 60 | H22: 36.84157895 | I22: 54.71268116 | J22: 54.73578947 | K22: 63.40394928 | L22: 62.02 | M22: 61.07 | N22: 78.66 | O22: 85.5 | P22: 59.65 | Q22: 46.67 | R22: 85.96 | S22: 73.33 | T22: 63.79258621 | U22: 78.29896226 | V22: 87.06560345 | W22: 92.45018868
B23: 912 | C23: Retten i Odense | D23: 61.54051282 | E23: 57.14 | F23: 71.79076923 | G23: 60.71 | H23: 61.27717172 | I23: 68.44091255 | J23: 71.37946128 | K23: 74.90612167 | L23: 68.77 | M23: 70.3 | N23: 87.74 | O23: 88.8 | P23: 69.51 | Q23: 57.81 | R23: 85.37 | S23: 79.69 | T23: 51.15149425 | U23: 62.87524752 | V23: 70.69298851 | W23: 81.6829703
B24: 913 | C24: Retten i Svendborg | D24: 50 | E24: 45.45 | F24: 66.67 | G24: 63.64 | H24: 64.63487805 | I24: 62.99338583 | J24: 78.65743902 | K24: 79.53007874 | L24: 70.51 | M24: 73.44 | N24: 89.29 | O24: 88.8 | P24: 68 | Q24: 56.67 | R24: 92 | S24: 80 | T24: 82.7944086 | U24: 84.26764045 | V24: 93.54752688 | W24: 92.13280899
B25: 914 | C25: Retten i Nykøbing F. | D25: 42.86 | E25: 50 | F25: 78.57 | G25: 50 | H25: 74.85350877 | I25: 83.13883721 | J25: 84.79461988 | K25: 87.78872093 | L25: 73.53 | M25: 74.12 | N25: 91.37 | O25: 89.5 | P25: 74.07 | Q25: 84.85 | R25: 88.89 | S25: 93.94 | T25: 87.50348214 | U25: 89.91119266 | V25: 94.645 | W25: 92.65688073
B26: 915 | C26: Retten i Næstved | D26: 46.66933333 | E26: 41.67 | F26: 53.33333333 | G26: 58.33 | H26: 37.94785714 | I26: 42.73354701 | J26: 60.26629464 | K26: 59.40401709 | L26: 66.65 | M26: 64.74 | N26: 83.22 | O26: 83.62 | P26: 31.58 | Q26: 44.19 | R26: 71.05 | S26: 67.44 | T26: 55.31602837 | U26: 63.45955128 | V26: 74.47014184 | W26: 76.92410256
B27: 916 | C27: Retten i Holbæk | D27: 27.5862069 | E27: 48.39 | F27: 58.61793103 | G27: 70.97 | H27: 54.79479452 | I27: 69.48279221 | J27: 75.34445205 | K27: 83.11707792 | L27: 69.62 | M27: 74.24 | N27: 87.09 | O27: 91.08 | P27: 67.86 | Q27: 72 | R27: 85.71 | S27: 88 | T27: 73.68094737 | U27: 77.19508772 | V27: 90.52684211 | W27: 85.96140351
B28: 917 | C28: Retten i Roskilde | D28: 21.43 | E28: 30 | F28: 42.86 | G28: 45 | H28: 31.21203822 | I28: 40.11924012 | J28: 48.08770701 | K28: 55.92841945 | L28: 66.23 | M28: 65.75 | N28: 81.76 | O28: 82.72 | P28: 39.62 | Q28: 38.75 | R28: 69.81 | S28: 63.75 | T28: 33.57416058 | U28: 41.61348993 | V28: 52.55854015 | W28: 60.40469799
B29: 918 | C29: Retten i Hillerød | D29: 21.42571429 | E29: 54.999 | F29: 40.48 | G29: 70.002 | H29: 48.31115942 | I29: 62.4326455 | J29: 69.56589372 | K29: 77.25010582 | L29: 66.98 | M29: 69.81 | N29: 84.89 | O29: 88.18 | P29: 68.75 | Q29: 57.14 | R29: 90.63 | S29: 92.86 | T29: 46.8335443 | U29: 43.01021505 | V29: 69.61759494 | W29: 64.51741935
B30: 919 | C30: Retten i Helsingør | D30: 52.0032 | E30: 58.82 | F30: 67.9968 | G30: 64.71 | H30: 50.64467811 | I30: 62.66795556 | J30: 66.94987124 | K30: 81.33142222 | L30: 64.24 | M30: 69.63 | N30: 83.11 | O30: 87.97 | P30: 71.15 | Q30: 70 | R30: 96.15 | S30: 87.5 | T30: 72.21977778 | U30: 55.9522619 | V30: 86.66333333 | W30: 71.42690476
B31: 920 | C31: Retten i Lyngby | D31: 45.67950617 | E31: 54.21650602 | F31: 56.78654321 | G31: 65.06313253 | H31: 43.51909535 | I31: 63.54424749 | J31: 56.47750611 | K31: 76.25454849 | L31: 59.26 | M31: 64.95 | N31: 77.44 | O31: 85.74 | P31: 38.89 | Q31: 59.68 | R31: 66.67 | S31: 79.03 | T31: 54.44255556 | U31: 53.24727273 | V31: 71.10966667 | W31: 79.22311688
B32: 921 | C32: Retten i Glostrup | D32: 10.63723404 | E32: 12.19463415 | F32: 14.89042553 | G32: 26.82829268 | H32: 33.6017004 | I32: 36.38368675 | J32: 44.73856275 | K32: 51.08496386 | L32: 57.57 | M32: 61.64 | N32: 77.43 | O32: 80.43 | P32: 49.07 | Q32: 52.78 | R32: 79.63 | S32: 80.56 | T32: 38.99174312 | U32: 51.58705882 | V32: 62.84440367 | W32: 76.02072398
B33: 922 | C33: Retten på Frederiksberg | D33: 35.48645161 | E33: 49.9985 | F33: 45.16290323 | G33: 65.004 | H33: 44.47935583 | I33: 42.65290323 | J33: 63.1908589 | K33: 60.21336918 | L33: 63.26 | M33: 66.8 | N33: 83.3 | O33: 84.48 | P33: 39.77 | Q33: 32.91 | R33: 72.73 | S33: 62.03 | T33: 50.82286885 | U33: 46.09671875 | V33: 70.49532787 | W33: 66.40820312
B34: 923 | C34: Københavns Byret | D34: 42.66193333 | E34: 47.93231405 | F34: 57.99826667 | G34: 60.33504132 | H34: 47.0008753 | I34: 51.75912799 | J34: 64.02752998 | K34: 66.66504923 | L34: 60.29 | M34: 64.53 | N34: 79.87 | O34: 82.8 | P34: 35.59 | Q34: 45.22 | R34: 68.64 | S34: 76.52 | T34: 47.61714286 | U34: 49.63697842 | V34: 66.13878307 | W34: 63.30683453
B35: 924 | C35: Retten på Bornholm | D35: - | E35: - | F35: - | G35: - | H35: 80.00233333 | I35: 83.33333333 | J35: 89.99833333 | K35: 90 | L35: 81.48 | M35: 88.17 | N35: 91.01 | O35: 96.24 | P35: 57.14 | Q35: 100 | R35: 57.14 | S35: 100 | T35: 76.92 | U35: 83.335 | V35: 76.92 | W35: 100
B37: 1) Målene for de enkelte sagstyper er opstillet i samarbejde med byretterne. Generelt er målene opstillet i forhold til hovedforhandlede sager.
B38: 2) Ved "tunge" almindelige sager forstås sager, der er behandlet kollegialt, med en værdi på mere end 1 mio. kr. eller rubriceret som forvaltningssag (det offentlige er part eller der er tale om en advokatnævnssag). Ved "Øvrige almindelige sager" forstås almindelige sager, der ikke er "tunge". Boligretssager og småsager inkluderes ikke.
B39: 3) Ved alle almindelige civile sager forstås både sager med og uden hovedforhandling, herunder udeblivelsesdomme, forligte sager, henviste sager og afviste sager, ligesom alle sager med forhandlingsmaksime (almindelige sager, boligretssager og småsager) er inkluderede.
B40: 4) Forældreansvarssager inkluderer hovedforhandlede sager, sager sluttet efter forlig og sager sluttet efter retsmægling.

Sheet Målopf.Foged
B2: MÅLOPFYLDELSE FOGEDSAGER (PROCENT)
B4: EID | C4: Ret | D4: Alm. fogedsager | H4: Særlige fogedsager | L4: Betalingspåkrav
D5: 2012 | E5: 2013 | F5: 2012 | G5: 2013 | H5: 2012 | I5: 2013 | J5: 2012 | K5: 2013 | L5: 2012 | M5: 2013 | N5: 2012 | O5: 2013
D6: <2 MDR. | F6: <4 MDR. | H6: <2 MDR. | J6: <4 MDR. | L6: <2 MDR. | N6: <4 MDR.
C8: MÅL (procent) | D8: 72 | E8: 72 | F8: 93 | G8: 93 | H8: 80 | I8: 80 | J8: 97 | K8: 97 | L8: 55 | M8: 55 | N8: 85 | O8: 85
C9: SAMLET BYRETTERNE | D9: 67.34230258 | E9: 71.118383 | F9: 89.28899774 | G9: 91.81651912 | H9: 79.26750247 | I9: 83.37943973 | J9: 95.14297788 | K9: 96.63264333 | L9: 68.51683201 | M9: 68.19906237 | N9: 89.87477639 | O9: 91.61911665
C10: 5. BEDSTE RET | D10: 78.80591916 | E10: 82.02614379 | F10: 96.2248769 | G10: 95.98765432 | H10: 89.26038501 | I10: 89.63210702 | J10: 97.63843648 | K10: 97.80821918 | L10: 80.47647588 | M10: 82.32251998 | N10: 96.68842156 | O10: 97.28059333
B12: 901 | C12: Retten i Hjørring | D12: 70.49452833 | E12: 74.35354605 | F12: 94.32054301 | G12: 95.56933313 | H12: 79.4628752 | I12: 85.12898331 | J12: 96.05055292 | K12: 97.1168437 | L12: 79.47788252 | M12: 71.02863203 | N12: 96.68842156 | O12: 98.30328738
B13: 902 | C13: Retten i Aalborg | D13: 71.87469957 | E13: 83.87305699 | F13: 93.9629739 | G13: 96.58894646 | H13: 78.46655791 | I13: 83.62720403 | J13: 95.02446982 | K13: 94.20654912 | L13: 76.29446988 | M13: 53.95559725 | N13: 95.17435717 | O13: 93.21450907
B14: 903 | C14: Retten i Randers | D14: 55.59510178 | E14: 79.62020091 | F14: 90.31775121 | G14: 95.84422733 | H14: 68.13063063 | I14: 75.62929062 | J14: 90.65315315 | K14: 96.10983982 | L14: 69.18107939 | M14: 82.04005006 | N14: 91.91498229 | O14: 95.78639967
B15: 904 | C15: Retten i Århus | D15: 75.61033269 | E15: 71.61022284 | F15: 94.03884637 | G15: 92.57207604 | H15: 91.75557711 | I15: 90.66593886 | J15: 98.64209505 | K15: 98.47161572 | L15: 67.85950961 | M15: 70.45562788 | N15: 89.39695162 | O15: 94.09430068
B16: 905 | C16: Retten i Viborg | D16: 78.28701229 | E16: 76.42836635 | F16: 95.05611972 | G16: 95.5211025 | H16: 76.76266137 | I16: 83.31466965 | J16: 97.21946375 | K16: 97.08846585 | L16: 79.08811925 | M16: 77.54873404 | N16: 95.06795265 | O16: 95.00336097
B17: 906 | C17: Retten i Holstebro | D17: 88.51142681 | E17: 89.38148789 | F17: 97.42639489 | G17: 97.42647059 | H17: 92.66055046 | I17: 95.09043928 | J17: 98.39449541 | K17: 98.4496124 | L17: 92.43498818 | M17: 93.64919355 | N17: 99.15569065 | O17: 99.19354839
B18: 907 | C18: Retten i Herning | D18: 78.80591916 | E18: 78.89477977 | F18: 96.2248769 | G18: 95.81973899 | H18: 79.77991747 | I18: 87.31343284 | J18: 96.14855571 | K18: 96.26865672 | L18: 83.2007636 | M18: 80.70339247 | N18: 97.42284442 | O18: 97.6346094
B19: 908 | C19: Retten i Horsens | D19: 74.77753299 | E19: 73.42971888 | F19: 94.72229518 | G19: 95.5502008 | H19: 83.70607029 | I19: 81.93668529 | J19: 95.68690096 | K19: 97.20670391 | L19: 77.54904335 | M19: 78.57495069 | N19: 95.56793412 | O19: 95.58678501
B20: 909 | C20: Retten i Kolding | D20: 73.47562251 | E20: 82.02614379 | F20: 91.42068124 | G20: 94.49891068 | H20: 88.18998716 | I20: 89.22734027 | J20: 97.36842105 | K20: 96.73105498 | L20: 63.99331662 | M20: 73.14886381 | N20: 90.34252297 | O20: 91.57520482
B21: 910 | C21: Retten i Esbjerg | D21: 75.61505065 | E21: 66.19951778 | F21: 91.6642547 | G21: 91.63652803 | H21: 89.26038501 | I21: 84.89751888 | J21: 96.35258359 | K21: 94.60625674 | L21: 80.45703404 | M21: 78.68593362 | N21: 93.3111164 | O21: 94.37796342
B22: 911 | C22: Retten i Sønderborg | D22: 68.847981 | E22: 73.62025316 | F22: 92.16152969 | G22: 93.37974684 | H22: 77.61006289 | I22: 81.73690932 | J22: 94.08805031 | K22: 95.78544061 | L22: 60.46556001 | M22: 56.25672284 | N22: 93.37912612 | O22: 93.6536393
B23: 912 | C23: Retten i Odense | D23: 70.89157859 | E23: 77.11497745 | F23: 92.89123764 | G23: 94.77124183 | H23: 81.63919414 | I23: 84.05873099 | J23: 97.84798535 | K23: 97.43051914 | L23: 80.47647588 | M23: 76.925035 | N23: 94.78573569 | O23: 96.04174621
B24: 913 | C24: Retten i Svendborg | D24: 80.36189462 | E24: 76.97893972 | F24: 96.86003193 | G24: 95.98765432 | H24: 90.57239057 | I24: 88.43137255 | J24: 96.8013468 | K24: 97.84313725 | L24: 76.03255954 | M24: 68.83154538 | N24: 96.98522762 | O24: 94.57813859
B25: 914 | C25: Retten i Nykøbing F. | D25: 77.45658619 | E25: 76.42431466 | F25: 93.28674291 | G25: 92.75327771 | H25: 83.90367554 | I25: 82.59668508 | J25: 95.05703422 | K25: 97.79005525 | L25: 76.9327467 | M25: 58.397884 | N25: 93.79844961 | O25: 92.93406386
B26: 915 | C26: Retten i Næstved | D26: 64.63110882 | E26: 61.78750123 | F26: 88.85167053 | G26: 90.83684882 | H26: 78.72340426 | I26: 83.71919343 | J26: 96.34308511 | K26: 96.63928305 | L26: 62.18314322 | M26: 61.42771446 | N26: 88.03865653 | O26: 89.12717457
B27: 916 | C27: Retten i Holbæk | D27: 67.12795949 | E27: 70.43895748 | F27: 88.0110278 | G27: 89.30041152 | H27: 61.96581197 | I27: 77.3130545 | J27: 95.2991453 | K27: 97.59188847 | L27: 73.56435644 | M27: 82.32251998 | N27: 92.92079208 | O27: 95.18100611
B28: 917 | C28: Retten i Roskilde | D28: 70.24796796 | E28: 66.31280962 | F28: 89.24758286 | G28: 91.09291275 | H28: 75.52486188 | I28: 76.5060241 | J28: 95.80110497 | K28: 96.98795181 | L28: 56.76429568 | M28: 45.79701121 | N28: 89.69471564 | O28: 89.38356164
B29: 918 | C29: Retten i Hillerød | D29: 64.26087439 | E29: 67.94892259 | F29: 90.15955586 | G29: 95.13168396 | H29: 86.84759916 | I29: 81.5483871 | J29: 96.97286013 | K29: 98.19354839 | L29: 73.35250419 | M29: 84.12855377 | N29: 96.54924515 | O29: 97.28059333
B30: 919 | C30: Retten i Helsingør | D30: 71.7351894 | E30: 71.56045265 | F30: 88.78140795 | G30: 91.98927933 | H30: 86.23566215 | I30: 89.63210702 | J30: 96.14181439 | K30: 96.87848384 | L30: 73.09195103 | M30: 65.49384267 | N30: 91.84683511 | O30: 91.85725057
B31: 920 | C31: Retten i Lyngby | D31: 83.57793216 | E31: 82.18610051 | F31: 96.62424658 | G31: 96.4173163 | H31: 87.78501629 | I31: 89.7716895 | J31: 97.63843648 | K31: 97.80821918 | L31: 88.68874172 | M31: 86.33074935 | N31: 96.58278146 | O31: 95.55555556
B32: 921 | C32: Retten i Glostrup | D32: 63.80156659 | E32: 54.29243434 | F32: 87.21537772 | G32: 85.48935058 | H32: 83.94973921 | I32: 77.78677463 | J32: 96.60976766 | K32: 96.92307692 | L32: 75.76061854 | M32: 75.9769905 | N32: 91.29430666 | O32: 92.49452155
B33: 922 | C33: Retten på Frederiksberg | D33: 52.13314499 | E33: 58.98143041 | F33: 76.20590354 | G33: 81.38444567 | H33: 77.39169675 | I33: 88.89185581 | J33: 91.65162455 | K33: 97.38317757 | L33: 52.18421442 | M33: 55.9051186 | N33: 78.7946098 | O33: 81.31086142
B34: 923 | C34: Københavns Byret | D34: 39.47612402 | E34: 61.3149361 | F34: 73.74848895 | G34: 84.72690278 | H34: 64.40016434 | I34: 78.13029789 | J34: 91.29005752 | K34: 94.21167353 | L34: 31.87753662 | M34: 46.91540451 | N34: 65.12263984 | O34: 74.98152937
B35: 924 | C35: Retten på Bornholm | D35: 95.38024165 | E35: 95.94898725 | F35: 99.28926795 | G35: 99.32483121 | H35: 91.42857143 | I35: 92 | J35: 98.57142857 | K35: 96 | L35: 93.90934844 | M35: 91.5052161 | N35: 99.2917847 | O35: 98.06259314
B37: 1) Målene for de enkelte sagstyper er opstillet i samarbejde med byretterne.

Sheet Sagstid.Straf
B2: GENNEMSNITLIG SAGSBEHANDLINGSTID STRAFFESAGER (DAGE)
B4: EID | C4: Ret | D4: Nævningesager | F4: Domsmandssager | H4: Sager uden domsmænd | J4: Tilståelsessager
D5: 2012 | E5: 2013 | F5: 2012 | G5: 2013 | H5: 2012 | I5: 2013 | J5: 2012 | K5: 2013
C6: 5. BEDSTE RET | D6: 94 | E6: 76 | F6: 90 | G6: 94 | H6: 25 | I6: 24 | J6: 62 | K6: 55
C7: SAMLET BYRETTERNE | D7: 133.7111111 | E7: 142.8035714 | F7: 126.7329052 | G7: 115.1223558 | H7: 34.9619435 | I7: 33.8179256 | J7: 95.05096242 | K7: 78.8542982
B9: 901 | C9: Retten i Hjørring | D9: - | E9: 128 | F9: 118 | G9: 96 | H9: 28 | I9: 26 | J9: 71 | K9: 59
B10: 902 | C10: Retten i Aalborg | D10: 94 | E10: 116 | F10: 99 | G10: 106 | H10: 25 | I10: 36 | J10: 96 | K10: 98
B11: 903 | C11: Retten i Randers | D11: 105 | E11: 140 | F11: 133 | G11: 151 | H11: 40 | I11: 48 | J11: 90 | K11: 91
B12: 904 | C12: Retten i Århus | D12: 52 | E12: 46 | F12: 132 | G12: 140 | H12: 32 | I12: 25 | J12: 102 | K12: 72
B13: 905 | C13: Retten i Viborg | D13: - | E13: 86 | F13: 108 | G13: 108 | H13: 28 | I13: 32 | J13: 74 | K13: 61
B14: 906 | C14: Retten i Holstebro | D14: 67 | E14: 82 | F14: 92 | G14: 86 | H14: 40 | I14: 38 | J14: 72 | K14: 53
B15: 907 | C15: Retten i Herning | D15: 224 | E15: 150 | F15: 96 | G15: 94 | H15: 29 | I15: 27 | J15: 72 | K15: 64
B16: 908 | C16: Retten i Horsens | D16: 130 | E16: 81 | F16: 81 | G16: 96 | H16: 31 | I16: 32 | J16: 69 | K16: 62
B17: 909 | C17: Retten i Kolding | D17: 141 | E17: 76 | F17: 161 | G17: 105 | H17: 36 | I17: 21 | J17: 125 | K17: 55
B18: 910 | C18: Retten i Esbjerg | D18: 126 | E18: 91 | F18: 127 | G18: 143 | H18: 32 | I18: 45 | J18: 60 | K18: 64
B19: 911 | C19: Retten i Sønderborg | D19: 103 | E19: 77 | F19: 134 | G19: 77 | H19: 60 | I19: 39 | J19: 94 | K19: 51
B20: 912 | C20: Retten i Odense | D20: 127 | E20: 140 | F20: 99 | G20: 97 | H20: 14 | I20: 17 | J20: 86 | K20: 68
B21: 913 | C21: Retten i Svendborg | D21: - | E21: 39 | F21: 95 | G21: 105 | H21: 28 | I21: 43 | J21: 74 | K21: 82
B22: 914 | C22: Retten i Nykøbing F. | D22: 135 | E22: 73 | F22: 86 | G22: 94 | H22: 21 | I22: 18 | J22: 62 | K22: 61
B23: 915 | C23: Retten i Næstved | D23: 136 | E23: 155 | F23: 161 | G23: 132 | H23: 41 | I23: 54 | J23: 129 | K23: 145
B24: 916 | C24: Retten i Holbæk | D24: 80 | E24: 167 | F24: 127 | G24: 121 | H24: 27 | I24: 37 | J24: 87 | K24: 70
B25: 917 | C25: Retten i Roskilde | D25: 141 | E25: 248 | F25: 185 | G25: 152 | H25: 65 | I25: 51 | J25: 157 | K25: 107
B26: 918 | C26: Retten i Hillerød | D26: 104 | E26: 110 | F26: 111 | G26: 93 | H26: 30 | I26: 28 | J26: 86 | K26: 71
B27: 919 | C27: Retten i Helsingør | D27: - | E27: 73 | F27: 86 | G27: 106 | H27: 29 | I27: 36 | J27: 57 | K27: 71
B28: 920 | C28: Retten i Lyngby | D28: - | E28: 102 | F28: 90 | G28: 103 | H28: 24 | I28: 24 | J28: 43 | K28: 45
B29: 921 | C29: Retten i Glostrup | D29: 128 | E29: 109 | F29: 138 | G29: 146 | H29: 53 | I29: 50 | J29: 112 | K29: 91
B30: 922 | C30: Retten på Frederiksberg | D30: 177 | E30: 206 | F30: 191 | G30: 180 | H30: 39 | I30: 38 | J30: 167 | K30: 147
B31: 923 | C31: Københavns Byret | D31: 164 | E31: 182 | F31: 128 | G31: 96 | H31: 30 | I31: 27 | J31: 92 | K31: 74
B32: 924 | C32: Retten på Bornholm | D32: 43 | E32: - | F32: 38 | G32: 46 | H32: 15 | I32: 17 | J32: 27 | K32: 36

Sheet Sagstid.Civil
B2: GENNEMSNITLIG SAGSBEHANDLINGSTID CIVILE SAGER (DAGE)
B4: EID | C4: Ret | D4: Hovedforhandlede almindelige sager | F4: Hovedforhandlede boligretssager | H4: Hovedforhandlede småsager | J4: Alle civile sager m. forhandlingsmaksime | L4: Alle ægteskabssager | N4: Alle forældre- ansvarssager
D5: 2012 | E5: 2013 | F5: 2012 | G5: 2013 | H5: 2012 | I5: 2013 | J5: 2012 | K5: 2013 | L5: 2012 | M5: 2013 | N5: 2012 | O5: 2013
C6: 5. BEDSTE RET | D6: 481 | E6: 433.9708738 | F6: 373.0588235 | G6: 342.6153846 | H6: 237.1791045 | I6: 210 | J6: 177 | K6: 160 | L6: 100 | M6: 106 | N6: 133 | O6: 123
C7: SAMLET BYRETTERNE | D7: 570.2784457 | E7: 530.1689267 | F7: 502.1311475 | G7: 453.6534296 | H7: 298.1234742 | I7: 269.899723 | J7: 215.7268876 | K7: 198.6373071 | L7: 126.8854369 | M7: 133.1118143 | N7: 159.5860324 | O7: 148.0961992
B9: 901 | C9: Retten i Hjørring | D9: 609.3902439 | E9: 631.7745665 | F9: 270 | G9: 699 | H9: 310.2739726 | I9: 288.6666667 | J9: 201 | K9: 226 | L9: 155 | M9: 121 | N9: 168 | O9: 141
B10: 902 | C10: Retten i Aalborg | D10: 536.6748768 | E10: 593.4757282 | F10: 422.625 | G10: 515.4285714 | H10: 264.6122449 | I10: 259.0795455 | J10: 192 | K10: 203 | L10: 96 | M10: 106 | N10: 146 | O10: 127
B11: 903 | C11: Retten i Randers | D11: 585.5026455 | E11: 622.7865854 | F11: 519 | G11: 717.9047619 | H11: 344.6036036 | I11: 244 | J11: 274 | K11: 238 | L11: 126 | M11: 176 | N11: 155 | O11: 145
B12: 904 | C12: Retten i Århus | D12: 523.8881119 | E12: 494.8684211 | F12: 528.1111111 | G12: 343.5714286 | H12: 265.556213 | I12: 225.32 | J12: 216 | K12: 179 | L12: 103 | M12: 124 | N12: 133 | O12: 127
B13: 905 | C13: Retten i Viborg | D13: 605.3956044 | E13: 534.7073171 | F13: 462.125 | G13: 418.1818182 | H13: 267.4262295 | I13: 261.7380952 | J13: 222 | K13: 215 | L13: 112 | M13: 135 | N13: 155 | O13: 140
B14: 906 | C14: Retten i Holstebro | D14: 550.6423358 | E14: 475.9032258 | F14: 625 | G14: 233.25 | H14: 211.2 | I14: 210 | J14: 204 | K14: 186 | L14: 150 | M14: 134 | N14: 170 | O14: 130
B15: 907 | C15: Retten i Herning | D15: 511.8440367 | E15: 433.9708738 | F15: 659 | G15: 273 | H15: 233.6 | I15: 202.7837838 | J15: 211 | K15: 160 | L15: 160 | M15: 108 | N15: 176 | O15: 171
B16: 908 | C16: Retten i Horsens | D16: 523.7974684 | E16: 418 | F16: 373.0588235 | G16: 349 | H16: 224.6666667 | I16: 200 | J16: 190 | K16: 172 | L16: 105 | M16: 93 | N16: 130 | O16: 118
B17: 909 | C17: Retten i Kolding | D17: 639.8318584 | E17: 510.0465116 | F17: 549.1612903 | G17: 409.2 | H17: 305.8 | I17: 317.6666667 | J17: 224 | K17: 201 | L17: 87 | M17: 85 | N17: 124 | O17: 101
B18: 910 | C18: Retten i Esbjerg | D18: 642.9142857 | E18: 631.4972067 | F18: 432 | G18: 833 | H18: 237.1791045 | I18: 264.125 | J18: 250 | K18: 241 | L18: 127 | M18: 185 | N18: 146 | O18: 145
B19: 911 | C19: Retten i Sønderborg | D19: 602.1081081 | E19: 588.0246914 | F19: 498.6285714 | G19: 399.3571429 | H19: 345.625 | I19: 264.559322 | J19: 232 | K19: 225 | L19: 124 | M19: 145 | N19: 145 | O19: 123
B20: 912 | C20: Retten i Odense | D20: 445.5172414 | E20: 460.0165746 | F20: 691.4333333 | G20: 344.0740741 | H20: 251.9315068 | I20: 280.313253 | J20: 177 | K20: 166 | L20: 104 | M20: 138 | N20: 179 | O20: 151
B21: 913 | C21: Retten i Svendborg | D21: 406.5824176 | E21: 479.2658228 | F21: 366.1818182 | G21: 342.6153846 | H21: 324.4705882 | I21: 278.4782609 | J21: 161 | K21: 154 | L21: 105 | M21: 136 | N21: 117 | O21: 120
B22: 914 | C22: Retten i Nykøbing F. | D22: 384.1100917 | E22: 390.2222222 | F22: 316 | G22: 277.9375 | H22: 238.5454545 | I22: 201.1756757 | J22: 147 | K22: 152 | L22: 83 | M22: 86 | N22: 98 | O22: 108
B23: 915 | C23: Retten i Næstved | D23: 581.2368421 | E23: 524.7538462 | F23: 437 | G23: 462.3333333 | H23: 397.4363636 | I23: 339.3033708 | J23: 196 | K23: 206 | L23: 150 | M23: 149 | N23: 178 | O23: 154
B24: 916 | C24: Retten i Holbæk | D24: 481 | E24: 423.1904762 | F24: 435.8181818 | G24: 385 | H24: 253.3269231 | I24: 247.4285714 | J24: 164 | K24: 143 | L24: 110 | M24: 112 | N24: 140 | O24: 134
B25: 917 | C25: Retten i Roskilde | D25: 675.0504587 | E25: 631.7375566 | F25: 486.0967742 | G25: 488.4193548 | H25: 326.1898734 | I25: 356.8556701 | J25: 213 | K25: 210 | L25: 142 | M25: 157 | N25: 219 | O25: 210
B26: 918 | C26: Retten i Hillerød | D26: 616.9745223 | E26: 457.4690265 | F26: 516.7222222 | G26: 667.8 | H26: 299.8648649 | I26: 260.2325581 | J26: 199 | K26: 168 | L26: 100 | M26: 116 | N26: 175 | O26: 202
B27: 919 | C27: Retten i Helsingør | D27: 542.7058824 | E27: 446.7733333 | F27: 433.4 | G27: 375.8 | H27: 307.4117647 | I27: 256.3055556 | J27: 204 | K27: 174 | L27: 99 | M27: 168 | N27: 146 | O27: 194
B28: 920 | C28: Retten i Lyngby | D28: 580.7106918 | E28: 475.2258065 | F28: 540.8947368 | G28: 389.4054054 | H28: 293.7686567 | I28: 256.0824742 | J28: 242 | K28: 191 | L28: 153 | M28: 133 | N28: 191 | O28: 161
B29: 921 | C29: Retten i Glostrup | D29: 695.3764706 | E29: 614.8410405 | F29: 603.2894737 | G29: 514.9428571 | H29: 373.4601227 | I29: 299.5333333 | J29: 268 | K29: 252 | L29: 126 | M29: 124 | N29: 185 | O29: 161
B30: 922 | C30: Retten på Frederiksberg | D30: 612.2 | E30: 551.3023256 | F30: 433.375 | G30: 481 | H30: 320.9266055 | I30: 325.893617 | J30: 207 | K30: 191 | L30: 143 | M30: 152 | N30: 178 | O30: 186
B31: 923 | C31: Københavns Byret | D31: 536.8896104 | E31: 512.7992278 | F31: 473.7261146 | G31: 478.3728814 | H31: 290.492891 | I31: 268.5765306 | J31: 227 | K31: 203 | L31: 176 | M31: 133 | N31: 185 | O31: 159
B32: 924 | C32: Retten på Bornholm | D32: 368 | E32: 291.3529412 | F32: 157 | G32: 330 | H32: 145 | I32: 118 | J32: 151 | K32: 100 | L32: 212 | M32: 81 | N32: 134 | O32: 138
B34: 1) Alle civile sager med forhandlingsmaksime inkluderer sagstyperne almindelige sager, boligretssager og småsager.

Sheet Sagstid.Foged
B2: GENNEMSNITLIG SAGSBEHANDLINGSTID FOGEDSAGER (DAGE)
B4: EID | C4: Ret | D4: Alm. fogedsager | F4: Særlige fogedsager | H4: Betalingspåkrav | J4: Tvangsauktioner
D5: 2012 | E5: 2013 | F5: 2012 | G5: 2013 | H5: 2012 | I5: 2013 | J5: 2012 | K5: 2013
C6: 5. BEDSTE RET | D6: 46.06627 | E6: 46.31372549 | F6: 36.76252 | G6: 35.36 | H6: 48.11311 | I6: 46.71926548 | J6: 66 | K6: 64
C7: SAMLET BYRETTERNE | D7: 65.68381909 | E7: 57.09138611 | F7: 49.76678406 | G7: 41.65258037 | H7: 67.02410148 | I7: 61.00120289 | J7: 89.82799946 | K7: 83.95983522
B9: 901 | C9: Retten i Hjørring | D9: 53.4189 | E9: 49.86269469 | F9: 41.96367 | G9: 40.71472 | H9: 49.3065 | I9: 52.85005302 | J9: 81 | K9: 83
B10: 902 | C10: Retten i Aalborg | D10: 52.07433 | E10: 41.55710276 | F10: 45.53426 | G10: 42.10747 | H10: 52.56763 | I10: 66.37570356 | J10: 78 | K10: 77
B11: 903 | C11: Retten i Randers | D11: 66.47012 | E11: 47.72560892 | F11: 58.18243 | G11: 45.74256 | H11: 60.9179 | I11: 47.47830622 | J11: 96 | K11: 96
B12: 904 | C12: Retten i Århus | D12: 53.26422 | E12: 56.95581015 | F12: 27.77061 | G12: 29.34934 | H12: 62.43969 | I12: 53.59834894 | J12: 67 | K12: 83
B13: 905 | C13: Retten i Viborg | D13: 47.28447 | E13: 47.35630204 | F13: 42.17676 | G13: 38.45129 | H13: 48.11311 | I13: 50.20322653 | J13: 92 | K13: 80
B14: 906 | C14: Retten i Holstebro | D14: 33.75932 | E14: 32.54022491 | F14: 31.89679 | G14: 27.36434 | H14: 34.27423 | I14: 32.36995968 | J14: 63 | K14: 63
B15: 907 | C15: Retten i Herning | D15: 46.06627 | E15: 46.84155791 | F15: 44.2751 | G15: 39.31642 | H15: 44.00573 | I15: 46.71926548 | J15: 85 | K15: 90
B16: 908 | C16: Retten i Horsens | D16: 48.22154 | E16: 49.71742972 | F16: 45.5607 | G16: 42.80633 | H16: 50.53742 | I16: 50.07174556 | J16: 63 | K16: 64
B17: 909 | C17: Retten i Kolding | D17: 53.34716 | E17: 46.31372549 | F17: 36.76252 | G17: 37.7214 | H17: 60.69674 | I17: 54.94867831 | J17: 66 | K17: 64
B18: 910 | C18: Retten i Esbjerg | D18: 51.64978 | E18: 58.91485835 | F18: 37.68693 | G18: 41.47141 | H18: 51.27684 | I18: 49.97245428 | J18: 78 | K18: 88
B19: 911 | C19: Retten i Sønderborg | D19: 58.14703 | E19: 52.85101266 | F19: 48.64906 | G19: 42.29885 | H19: 59.26293 | I19: 63.39781284 | J19: 108 | K19: 97
B20: 912 | C20: Retten i Odense | D20: 57.6438 | E20: 50.36748596 | F20: 40.90522 | G20: 41.59308 | H20: 49.30057 | I20: 51.67621229 | J20: 92 | K20: 84
B21: 913 | C21: Retten i Svendborg | D21: 42.87955 | E21: 47.2630719 | F21: 33.85353 | G21: 34.15294 | H21: 50.19445 | I21: 55.8962018 | J21: 78 | K21: 81
B22: 914 | C22: Retten i Nykøbing F. | D22: 52.24089 | E22: 51.22872467 | F22: 42.91635 | G22: 40.33426 | H22: 54.21391 | I22: 63.40600794 | J22: 82 | K22: 91
B23: 915 | C23: Retten i Næstved | D23: 66.24246 | E23: 59.44236241 | F23: 44.40226 | G23: 40.68185 | H23: 74.10583 | I23: 70.91511698 | J23: 122 | K23: 82
B24: 916 | C24: Retten i Holbæk | D24: 71.65932 | E24: 61.38024691 | F24: 58.15919 | G24: 42.43092 | H24: 60.71609 | I24: 48.76210625 | J24: 117 | K24: 93
B25: 917 | C25: Retten i Roskilde | D25: 66.7605 | E25: 62.14235163 | F25: 47.94365 | G25: 42.65361 | H25: 77.0217 | I25: 75.01681196 | J25: 85 | K25: 94
B26: 918 | C26: Retten i Hillerød | D26: 62.05107 | E26: 49.4952913 | F26: 36.90292 | G26: 38.98581 | H26: 49.57273 | I26: 45.71001236 | J26: 68 | K26: 58
B27: 919 | C27: Retten i Helsingør | D27: 66.99364 | E27: 55.7016081 | F27: 42.36392 | G27: 37.33556 | H27: 58.72623 | I27: 60.12716763 | J27: 97 | K27: 89
B28: 920 | C28: Retten i Lyngby | D28: 45.55985 | E28: 39.57969813 | F28: 44.61563 | G28: 34.16256 | H28: 37.52927 | I28: 39.07028424 | J28: 59 | K28: 63
B29: 921 | C29: Retten i Glostrup | D29: 75.95509 | E29: 75.69489089 | F29: 50.88739 | G29: 45.14251 | H29: 58.69334 | I29: 54.19357195 | J29: 79 | K29: 100
B30: 922 | C30: Retten på Frederiksberg | D30: 107.3468 | E30: 86.15949623 | F30: 63.46909 | G30: 40.53298 | H30: 89.21383 | I30: 79.3062422 | J30: 118 | K30: 100
B31: 923 | C31: Københavns Byret | D31: 109.122 | E31: 78.12335474 | F31: 70.83587 | G31: 52.09591 | H31: 155.8017 | I31: 105.7174917 | J31: 120 | K31: 82
B32: 924 | C32: Retten på Bornholm | D32: 27.81237 | E32: 27.57464366 | F32: 29.71428 | G32: 35.36 | H32: 31.87111 | I32: 33.84947839 | J32: 62 | K32: 80

Sheet Sagstid.Skifte
B2: GENNEMSNITLIG SAGSBEHANDLINGSTID SKIFTESAGER (DAGE)
B4: EID | C4: Ret | D4: Boudlæg | F4: Uskiftet bo | H4: Privat skifte | J4: Forenklet privat skifte
D5: 2012 | E5: 2013 | F5: 2012 | G5: 2013 | H5: 2012 | I5: 2013 | J5: 2012 | K5: 2013
C6: 5. BEDSTE RET | D6: 30.47 | E6: 32 | F6: 67.1 | G6: 66.01 | H6: 337.94 | I6: 336.02 | J6: 51.99 | K6: 54.59
C7: SAMLET BYRETTERNE | D7: 38.19584253 | E7: 38.81275995 | F7: 73.90347645 | G7: 76.4894208 | H7: 354.1320223 | I7: 349.3351172 | J7: 60.59464855 | K7: 64.41964143
B9: 901 | C9: Retten i Hjørring | D9: 55.13 | E9: 52.93 | F9: 80.98 | G9: 79.86 | H9: 379.52 | I9: 364.69 | J9: 76.28 | K9: 74.16
B10: 902 | C10: Retten i Aalborg | D10: 37.12 | E10: 36.86 | F10: 67.1 | G10: 66.01 | H10: 328.77 | I10: 336.02 | J10: 57.17 | K10: 56.52
B11: 903 | C11: Retten i Randers | D11: 49.95 | E11: 50.87 | F11: 72.64 | G11: 69.61 | H11: 373 | I11: 364.31 | J11: 64.3 | K11: 73.22
B12: 904 | C12: Retten i Århus | D12: 39.82 | E12: 45.05 | F12: 78.44 | G12: 80.08 | H12: 366.02 | I12: 365.68 | J12: 52.69 | K12: 59.89
B13: 905 | C13: Retten i Viborg | D13: 37.41 | E13: 38.48 | F13: 78.08 | G13: 77.88 | H13: 361.45 | I13: 330.39 | J13: 61.23 | K13: 61.36
B14: 906 | C14: Retten i Holstebro | D14: 43.46 | E14: 41.1 | F14: 59.52 | G14: 59.35 | H14: 347.15 | I14: 333.17 | J14: 59.28 | K14: 87.38
B15: 907 | C15: Retten i Herning | D15: 46.87 | E15: 39.71 | F15: 77.43 | G15: 76.55 | H15: 337.94 | I15: 336.79 | J15: 56.44 | K15: 64.63
B16: 908 | C16: Retten i Horsens | D16: 39.87 | E16: 40.75 | F16: 70.71 | G16: 72.7 | H16: 391.12 | I16: 375 | J16: 61.38 | K16: 66.31
B17: 909 | C17: Retten i Kolding | D17: 49.57 | E17: 44.58 | F17: 82.45 | G17: 75.09 | H17: 348.45 | I17: 355.91 | J17: 83.85 | K17: 77.07
B18: 910 | C18: Retten i Esbjerg | D18: 29.34 | E18: 31.79 | F18: 70.08 | G18: 71.36 | H18: 345.21 | I18: 357.96 | J18: 56.2 | K18: 54.24
B19: 911 | C19: Retten i Sønderborg | D19: 35.9 | E19: 37.5 | F19: 69.2 | G19: 68.23 | H19: 331.14 | I19: 348.93 | J19: 54.01 | K19: 66.97
B20: 912 | C20: Retten i Odense | D20: 41.32 | E20: 47.29 | F20: 72.3 | G20: 80.15 | H20: 337.38 | I20: 352.51 | J20: 63.71 | K20: 71.34
B21: 913 | C21: Retten i Svendborg | D21: 30.47 | E21: 27.16 | F21: 68.2 | G21: 64.05 | H21: 327.73 | I21: 342.99 | J21: 51.99 | K21: 51.17
B22: 914 | C22: Retten i Nykøbing F. | D22: 34.37 | E22: 35.98 | F22: 36.95 | G22: 40.01 | H22: 348.51 | I22: 358.43 | J22: 39.4 | K22: 40.24
B23: 915 | C23: Retten i Næstved | D23: 40.63 | E23: 34.87 | F23: 47.61 | G23: 94.23 | H23: 359.25 | I23: 339.24 | J23: 59.88 | K23: 63.1
B24: 916 | C24: Retten i Holbæk | D24: 29.91 | E24: 38.02 | F24: 91.94 | G24: 81.06 | H24: 356.65 | I24: 363.39 | J24: 51.21 | K24: 54.59
B25: 917 | C25: Retten i Roskilde | D25: 42.87 | E25: 37.73 | F25: 85.36 | G25: 81.59 | H25: 368.96 | I25: 346.73 | J25: 71.01 | K25: 66.56
B26: 918 | C26: Retten i Hillerød | D26: 34.17 | E26: 30.4 | F26: 71.54 | G26: 84.7 | H26: 350.43 | I26: 335.24 | J26: 56.08 | K26: 58.11
B27: 919 | C27: Retten i Helsingør | D27: 27.86 | E27: 40.77 | F27: 70.84 | G27: 83.72 | H27: 349.49 | I27: 360.35 | J27: 44.11 | K27: 67.83
B28: 920 | C28: Retten i Lyngby | D28: 32.76 | E28: 32.98 | F28: 81.06 | G28: 93.19 | H28: 374.05 | I28: 360.01 | J28: 70.58 | K28: 62.25
B29: 921 | C29: Retten i Glostrup | D29: 35.13 | E29: 35.22 | F29: 89.38 | G29: 92.57 | H29: 339.21 | I29: 340.21 | J29: 66.17 | K29: 66.4
B30: 922 | C30: Retten på Frederiksberg | D30: 39.09 | E30: 42.27 | F30: 78.85 | G30: 77.12 | H30: 367.77 | I30: 343.85 | J30: 59.32 | K30: 63.51
B31: 923 | C31: Københavns Byret | D31: 31.77 | E31: 32 | F31: 99.21 | G31: 96.1 | H31: 356.78 | I31: 341.29 | J31: 70.26 | K31: 76.45
B32: 924 | C32: Retten på Bornholm | D32: 18.4 | E32: 16.12 | F32: 28.9 | G32: 27.22 | H32: 341.46 | I32: 316.57 | J32: 19.65 | K32: 24

Sheet HR-nøgletal_lønsum
B2: UDVALGTE HR-NØGLETAL
B4: EID | C4: Ret | D4: Gnst. antal sygedage pr. ansat | F4: Personaleomsætning (%) | H4: Lønsumsforbrug (mio.)
D5: 2012 | E5: 2013 | F5: 2012 | G5: 2013 | H5: 2012 | I5: 2013
C6: 5. BEDSTE RET | D6: 5.1176259 | E6: 5.3
C7: SAMLET BYRETTERNE | D7: 8.641105985 | E7: 8.6 | F7: 8.8 | G7: 11.8 | H7: 33.42874242 | I7: 32.50465518
B9: 901 | C9: Retten i Hjørring | D9: 10.68413379 | E9: 5.7 | F9: 10.2 | G9: 12.7 | H9: 25.04165897 | I9: 25.23077424
B10: 902 | C10: Retten i Aalborg | D10: 9.639258459 | E10: 5.1 | F10: 9.4 | G10: 12 | H10: 37.34694476 | I10: 36.32284163
B11: 903 | C11: Retten i Randers | D11: 5.013229315 | E11: 6.9 | F11: 13.7 | G11: 10.8 | H11: 28.96309771 | I11: 26.74664964
B12: 904 | C12: Retten i Århus | D12: 8.124555932 | E12: 10.8 | F12: 5.9 | G12: 11.6 | H12: 43.63171909 | I12: 41.02113215
B13: 905 | C13: Retten i Viborg | D13: 9.329235244 | E13: 4.7 | F13: 14.2 | G13: 16.2 | H13: 26.08492004 | I13: 25.88336059
B14: 906 | C14: Retten i Holstebro | D14: 8.955644828 | E14: 5 | F14: 20.3 | G14: 16.2 | H14: 20.61569091 | I14: 19.40336905
B15: 907 | C15: Retten i Herning | D15: 5.1176259 | E15: 8.6 | F15: 2.4 | G15: 15.3 | H15: 20.03129257 | I15: 20.02559767
B16: 908 | C16: Retten i Horsens | D16: 7.42417316 | E16: 5.3 | F16: 9 | G16: 13.3 | H16: 24.06794401 | I16: 24.53226103
B17: 909 | C17: Retten i Kolding | D17: 7.424129795 | E17: 11.7 | F17: 12.8 | G17: 6.6 | H17: 35.13474569 | I17: 35.21200134
B18: 910 | C18: Retten i Esbjerg | D18: 5.016104138 | E18: 10.3 | F18: 10.8 | G18: 15 | H18: 25.86329229 | I18: 26.28483427
B19: 911 | C19: Retten i Sønderborg | D19: 4.275216144 | E19: 7 | F19: 11.2 | G19: 10.2 | H19: 33.17015754 | I19: 32.07104816
B20: 912 | C20: Retten i Odense | D20: 9.308874967 | E20: 7.7 | F20: 7.2 | G20: 8.3 | H20: 39.53978133 | I20: 38.81514503
B21: 913 | C21: Retten i Svendborg | D21: 7.633832999 | E21: 14.2 | F21: 14.3 | G21: 17.7 | H21: 19.79365595 | I21: 19.70705955
B22: 914 | C22: Retten i Nykøbing F. | D22: 5.009008356 | E22: 3.8 | F22: 2.5 | G22: 15.8 | H22: 27.22318931 | I22: 25.6823684
B23: 915 | C23: Retten i Næstved | D23: 7.919610949 | E23: 9 | F23: 9.9 | G23: 19.7 | H23: 32.37834381 | I23: 31.63077126
B24: 916 | C24: Retten i Holbæk | D24: 9.10569205 | E24: 7.3 | F24: 10.3 | G24: 14.1 | H24: 23.85466902 | I24: 23.08612638
B25: 917 | C25: Retten i Roskilde | D25: 10.01963101 | E25: 8 | F25: 12.9 | G25: 19.9 | H25: 40.65059475 | I25: 38.57747683
B26: 918 | C26: Retten i Hillerød | D26: 7.49647355 | E26: 9.2 | F26: 7.2 | G26: 20.1 | H26: 27.20830147 | I26: 26.59530339
B27: 919 | C27: Retten i Helsingør | D27: 7.989385796 | E27: 13.1 | F27: 10.1 | G27: 17.9 | H27: 26.4579457 | I27: 25.17136882
B28: 920 | C28: Retten i Lyngby | D28: 8.67990897 | E28: 9.7 | F28: 8.8 | G28: 15.3 | H28: 31.84775109 | I28: 31.14209533
B29: 921 | C29: Retten i Glostrup | D29: 13.05476168 | E29: 11.8 | F29: 4.3 | G29: 20.6 | H29: 59.06418399 | I29: 56.2588608
B30: 922 | C30: Retten på Frederiksberg | D30: 13.0568708 | E30: 12 | F30: 7.9 | G30: 18.3 | H30: 42.12214642 | I30: 40.40890417
B31: 923 | C31: Københavns Byret | D31: 8.516524098 | E31: 8.1 | F31: 4.3 | G31: 9.6 | H31: 104.6922399 | I31: 102.9923745
B32: 924 | C32: Retten på Bornholm | D32: 7.374329829 | E32: 7.2 | F32: 13.3 | G32: 6.4 | H32: 7.50555179 | I32: 7.31
B34: 1) Tallene er ekskl. ansatte under socialt kapitel. Deltidssygdom er inkluderet, men barns sygdom, omsorgsdage og særlige feriedage indgår ikke.
B35: 2) Styrelsen har rettet op på tallene, der er trukket i ISOLA. Således havde ISOLA kun medtaget 14 byretter, idet der manglede data for 2. kvartal for de sidste 10 byretter. Styrelsen har indhentet oplysninger om 2. kvartal 2012 manuelt og indregnet dem i en fraværsmodel. Ligeledes har 3 retter formentlig for lave fraværstal for 1. kvartal 2012, idet marts ikke er talt med.
B36: 3) Lønsumsforbruget inkluderer egentlig løn, over- og merarbejde, stævningsmænd, refusioner og pensionsbidrag og er i faste priser.

Sheet Årsværk_Pers.kat
B2: ÅRSVÆRKSFORBRUG 2012 OG 2013
B4: EID | C4: Ret | D4: Jur | E4: Kon | F4: Elev | G4: Fleks | H4: Øvr. | I4: I ALT | J4: Jur | K4: Kon | L4: Elev | M4: Fleks | N4: Øvr. | O4: I ALT | P4: Jur | Q4: Kon | R4: Elev | S4: Fleks | T4: Øvr. | U4: I ALT | V4: Jur | W4: Kon | X4: Elev | Y4: Fleks | Z4: Øvr. | AA4: I ALT
D5: 2012 | J5: 2013 | P5: 2012 | V5: 2013
D6: - absolutte tal - | J6: - absolutte tal - | P6: - indeks - | V6: - indeks -
C8: SAMLET BYRETTERNE | D8: 459.63178 | E8: 907.40026 | F8: 85.02164 | G8: 56.91431 | H8: 95.24906 | I8: 1604.21705 | J8: =SUM(J10:J33) -> 447.00301 | K8: =SUM(K10:K33) -> 857.5527 | L8: =SUM(L10:L33) -> 86.09059 | M8: 49.0004 | N8: 91.93319 | O8: =SUM(J8:N8) -> 1531.57989 | P8: 100 | Q8: 100 | R8: 100 | S8: 100 | T8: 100 | U8: 100 | V8: =J8*100/D8 -> 97.25241584 | W8: =K8*100/E8 -> 94.50655216 | X8: =L8*100/F8 -> 101.2572681 | Y8: 86.09504358 | Z8: 96.5187373 | AA8: 95.47211146
B10: 901 | C10: Retten i Hjørring | D10: 14.10477 | E10: 28.56927 | F10: 3.7465 | G10: 4.64599 | H10: 3.04485 | I10: =D10+E10+F10+G10+H10 -> 54.11138 | J10: 14.51677 | K10: 29.3254 | L10: 3.14088 | M10: 3.68865 | N10: 2.8043 | O10: =J10+K10+L10+M10+N10 -> 53.476 | P10: 100 | Q10: 100 | R10: 100 | S10: 100 | T10: 100 | U10: 100 | V10: =J10*100/D10 -> 102.9209976 | W10: =K10*100/E10 -> 102.646655 | X10: =L10*100/F10 -> 83.83504604 | Y10: 79.39427334 | Z10: 92.09977503 | AA10: 98.82579228
B11: 902 | C11: Retten i Aalborg | D11: 20.59074 | E11: 45.10918 | F11: 3.87888 | G11: 1.67289 | H11: 3.78775 | I11: =D11+E11+F11+G11+H11 -> 75.03944 | J11: 20.77576 | K11: 43.97071 | L11: 4.15313 | M11: 2.38823 | N11: 4.31774 | O11: =J11+K11+L11+M11+N11 -> 75.60557 | P11: 100 | Q11: 100 | R11: 100 | S11: 100 | T11: 100 | U11: 100 | V11: =J11*100/D11 -> 100.8985593 | W11: 97.47618999 | X11: 107.0703399 | Y11: 142.7607314 | Z11: 113.9922117 | AA11: 100.7544433
B12: 903 | C12: Retten i Randers | D12: 16.67219 | E12: 31.22478 | F12: 3.54081 | G12: 2.00006 | H12: 4.10136 | I12: 57.5392 | J12: 14.54448 | K12: 28.09834 | L12: 3.12919 | M12: 2.00006 | N12: 3.58361 | O12: 51.35568 | P12: 100 | Q12: 100 | R12: 100 | S12: 100 | T12: 100 | U12: 100 | V12: 87.23796934 | W12: 89.98731136 | X12: 88.37497635 | Y12: 100 | Z12: 87.37613865 | AA12: 89.25337857
B13: 904 | C13: Retten i Århus | D13: 26.02169 | E13: 50.21494 | F13: 3.00009 | G13: 3.4045 | H13: 5.59746 | I13: 88.23868 | J13: 25.22725 | K13: 45.35235 | L13: 2.77844 | M13: 4.75658 | N13: 5.87589 | O13: 83.99051 | P13: 100 | Q13: 100 | R13: 100 | S13: 100 | T13: 100 | U13: 100 | V13: 96.94700844 | W13: 90.31644765 | X13: 92.61188831 | Y13: 139.7144955 | Z13: 104.9742204 | AA13: 95.18559208
B14: 905 | C14: Retten i Viborg | D14: 15.22501 | E14: 30.18385 | F14: 4.11538 | G14: 2.00006 | H14: 3.01716 | I14: 54.54146 | J14: 15.00269 | K14: 28.03999 | L14: 4.15924 | M14: 2.00006 | N14: 3.88266 | O14: 53.08464 | P14: 100 | Q14: 100 | R14: 100 | S14: 100 | T14: 100 | U14: 100 | V14: 98.53977107 | W14: 92.89732754 | X14: 101.0657582 | Y14: 100 | Z14: 128.6859166 | AA14: 97.32896772
B15: 906 | C15: Retten i Holstebro | D15: 10.21529 | E15: 21.61701 | F15: 2.14111 | G15: 5.71265 | H15: 3.37466 | I15: 43.06072 | J15: 9.67165 | K15: 20.53304 | L15: 2.33142 | M15: 3.14224 | N15: 2.72321 | O15: 38.40156 | P15: 100 | Q15: 100 | R15: 100 | S15: 100 | T15: 100 | U15: 100 | V15: 94.6781736 | W15: 94.98556923 | X15: 108.8883803 | Y15: 55.00494517 | Z15: 80.69583306 | AA15: 89.180023
B16: 907 | C16: Retten i Herning | D16: 11.80635 | E16: 21.44495 | F16: 2.59935 | G16: 0 | H16: 3.06506 | I16: 38.91571 | J16: 11.84085 | K16: 20.75833 | L16: 4.06072 | M16: 0 | N16: 2.11002 | O16: 38.76992 | P16: 100 | Q16: 100 | R16: 100 | S16: 100 | T16: 100 | U16: 100 | V16: 100.2922156 | W16: 96.79822056 | X16: 156.2205936 | Y16: - | Z16: 68.84106673 | AA16: 99.62536981
B17: 908 | C17: Retten i Horsens | D17: 14.55331 | E17: 24.84131 | F17: 4.08032 | G17: 3.62058 | H17: 2.99239 | I17: 50.08791 | J17: 14.06581 | K17: 25.31688 | L17: 3.93888 | M17: 3.56822 | N17: 3.00009 | O17: 49.88988 | P17: 100 | Q17: 100 | R17: 100 | S17: 100 | T17: 100 | U17: 100 | V17: 96.65024658 | W17: 101.914432 | X17: 96.53360521 | Y17: 98.55382287 | Z17: 100.2573194 | AA17: 99.60463513
B18: 909 | C18: Retten i Kolding | D18: 20.86366 | E18: 37.06553 | F18: 3.0485 | G18: 2.75624 | H18: 3.13261 | I18: 66.86654 | J18: 21.33572 | K18: 37.2161 | L18: 3.41299 | M18: 2.54206 | N18: 3.02865 | O18: 67.53552 | P18: 100 | Q18: 100 | R18: 100 | S18: 100 | T18: 100 | U18: 100 | V18: 102.2625944 | W18: 100.4062265 | X18: 111.956372 | Y18: 92.22926886 | Z18: 96.68136155 | AA18: 101.0004705
B19: 910 | C19: Retten i Esbjerg | D19: 15.25467 | E19: 30.38967 | F19: 2.46076 | G19: 3.71055 | H19: 2.2123 | I19: 54.02795 | J19: 14.92874 | K19: 29.74744 | L19: 3.33347 | M19: 4.06512 | N19: 2.19967 | O19: 54.27444 | P19: 100 | Q19: 100 | R19: 100 | S19: 100 | T19: 100 | U19: 100 | V19: 97.86340839 | W19: 97.88668321 | X19: 135.4650596 | Y19: 109.5557262 | Z19: 99.42910094 | AA19: 100.4562268
B20: 911 | C20: Retten i Sønderborg | D20: 17.06251 | E20: 36.23841 | F20: 3.97508 | G20: 0.99122 | H20: 3.80041 | I20: 62.06763 | J20: 17.36145 | K20: 33.50583 | L20: 3.92367 | M20: 0.5 | N20: 3.12689 | O20: 58.41784 | P20: 100 | Q20: 100 | R20: 100 | S20: 100 | T20: 100 | U20: 100 | V20: 101.7520283 | W20: 92.45943738 | X20: 98.7066927 | Y20: 50.44288856 | Z20: 82.27770162 | AA20: 94.11965625
B21: 912 | C21: Retten i Odense | D21: 22.50138 | E21: 47.21948 | F21: 2.62713 | G21: 2.64824 | H21: 4.77143 | I21: 79.76766 | J21: 21.81471 | K21: 45.22965 | L21: 3.99049 | M21: 2.00006 | N21: 4.82805 | O21: 77.86296 | P21: 100 | Q21: 100 | R21: 100 | S21: 100 | T21: 100 | U21: 100 | V21: 96.9483205 | W21: 95.78599764 | X21: 151.8954144 | Y21: 75.52412168 | Z21: 101.1866464 | AA21: 97.6121902
B22: 913 | C22: Retten i Svendborg | D22: 10.24366 | E22: 22.38851 | F22: 3.44985 | G22: 0.91669 | H22: 3.01963 | I22: 40.01834 | J22: 10.30021 | K22: 21.70681 | L22: 1.35926 | M22: 1.00003 | N22: 2.59467 | O22: 36.96098 | P22: 100 | Q22: 100 | R22: 100 | S22: 100 | T22: 100 | U22: 100 | V22: 100.5520488 | W22: 96.95513458 | X22: 39.40055365 | Y22: 109.0914049 | Z22: 85.92675262 | AA22: 92.36010289
B23: 914 | C23: Retten i Nykøbing F. | D23: 14.72243 | E23: 33.51816 | F23: 2.22543 | G23: 0.20838 | H23: 3.56414 | I23: 54.23854 | J23: 13.97805 | K23: 30.55141 | L23: 2.00008 | M23: 0.04523 | N23: 3.3584 | O23: 49.93317 | P23: 100 | Q23: 100 | R23: 100 | S23: 100 | T23: 100 | U23: 100 | V23: 94.94390532 | W23: 91.14882798 | X23: 89.87386707 | Y23: 21.70553796 | Z23: 94.22749948 | AA23: 92.06215728
B24: 915 | C24: Retten i Næstved | D24: 20.10287 | E24: 38.25697 | F24: 3.89894 | G24: 3.29384 | H24: 4.19783 | I24: 69.75045 | J24: 18.70124 | K24: 35.80973 | L24: 2.42782 | M24: 2.82572 | N24: 3.69302 | O24: 63.45753 | P24: 100 | Q24: 100 | R24: 100 | S24: 100 | T24: 100 | U24: 100 | V24: 93.02771196 | W24: 93.60315258 | X24: 62.26871919 | Y24: 85.78801642 | Z24: 87.97450111 | AA24: 90.97795068
B25: 916 | C25: Retten i Holbæk | D25: 13.01914 | E25: 28.78562 | F25: 2.99503 | G25: 3.00009 | H25: 2.47674 | I25: 50.27662 | J25: 12.88079 | K25: 27.5082 | L25: 3.13076 | M25: 3.00009 | N25: 2.50507 | O25: 49.02491 | P25: 100 | Q25: 100 | R25: 100 | S25: 100 | T25: 100 | U25: 100 | V25: 98.9373338 | W25: 95.56229812 | X25: 104.5318411 | Y25: 100 | Z25: 101.1438423 | AA25: 97.51035372
B26: 917 | C26: Retten i Roskilde | D26: 22.17122 | E26: 46.84143 | F26: 3.07141 | G26: 1.00003 | H26: 4.09457 | I26: 77.17866 | J26: 22.48327 | K26: 41.59892 | L26: 4.98637 | M26: 1.00003 | N26: 3.86018 | O26: 73.92877 | P26: 100 | Q26: 100 | R26: 100 | S26: 100 | T26: 100 | U26: 100 | V26: 101.4074553 | W26: 88.80796338 | X26: 162.3479119 | Y26: 100 | Z26: 94.27558938 | AA26: 95.78913394
B27: 918 | C27: Retten i Hillerød | D27: 14.99594 | E27: 27.85588 | F27: 3.83042 | G27: 2.75006 | H27: 4.39316 | I27: 53.82546 | J27: 14.9175 | K27: 25.88941 | L27: 4.08882 | M27: 2.3166 | N27: 4.73885 | O27: 51.95118 | P27: 100 | Q27: 100 | R27: 100 | S27: 100 | T27: 100 | U27: 100 | V27: 99.47692509 | W27: 92.94055689 | X27: 106.7459965 | Y27: 84.23816208 | Z27: 107.8688234 | AA27: 96.51785605
B28: 919 | C28: Retten i Helsingør | D28: 15.51454 | E28: 28.7663 | F28: 4.20646 | G28: 2.90801 | H28: 2.89246 | I28: 54.28777 | J28: 14.47586 | K28: 25.18211 | L28: 4.20492 | M28: 2.11567 | N28: 1.86496 | O28: 47.84352 | P28: 100 | Q28: 100 | R28: 100 | S28: 100 | T28: 100 | U28: 100 | V28: 93.30511894 | W28: 87.54031627 | X28: 99.96338964 | Y28: 72.75318861 | Z28: 64.47660469 | AA28: 88.12946268
B29: 920 | C29: Retten i Lyngby | D29: 19.85793 | E29: 33.78184 | F29: 3.05346 | G29: 0.42 | H29: 4.0061 | I29: 61.11933 | J29: 19.51242 | K29: 29.6227 | L29: 3.43812 | M29: -0.4284 | N29: 3.59755 | O29: 55.74239 | P29: 100 | Q29: 100 | R29: 100 | S29: 100 | T29: 100 | U29: 100 | V29: 98.26009055 | W29: 87.68823723 | X29: 112.5975123 | Y29: - | Z29: 89.80180225 | AA29: 91.20255409
B30: 921 | C30: Retten i Glostrup | D30: 35.24743 | E30: 70.09358 | F30: 4.92971 | G30: 3.89924 | H30: 8.16139 | I30: 122.33135 | J30: 32.60759 | K30: 66.42532 | L30: 5.04276 | M30: 3.2249 | N30: 8.10815 | O30: 115.40872 | P30: 100 | Q30: 100 | R30: 100 | S30: 100 | T30: 100 | U30: 100 | V30: 92.51054616 | W30: 94.76662485 | X30: 102.2932383 | Y30: 82.70586063 | Z30: 99.34766014 | AA30: 94.34108264
B31: 922 | C31: Retten på Frederiksberg | D31: 25.54098 | E31: 48.4444 | F31: 3.99452 | G31: 3.00009 | H31: 4.97794 | I31: 85.95793 | J31: 23.83584 | K31: 44.71399 | L31: 2.99709 | M31: 2.39933 | N31: 5.9791 | O31: 79.92535 | P31: 100 | Q31: 100 | R31: 100 | S31: 100 | T31: 100 | U31: 100 | V31: 93.32390535 | W31: 92.29960532 | X31: 75.03004116 | Y31: 79.97526741 | Z31: 120.1119339 | AA31: 92.98193896
B32: 923 | C32: Københavns Byret | D32: 59.44318 | E32: 115.9395 | F32: 8.07091 | G32: 2.3549 | H32: 9.49094 | I32: 195.29943 | J32: 58.73651 | K32: 113.64497 | L32: 8.08355 | M32: 0.84991 | N32: 8.87378 | O32: 190.18872 | P32: 100 | Q32: 100 | R32: 100 | S32: 100 | T32: 100 | U32: 100 | V32: 98.81118406 | W32: 98.02092471 | X32: 100.1566118 | Y32: 36.09112913 | Z32: 93.4973775 | AA32: 97.38314136
B33: 924 | C33: Retten på Bornholm | D33: 3.90089 | E33: 8.60969 | F33: 2.08159 | G33: 0 | H33: 1.07672 | I33: 15.66889 | J33: 3.48785 | K33: 7.80507 | L33: 1.97852 | M33: 1e-05 | N33: 1.27868 | O33: 14.55013 | P33: 100 | Q33: 100 | R33: 100 | S33: - | T33: 100 | U33: 100 | V33: 89.41164709 | W33: 90.65448349 | X33: 95.04849658 | Y33: - | Z33: 118.7569656 | AA33: 92.859992
B35: 1) Det opgjorte årsværksforbrug er inkl. de korrektioner, der foretages som led i produktivitetsberegningen, hvorfor det ikke kan stemmes af i forhold til eksempelvis prognoseværktøjet SOL.
O37: =O8/24 -> 63.81582875

Sheet Årsværk_Sagsområder
B2: ÅRSVÆRKSFORBRUG DE ENKELTE SAGSOMRÅDER I 2013
B4: EID | C4: Ret | E4: Straf | G4: Civil | I4: Foged | K4: Skifte | M4: Notarial
E5: Årsværk | F5: % | G5: Årsværk | H5: % | I5: Årsværk | J5: % | K5: Årsværk | L5: % | M5: Årsværk | N5: %
C7: SAMLET BYRETTERNE | D7: Jurister | E7: 157.7635704 | F7: 0.3529362597 | G7: 163.9189593 | H7: 0.3667066118 | I7: 46.07426021 | J7: 0.1030737136 | K7: 42.62006469 | L7: 0.09534625884 | M7: 0.2691374848 | N7: 0.0006020932272
D8: Kontor | E8: 198.1133869 | F8: 0.2310218216 | G8: 159.4175777 | H8: 0.1858982868 | I8: 187.9284919 | J8: 0.219145123 | K8: 144.7791897 | L8: 0.1688283294 | M8: 12.0539198 | N8: 0.01405618546
D9: Elev | E9: 17.04507965 | F9: 0.1979900434 | G9: 15.33982301 | H9: 0.1781823426 | I9: 20.28967919 | J9: 0.2356782453 | K9: 17.62058465 | L9: 0.2046749204 | M9: 0.1071532489 | N9: 0.001244656924
D10: Fleks | E10: 5.470865379 | F10: 0.1116494252 | G10: 5.817624242 | H10: 0.1187260804 | I10: 6.983511419 | J10: 0.1425195069 | K10: 5.727443312 | L10: 0.1168856679 | M10: 0.9800377209 | N10: 0.02000061062
D11: Øvrige | E11: 4.719697188 | F11: 0.05133833807 | G11: 5.323946324 | H11: 0.05791103653 | I11: 5.304800203 | J11: 0.05770277527 | K11: 1.386071426 | L11: 0.01507694257 | M11: 0.4138437768 | N11: 0.004501570943
B13: 901 | C13: Retten i Hjørring | D13: Jurister | E13: 4.487633203 | F13: 0.3091344151 | G13: 5.931924939 | H13: 0.4086256749 | I13: 1.015304357 | J13: 0.0699401008 | K13: 1.369644451 | L13: 0.09434911839 | M13: 0.0006837577175 | N13: 4.710122965e-05
B14: 901 | C14: Retten i Hjørring | D14: Kontor | E14: 5.446594903 | F14: 0.1857296031 | G14: 5.634631652 | H14: 0.192141681 | I14: 7.320233897 | J14: 0.2496209394 | K14: 6.091109037 | L14: 0.2077076199 | M14: 0.3598709468 | N14: 0.01227164666
B15: 901 | C15: Retten i Hjørring | D15: Elev | E15: 0.8042257426 | F15: 0.2560510884 | G15: 0.5454567013 | H15: 0.1736636552 | I15: 0.2140846995 | J15: 0.06816073822 | K15: 0.5277316891 | L15: 0.1680203284 | M15: 0.002854837507 | N15: 0.0009089291877
B16: 901 | C16: Retten i Hjørring | D16: Fleks | E16: 1.367752889 | F16: 0.3708003983 | G16: 1.05513149 | H16: 0.286048145 | I16: 0.4836702719 | J16: 0.1311239266 | K16: 0.001279787681 | L16: 0.0003469528638 | M16: 0.371758826 | N16: 0.1007845217
B17: 901 | C17: Retten i Hjørring | D17: Øvrige | E17: 0.0906180592 | F17: 0.03231396755 | G17: 0.06940043265 | H17: 0.02474786316 | I17: 0.1016597904 | J17: 0.03625139622 | K17: 0.00380326549 | L17: 0.001356226327 | M17: 0 | N17: 0
B18: 902 | C18: Retten i Aalborg | D18: Jurister | E18: 6.924574663 | F18: 0.3333006669 | G18: 8.383446583 | H18: 0.4035205731 | I18: 1.877922933 | J18: 0.0903900956 | K18: 2.740487397 | L18: 0.1319079253 | M18: 0.003274440107 | N18: 0.0001576086799
B19: 902 | C19: Retten i Aalborg | D19: Kontor | E19: 9.291435155 | F19: 0.2113096458 | G19: 9.167153448 | H19: 0.20848318 | I19: 8.759526935 | J19: 0.1992127699 | K19: 8.669600099 | L19: 0.1971676168 | M19: 0.7178813713 | N19: 0.01632635387
B20: 902 | C20: Retten i Aalborg | D20: Elev | E20: 0.9244218193 | F20: 0.2225843687 | G20: 0.9209630879 | H20: 0.2217515676 | I20: 1.10661375 | J20: 0.2664529523 | K20: 1.087794931 | L20: 0.2619217147 | M20: 0 | N20: 0
B21: 902 | C21: Retten i Aalborg | D21: Fleks | E21: 0.116172649 | F21: 0.04864382784 | G21: 0.03519788909 | H21: 0.01473806505 | I21: 0.117964922 | J21: 0.04939428865 | K21: 0.5268111409 | L21: 0.2205864347 | M21: 0 | N21: 0
B22: 902 | C22: Retten i Aalborg | D22: Øvrige | E22: 1.496577552 | F22: 0.3466113179 | G22: 0.02895687226 | H22: 0.006706488176 | I22: 1.515506286 | J22: 0.3509952627 | K22: 0.2389141818 | L22: 0.05533315618 | M22: 0 | N22: 0
B23: 903 | C23: Retten i Randers | D23: Jurister | E23: 4.162533406 | F23: 0.2861933466 | G23: 5.624375038 | H23: 0.3867016929 | I23: 1.401465213 | J23: 0.0963571893 | K23: 1.484469315 | L23: 0.1020641037 | M23: 0.006446774665 | N23: 0.0004432454557
B24: 903 | C24: Retten i Randers | D24: Kontor | E24: 5.313896899 | F24: 0.1891178233 | G24: 6.907163113 | H24: 0.2458210383 | I24: 5.727022478 | J24: 0.2038206698 | K24: 5.776882605 | L24: 0.2055951563 | M24: 0.3523342595 | N24: 0.0125393265
B25: 903 | C25: Retten i Randers | D25: Elev | E25: 0.3803786793 | F25: 0.1215581922 | G25: 0.3589289711 | H25: 0.1147034763 | I25: 0.7900416203 | J25: 0.2524748003 | K25: 1.272673213 | L25: 0.4067101114 | M25: 0 | N25: 0
B26: 903 | C26: Retten i Randers | D26: Fleks | E26: 0 | F26: 0 | G26: 0 | H26: 0 | I26: 0 | J26: 0 | K26: 0 | L26: 0 | M26: 0 | N26: 0
B27: 903 | C27: Retten i Randers | D27: Øvrige | E27: 0 | F27: 0 | G27: 0.007460076528 | H27: 0.002081721094 | I27: 0.3072191111 | J27: 0.08572894681 | K27: 0 | L27: 0 | M27: 0 | N27: 0
B28: 904 | C28: Retten i Århus | D28: Jurister | E28: 8.443833605 | F28: 0.3347108228 | G28: 9.264065496 | H28: 0.3672245487 | I28: 2.513764535 | J28: 0.09964481007 | K28: 3.263099973 | L28: 0.1293482236 | M28: 0.01515586357 | N28: 0.0006007735114
B29: 904 | C29: Retten i Århus | D29: Kontor | E29: 13.21664566 | F29: 0.2914214074 | G29: 9.493019145 | H29: 0.2093170287 | I29: 7.611828984 | J29: 0.1678375869 | K29: 7.17255105 | L29: 0.1581516956 | M29: 0.7676965288 | N29: 0.01692738146
B30: 904 | C30: Retten i Århus | D30: Elev | E30: 0.3677331106 | F30: 0.132352367 | G30: 0.7013729271 | H30: 0.2524340735 | I30: 0.7505058418 | J30: 0.270117707 | K30: 0.9054327358 | L30: 0.3258780956 | M30: 0.006016234255 | N30: 0.002165328118
B31: 904 | C31: Retten i Århus | D31: Fleks | E31: 0.002111741635 | F31: 0.0004439621818 | G31: 1.105833319 | H31: 0.2324849616 | I31: 1.189145 | J31: 0.25 | K31: 0 | L31: 0 | M31: 0 | N31: 0
B32: 904 | C32: Retten i Århus | D32: Øvrige | E32: 0.7101880272 | F32: 0.1208647587 | G32: 1.318912233 | H32: 0.2244616957 | I32: 0.0006482485906 | J32: 0.0001103234728 | K32: 0 | L32: 0 | M32: 0 | N32: 0
B33: 905 | C33: Retten i Viborg | D33: Jurister | E33: 4.09719745 | F33: 0.2730975212 | G33: 6.431157255 | H33: 0.4286669427 | I33: 1.647948647 | J33: 0.1098435445 | K33: 1.394118814 | L33: 0.0929245898 | M33: 0.001971542101 | N33: 0.0001314125734
B34: 905 | C34: Retten i Viborg | D34: Kontor | E34: 4.555765972 | F34: 0.1624738801 | G34: 6.141348176 | H34: 0.2190210544 | I34: 7.345591094 | J34: 0.2619683921 | K34: 4.885916406 | L34: 0.1742481508 | M34: 0.53316949 | N34: 0.01901461056
B35: 905 | C35: Retten i Viborg | D35: Elev | E35: 0.5415039895 | F35: 0.1301930135 | G35: 0.474737269 | H35: 0.1141403884 | I35: 1.574346935 | J35: 0.3785179347 | K35: 0.8967830033 | L35: 0.215612228 | M35: 0.0004267232606 | N35: 0.0001025964505
B36: 905 | C36: Retten i Viborg | D36: Fleks | E36: 0.3251578204 | F36: 0.162574033 | G36: 0.30638581 | H36: 0.1531883094 | I36: 0.5510207779 | J36: 0.2755021239 | K36: 0 | L36: 0 | M36: 0 | N36: 0
B37: 905 | C37: Retten i Viborg | D37: Øvrige | E37: 0.1647591038 | F37: 0.04243459479 | G37: 0.2681002899 | H37: 0.069050674 | I37: 0.8291957692 | J37: 0.2135638375 | K37: 0.03065128618 | L37: 0.007894403882 | M37: 0.001783627479 | N37: 0.0004593828662
B38: 906 | C38: Retten i Holstebro | D38: Jurister | E38: 3.3014905 | F38: 0.3413575244 | G38: 2.620686404 | H38: 0.2709658026 | I38: 0.909311546 | J38: 0.09401824363 | K38: 1.612801748 | L38: 0.1667555948 | M38: 0.005373354089 | N38: 0.0005555778061
B39: 906 | C39: Retten i Holstebro | D39: Kontor | E39: 4.728504215 | F39: 0.230287586 | G39: 3.452941357 | H39: 0.1681651308 | I39: 3.613610858 | J39: 0.1759900559 | K39: 5.123838917 | L39: 0.2495411745 | M39: 0.2331035973 | N39: 0.0113526101
B40: 906 | C40: Retten i Holstebro | D40: Elev | E40: 0.1075322775 | F40: 0.0461230827 | G40: 0.4807775835 | H40: 0.2062166334 | I40: 0.9842885587 | J40: 0.4221841447 | K40: 0.5077155748 | L40: 0.2177709614 | M40: 0.0001298506063 | N40: 5.56959305e-05
B41: 906 | C41: Retten i Holstebro | D41: Fleks | E41: 0 | F41: 0 | G41: 0 | H41: 0 | I41: 0 | J41: 0 | K41: 1.14218572 | L41: 0.3634941062 | M41: 0 | N41: 0
B42: 906 | C42: Retten i Holstebro | D42: Øvrige | E42: 0.06075352329 | F42: 0.02230952563 | G42: 0.01610559066 | H42: 0.005914193419 | I42: 0.001119307528 | J42: 0.0004110250507 | K42: 0.01528185492 | L42: 0.005611706374 | M42: 0.136480669 | N42: 0.05011757044
B43: 907 | C43: Retten i Herning | D43: Jurister | E43: 4.392349074 | F43: 0.370948798 | G43: 3.909294584 | H43: 0.3301532056 | I43: 1.051669671 | J43: 0.08881707571 | K43: 1.644741888 | L43: 0.1389040388 | M43: 0.06178643967 | N43: 0.005218074688
B44: 907 | C44: Retten i Herning | D44: Kontor | E44: 3.944939428 | F44: 0.1900412715 | G44: 3.450789582 | H44: 0.1662363775 | I44: 3.785466153 | J44: 0.1823588966 | K44: 5.410987088 | L44: 0.2606658189 | M44: 0.2707226823 | N44: 0.01304164075
B45: 907 | C45: Retten i Herning | D45: Elev | E45: 0.4513050595 | F45: 0.1111391722 | G45: 0.4263395571 | H45: 0.104991124 | I45: 0.9542222825 | J45: 0.234988446 | K45: 0.8828625902 | L45: 0.2174152835 | M45: 0.003299958177 | N45: 0.0008126534646
B46: 907 | C46: Retten i Herning | D46: Fleks | E46: 0 | F46: 0 | G46: 0 | H46: 0 | I46: 0 | J46: 0 | K46: 0 | L46: 0 | M46: 0 | N46: 0
B47: 907 | C47: Retten i Herning | D47: Øvrige | E47: 0 | F47: 0 | G47: 0 | H47: 0 | I47: 0 | J47: 0 | K47: 0 | L47: 0 | M47: 0 | N47: 0
B48: 908 | C48: Retten i Horsens | D48: Jurister | E48: 4.169451954 | F48: 0.2964245894 | G48: 5.498057492 | H48: 0.3908809725 | I48: 1.582957386 | J48: 0.1125393693 | K48: 1.646562829 | L48: 0.1170613586 | M48: 0.01538307304 | N48: 0.001093649996
B49: 908 | C49: Retten i Horsens | D49: Kontor | E49: 3.645213897 | F49: 0.1439835358 | G49: 6.119825091 | H49: 0.2417290397 | I49: 6.707200885 | J49: 0.2649299947 | K49: 4.078925977 | L49: 0.1611148758 | M49: 0.3961810611 | N49: 0.01564888964
B50: 908 | C50: Retten i Horsens | D50: Elev | E50: 0.5515340935 | F50: 0.140023076 | G50: 1.048953168 | H50: 0.2663074701 | I50: 1.006017267 | J50: 0.2554069348 | K50: 0.510013068 | L50: 0.1294817481 | M50: 0 | N50: 0
B51: 908 | C51: Retten i Horsens | D51: Fleks | E51: 0.09014253074 | F51: 0.02526260453 | G51: 1.040099905 | H51: 0.2914898478 | I51: 0.005128514541 | J51: 0.00143727532 | K51: 1.430261619 | L51: 0.4008333619 | M51: 0 | N51: 0
B52: 908 | C52: Retten i Horsens | D52: Øvrige | E52: 0.001546597433 | F52: 0.0005155170123 | G52: 0.01457867379 | H52: 0.004859412149 | I52: 0.115627588 | J52: 0.03854137308 | K52: 0 | L52: 0 | M52: 0.001988482698 | N52: 0.0006628076819
B53: 909 | C53: Retten i Kolding | D53: Jurister | E53: 7.1735494 | F53: 0.3362225132 | G53: 8.800377061 | H53: 0.4124715295 | I53: 2.072028647 | J53: 0.09711547804 | K53: 1.628302635 | L53: 0.07631814794 | M53: 0.003872674338 | N53: 0.000181511303
B54: 909 | C54: Retten i Kolding | D54: Kontor | E54: 8.290267492 | F54: 0.2227602433 | G54: 7.558327841 | H54: 0.2030929582 | I54: 7.00084234 | J54: 0.1881132719 | K54: 7.211352995 | L54: 0.1937697124 | M54: 0.6668579649 | N54: 0.01791853431
B55: 909 | C55: Retten i Kolding | D55: Elev | E55: 0.7999566481 | F55: 0.2343858752 | G55: 0.5271379385 | H55: 0.1544504785 | I55: 1.097423591 | J55: 0.3215431605 | K55: 0.7802748789 | L55: 0.2286191518 | M55: 0.04618950663 | N55: 0.0135334433
B56: 909 | C56: Retten i Kolding | D56: Fleks | E56: 0.8473533333 | F56: 0.3333333333 | G56: 0 | H56: 0 | I56: 0.8473533333 | J56: 0.3333333333 | K56: 0 | L56: 0 | M56: 0 | N56: 0
B57: 909 | C57: Retten i Kolding | D57: Øvrige | E57: 0 | F57: 0 | G57: 0 | H57: 0 | I57: 0 | J57: 0 | K57: 0 | L57: 0 | M57: 0 | N57: 0
B58: 910 | C58: Retten i Esbjerg | D58: Jurister | E58: 6.588080347 | F58: 0.4413018344 | G58: 5.066758919 | H58: 0.3393962866 | I58: 1.254770861 | J58: 0.08405068755 | K58: 1.022081151 | L58: 0.06846399298 | M58: 0.01279525253 | N58: 0.0008570885773
B59: 910 | C59: Retten i Esbjerg | D59: Kontor | E59: 6.960597247 | F59: 0.2339897903 | G59: 6.634590017 | H59: 0.223030621 | I59: 6.651921559 | J59: 0.223613244 | K59: 5.184153269 | L59: 0.1742722489 | M59: 0.2386868896 | N59: 0.008023779174
B60: 910 | C60: Retten i Esbjerg | D60: Elev | E60: 0.8242653077 | F60: 0.2472694543 | G60: 0.3781387735 | H60: 0.1134369811 | I60: 0.9324678921 | J60: 0.2797288988 | K60: 0.9894772608 | L60: 0.2968310082 | M60: 0.001394035524 | N60: 0.0004181935112
B61: 910 | C61: Retten i Esbjerg | D61: Fleks | E61: 0.350881584 | F61: 0.08631518478 | G61: 0.006171134585 | H61: 0.001518069475 | I61: 0 | J61: 0 | K61: 1.690949657 | L61: 0.4159654959 | M61: 0 | N61: 0
B62: 910 | C62: Retten i Esbjerg | D62: Øvrige | E62: 0.0004182102428 | F62: 0.0001901240835 | G62: 0.0008682840435 | H62: 0.0003947337753 | I62: 0.02062174645 | J62: 0.009374927354 | K62: 0 | L62: 0 | M62: 0 | N62: 0
B63: 911 | C63: Retten i Sønderborg | D63: Jurister | E63: 5.562131378 | F63: 0.3203725137 | G63: 7.490042574 | H63: 0.431418031 | I63: 1.411309886 | J63: 0.08128986263 | K63: 1.16339755 | L63: 0.06701039085 | M63: 0.002870031166 | N63: 0.0001653105683
B64: 911 | C64: Retten i Sønderborg | D64: Kontor | E64: 7.401712716 | F64: 0.2209082036 | G64: 6.887181121 | H64: 0.205551724 | I64: 6.650953019 | J64: 0.1985013658 | K64: 6.232673712 | L64: 0.1860175889 | M64: 0.4871897981 | N64: 0.01454044858
B65: 911 | C65: Retten i Sønderborg | D65: Elev | E65: 0.6820937233 | F65: 0.1738407469 | G65: 0.9963881555 | H65: 0.2539429044 | I65: 1.0424788 | J65: 0.2656897242 | K65: 0.2551482669 | L65: 0.06502796281 | M65: 0.00257728831 | N65: 0.0006568565424
B66: 911 | C66: Retten i Sønderborg | D66: Fleks | F66: 0 | H66: 0 | J66: 0 | L66: 0 | N66: 0
B67: 911 | C67: Retten i Sønderborg | D67: Øvrige | E67: 0 | F67: 0 | G67: 0.02918778175 | H67: 0.009334444688 | I67: 0.03939863057 | J67: 0.01259994134 | K67: 0.008898641678 | L67: 0.00284584417 | M67: 0 | N67: 0
B68: 912 | C68: Retten i Odense | D68: Jurister | E68: 8.526130697 | F68: 0.3908431832 | G68: 6.718656814 | H68: 0.3079874458 | I68: 2.792172507 | J68: 0.1279949404 | K68: 2.614737984 | L68: 0.1198612305 | M68: 0.001517618002 | N68: 6.956856185e-05
B69: 912 | C69: Retten i Odense | D69: Kontor | E69: 10.01750587 | F69: 0.2214809505 | G69: 7.886246993 | H69: 0.1743601154 | I69: 12.04425029 | J69: 0.2662910346 | K69: 8.802773556 | L69: 0.1946239592 | M69: 0.761342939 | N69: 0.01683282844
B70: 912 | C70: Retten i Odense | D70: Elev | E70: 0.631179737 | F70: 0.1581709858 | G70: 0.8499632163 | H70: 0.2129972049 | I70: 0.9362666802 | J70: 0.2346244898 | K70: 1.140809796 | L70: 0.2858821339 | M70: 0 | N70: 0
B71: 912 | C71: Retten i Odense | D71: Fleks | E71: 0 | F71: 0 | G71: 0 | H71: 0 | I71: 0 | J71: 0 | K71: 0 | L71: 0 | M71: 0 | N71: 0
B72: 912 | C72: Retten i Odense | D72: Øvrige | E72: 0.05923801119 | F72: 0.01226955214 | G72: 0.01604338484 | H72: 0.003322953334 | I72: 0.04221288658 | J72: 0.008743257956 | K72: 0.01615157097 | L72: 0.003345361164 | M72: 0 | N72: 0
B73: 913 | C73: Retten i Svendborg | D73: Jurister | E73: 3.665071072 | F73: 0.3558248882 | G73: 2.902793298 | H73: 0.2818188462 | I73: 0.8950367719 | J73: 0.08689500233 | K73: 1.989860819 | L73: 0.193186432 | M73: 0 | N73: 0
B74: 913 | C74: Retten i Svendborg | D74: Kontor | E74: 5.195312539 | F74: 0.2393402135 | G74: 4.271235636 | H74: 0.1967693842 | I74: 5.036548436 | J74: 0.2320261907 | K74: 4.770102925 | L74: 0.2197514478 | M74: 0.1128922438 | N74: 0.005200775414
B75: 913 | C75: Retten i Svendborg | D75: Elev | E75: 0.7326560169 | F75: 0.5390109449 | G75: 0.0001861277932 | H75: 0.0001369331792 | I75: 0.3787508419 | J75: 0.2786448817 | K75: 0.00857524711 | L75: 0.006308761466 | M75: 0 | N75: 0
B76: 913 | C76: Retten i Svendborg | D76: Fleks | E76: 0.1431610625 | F76: 0.1431567678 | G76: 0.00516672719 | H76: 0.005166572193 | I76: 0.0009754719013 | J76: 0.000975442638 | K76: 0.001507583083 | L76: 0.001507537857 | M76: 0.2949048954 | N76: 0.2948960486
B77: 913 | C77: Retten i Svendborg | D77: Øvrige | E77: 0 | F77: 0 | G77: 0 | H77: 0 | I77: 0.009461291043 | J77: 0.003646433282 | K77: 0 | L77: 0 | M77: 0 | N77: 0
B78: 914 | C78: Retten i Nykøbing F. | D78: Jurister | E78: 3.999815214 | F78: 0.2861497286 | G78: 3.762131841 | H78: 0.2691456849 | I78: 3.052944928 | J78: 0.2184099304 | K78: 1.867070681 | L78: 0.1335716127 | M78: 0.000173303733 | N78: 1.23982768e-05
B79: 914 | C79: Retten i Nykøbing F. | D79: Kontor | E79: 5.861410323 | F79: 0.1918540036 | G79: 3.996102179 | H79: 0.1307992718 | I79: 8.8461252 | J79: 0.2895488359 | K79: 6.070284069 | L79: 0.1986907992 | M79: 0.1950278819 | N79: 0.00638359676
B80: 914 | C80: Retten i Nykøbing F. | D80: Elev | E80: 0.4861592953 | F80: 0.2430699249 | G80: 0.4506211638 | H80: 0.2253015699 | I80: 0.365136609 | J80: 0.1825610021 | K80: 0.3123590139 | L80: 0.15617326 | M80: 0 | N80: 0
B81: 914 | C81: Retten i Nykøbing F. | D81: Fleks | E81: 0 | F81: 0 | G81: 0 | H81: 0 | I81: 0 | J81: 0 | K81: 0 | L81: 0 | M81: 0 | N81: 0
B82: 914 | C82: Retten i Nykøbing F. | D82: Øvrige | E82: 0 | F82: 0 | G82: 0.006363190389 | H82: 0.001894708906 | I82: 0 | J82: 0 | K82: 0 | L82: 0 | M82: 0 | N82: 0
B83: 915 | C83: Retten i Næstved | D83: Jurister | E83: 7.045394388 | F83: 0.3767340769 | G83: 5.460584016 | H83: 0.2919904785 | I83: 2.213642552 | J83: 0.118368758 | K83: 2.370329894 | L83: 0.1267472047 | M83: 0.002480394402 | N83: 0.000132632617
B84: 915 | C84: Retten i Næstved | D84: Kontor | E84: 6.183057925 | F84: 0.1726641872 | G84: 6.598386794 | H84: 0.1842624 | I84: 9.278675762 | J84: 0.2591104642 | K84: 6.219479496 | L84: 0.1736812731 | M84: 0.4040467294 | N84: 0.01128315487
B85: 915 | C85: Retten i Næstved | D85: Elev | E85: 0.4502838096 | F85: 0.1854683665 | G85: 0.550636515 | H85: 0.2268028581 | I85: 0.6449850896 | J85: 0.2656642954 | K85: 0.1086959175 | L85: 0.04477099516 | M85: 0.005443036175 | N85: 0.002241943873
B86: 915 | C86: Retten i Næstved | D86: Fleks | E86: 0.09665179493 | F86: 0.0342043072 | G86: 0.02284304772 | H86: 0.008083974249 | I86: 0.1270945816 | J86: 0.04497776906 | K86: 0 | L86: 0 | M86: 0 | N86: 0
B87: 915 | C87: Retten i Næstved | D87: Øvrige | E87: 0.1154581193 | F87: 0.03126387599 | G87: 0.02381483228 | H87: 0.006448606366 | I87: 0 | J87: 0 | K87: 0 | L87: 0 | M87: 0.007487002847 | N87: 0.00202733883
B88: 916 | C88: Retten i Holbæk | D88: Jurister | E88: 4.626383281 | F88: 0.3591692187 | G88: 3.811080948 | H88: 0.2958732304 | I88: 1.77875064 | J88: 0.1380932878 | K88: 1.736561706 | L88: 0.1348179503 | M88: 0.002385305158 | N88: 0.0001851831416
B89: 916 | C89: Retten i Holbæk | D89: Kontor | E89: 5.762069145 | F89: 0.2094673277 | G89: 4.393803636 | H89: 0.15972705 | I89: 7.023679748 | J89: 0.2553304014 | K89: 5.572178763 | L89: 0.2025642813 | M89: 0.3275867045 | N89: 0.01190869284
B90: 916 | C90: Retten i Holbæk | D90: Elev | E90: 0.2359852221 | F90: 0.0753763374 | G90: 0.3026439277 | H90: 0.09666787863 | I90: 0.657111206 | J90: 0.209888719 | K90: 0.8847636062 | L90: 0.2826034593 | M90: 0 | N90: 0
B91: 916 | C91: Retten i Holbæk | D91: Fleks | E91: 1.002004176 | F91: 0.3339913724 | G91: 0.9980558236 | H91: 0.3326752943 | I91: 0 | J91: 0 | K91: 0 | L91: 0 | M91: 0 | N91: 0
B92: 916 | C92: Retten i Holbæk | D92: Øvrige | E92: 0.1320432975 | F92: 0.05271042228 | G92: 0.01479254926 | H92: 0.005905044275 | I92: 0.01467991558 | J92: 0.005860081987 | K92: 0.006788926987 | L92: 0.002710074763 | M92: 0.008302605078 | N92: 0.003314320589
B93: 917 | C93: Retten i Roskilde | D93: Jurister | E93: 8.269951467 | F93: 0.3678268983 | G93: 6.929583218 | H93: 0.3082106481 | I93: 2.397135888 | J93: 0.1066186497 | K93: 2.420922458 | L93: 0.1076766172 | M93: 0 | N93: 0
B94: 917 | C94: Retten i Roskilde | D94: Kontor | E94: 9.736642484 | F94: 0.2340599824 | G94: 7.059599639 | H94: 0.1697063202 | I94: 9.736137046 | J94: 0.2340478322 | K94: 8.014739966 | L94: 0.1926670203 | M94: 0.5087508282 | N94: 0.01222990472
B95: 917 | C95: Retten i Roskilde | D95: Elev | E95: 1.622709524 | F95: 0.3254290243 | G95: 1.006878092 | H95: 0.2019260689 | I95: 0.71684041 | J95: 0.1437599717 | K95: 1.11635695 | L95: 0.2238816915 | M95: 0.008876769896 | N95: 0.001780206823
B96: 917 | C96: Retten i Roskilde | D96: Fleks | E96: 0 | F96: 0 | G96: 0 | H96: 0 | I96: 0 | J96: 0 | K96: 0 | L96: 0 | M96: 0 | N96: 0
B97: 917 | C97: Retten i Roskilde | D97: Øvrige | E97: 0.004381893496 | F97: 0.001135152634 | G97: 0 | H97: 0 | I97: 0.2485704801 | J97: 0.06439349462 | K97: 0 | L97: 0 | M97: 0 | N97: 0
B98: 918 | C98: Retten i Hillerød | D98: Jurister | E98: 4.573892381 | F98: 0.3066125277 | G98: 5.202789789 | H98: 0.3487708925 | I98: 1.512087453 | J98: 0.1013633285 | K98: 1.693749114 | L98: 0.1135410836 | M98: 0.01718835307 | N98: 0.001152227456
B99: 918 | C99: Retten i Hillerød | D99: Kontor | E99: 6.406971016 | F99: 0.2474745858 | G99: 4.334122531 | H99: 0.1674090885 | I99: 5.158669074 | J99: 0.1992578848 | K99: 4.031553443 | L99: 0.1557221058 | M99: 0.277566514 | N99: 0.01072123753
B100: 918 | C100: Retten i Hillerød | D100: Elev | E100: 0.4604000936 | F100: 0.112599746 | G100: 1.624701196 | H100: 0.3973520958 | I100: 0.971596777 | J100: 0.2376227804 | K100: 0.8414479254 | L100: 0.2057923619 | M100: 0 | N100: 0
B101: 918 | C101: Retten i Hillerød | D101: Fleks | E101: 0 | F101: 0 | G101: 0 | H101: 0 | I101: 1.148396845 | J101: 0.4957251337 | K101: 0 | L101: 0 | M101: 0 | N101: 0
B102: 918 | C102: Retten i Hillerød | D102: Øvrige | E102: 0.6752708803 | F102: 0.142496783 | G102: 0.3364284338 | H102: 0.07099368704 | I102: 0.3373714427 | J102: 0.07119268234 | K102: 0.6051554108 | L102: 0.1277009002 | M102: 0.09264865422 | N102: 0.01955087294
B103: 919 | C103: Retten i Helsingør | D103: Jurister | E103: 4.35388981 | F103: 0.3007689913 | G103: 6.115510963 | H103: 0.4224627043 | I103: 1.596179095 | J103: 0.1102648889 | K103: 1.012786734 | L103: 0.06996383869 | M103: 0.002714123707 | N103: 0.000187493089
B104: 919 | C104: Retten i Helsingør | D104: Kontor | E104: 5.143492735 | F104: 0.2042518572 | G104: 4.725012214 | H104: 0.1876336897 | I104: 6.861303864 | J104: 0.2724673931 | K104: 5.009665031 | L104: 0.1989374612 | M104: 0.1476933486 | N104: 0.005865010858
B105: 919 | C105: Retten i Helsingør | D105: Elev | E105: 0.9835912959 | F105: 0.2339143898 | G105: 0.8364014027 | H105: 0.198910182 | I105: 1.454215788 | J105: 0.3458367314 | K105: 0.5293665822 | L105: 0.1258921887 | M105: 0 | N105: 0
B106: 919 | C106: Retten i Helsingør | D106: Fleks | E106: 0.1094886448 | F106: 0.05175128674 | G106: 0.2524725195 | H106: 0.1193345463 | I106: 0.5705979129 | J106: 0.2697008101 | K106: 0 | L106: 0 | M106: 0.3133739994 | N106: 0.1481204533
B107: 919 | C107: Retten i Helsingør | D107: Øvrige | E107: 0 | F107: 0 | G107: 0 | H107: 0 | I107: 0 | J107: 0 | K107: 0.001783305674 | L107: 0.0009562165805 | M107: 0 | N107: 0
B108: 920 | C108: Retten i Lyngby | D108: Jurister | E108: 4.75284416 | F108: 0.2435804559 | G108: 10.90597754 | H108: 0.5589249073 | I108: 1.124961663 | J108: 0.05765362075 | K108: 1.556478266 | L108: 0.07976859178 | M108: 0.000291338137 | N108: 1.493090744e-05
B109: 920 | C109: Retten i Lyngby | D109: Kontor | E109: 4.36229442 | F109: 0.1472618775 | G109: 7.443624094 | H109: 0.2512810815 | I109: 4.310736432 | J109: 0.1455213884 | K109: 5.518486492 | L109: 0.1862924883 | M109: 1.00231611 | N109: 0.03383608213
B110: 920 | C110: Retten i Lyngby | D110: Elev | E110: 0.3165649778 | F110: 0.09207502292 | G110: 0.5914755909 | H110: 0.1720345977 | I110: 0.2567428575 | J110: 0.07467536256 | K110: 0.628131529 | L110: 0.1826962203 | M110: 5.699280417e-05 | N110: 1.657673501e-05
B111: 920 | C111: Retten i Lyngby | D111: Fleks | E111: 0 | F111: 0 | G111: 0 | H111: 0 | I111: 0 | J111: 0 | K111: -0.2856 | L111: 0.6666666667 | M111: 0 | N111: 0
B112: 920 | C112: Retten i Lyngby | D112: Øvrige | E112: 0.06603800179 | F112: 0.01835638192 | G112: 0.2014922519 | H112: 0.05600818666 | I112: 0.04181389838 | J112: 0.01162288179 | K112: 0.01659964471 | L112: 0.004614152606 | M112: 0 | N112: 0
B113: 921 | C113: Retten i Glostrup | D113: Jurister | E113: 12.54838329 | F113: 0.3848301358 | G113: 12.49077095 | H113: 0.3830632976 | I113: 3.308001842 | J113: 0.1014488296 | K113: 1.619537271 | L113: 0.0496674937 | M113: 0.02156745762 | N113: 0.0006614244603
B114: 921 | C114: Retten i Glostrup | D114: Kontor | E114: 17.44377812 | F114: 0.262607363 | G114: 12.58860082 | H114: 0.1895150949 | I114: 14.48001026 | J114: 0.2179893188 | K114: 7.460373117 | L114: 0.1123121894 | M114: 0.763324156 | N114: 0.01149146374
B115: 921 | C115: Retten i Glostrup | D115: Elev | E115: 1.050263833 | F115: 0.2082716276 | G115: 1.13244501 | H115: 0.2245684922 | I115: 1.168168486 | J115: 0.2316526042 | K115: 0.7866423504 | L115: 0.1559944059 | M115: 0.005771867659 | N115: 0.001144585041
B116: 921 | C116: Retten i Glostrup | D116: Fleks | E116: 1.000035234 | F116: 0.3100980601 | G116: 0 | H116: 0 | I116: 0 | J116: 0 | K116: 1.220047805 | L116: 0.3783211278 | M116: 0 | N116: 0
B117: 921 | C117: Retten i Glostrup | D117: Øvrige | E117: 0.2764654276 | F117: 0.03409722657 | G117: 1.673602049 | H117: 0.206409853 | I117: 0.7090862871 | J117: 0.08745352356 | K117: 0.1500027637 | L117: 0.01850024527 | M117: 0.1218897523 | N117: 0.01503299178
B118: 922 | C118: Retten på Frederiksberg | D118: Jurister | E118: 9.214594476 | F118: 0.3865856826 | G118: 8.19543643 | H118: 0.3438283035 | I118: 2.753996986 | J118: 0.1155401692 | K118: 1.89655436 | L118: 0.07956733891 | M118: 0.01591772804 | N118: 0.0006678064645
B119: 922 | C119: Retten på Frederiksberg | D119: Kontor | E119: 9.613653457 | F119: 0.2150032564 | G119: 8.084691377 | H119: 0.1808089902 | I119: 11.14627709 | J119: 0.249279411 | K119: 6.611625694 | L119: 0.1478648113 | M119: 0.6746745312 | N119: 0.01508866758
B120: 922 | C120: Retten på Frederiksberg | D120: Elev | E120: 0.6422662205 | F120: 0.2142966079 | G120: 0.4369792549 | H120: 0.1458011788 | I120: 0.7674531638 | J120: 0.2560661054 | K120: 0.5241131442 | L120: 0.1748740092 | M120: 0 | N120: 0
B121: 922 | C121: Retten på Frederiksberg | D121: Fleks | E121: 0.01995191811 | F121: 0.008315620656 | G121: 0.990266577 | H121: 0.4127262932 | I121: 1.378686962 | J121: 0.5746133139 | K121: 0 | L121: 0 | M121: 0 | N121: 0
B122: 922 | C122: Retten på Frederiksberg | D122: Øvrige | E122: 0.034899989 | F122: 0.005836997039 | G122: 0.2609492197 | H122: 0.0436435617 | I122: 0.6738952219 | J122: 0.1127084715 | K122: 0.2386150094 | L122: 0.03990818173 | M122: 0 | N122: 0
B123: 923 | C123: Københavns Byret | D123: Jurister | E123: 25.97197526 | F123: 0.4421777061 | G123: 21.50581294 | H123: 0.3661404625 | I123: 5.392018352 | J123: 0.09180011466 | K123: 2.521958366 | L123: 0.04293680993 | M123: 0.05931516152 | N123: 0.00100985165
B124: 923 | C124: Københavns Byret | D124: Kontor | E124: 38.3926887 | F124: 0.3378300746 | G124: 15.77257603 | H124: 0.1387881578 | I124: 21.08985558 | J124: 0.1855766743 | K124: 9.063824795 | L124: 0.07975561782 | M124: 1.780927101 | N124: 0.01567097163
B125: 923 | C125: Københavns Byret | D125: Elev | E125: 2.722155594 | F125: 0.3367524904 | G125: 0.6173742487 | H125: 0.07637414857 | I125: 1.293040481 | J125: 0.1599594833 | K125: 1.190394288 | L125: 0.1472613255 | M125: 0.02411614812 | N125: 0.002983361039
B126: 923 | C126: Københavns Byret | D126: Fleks | E126: 0 | F126: 0 | G126: 0 | H126: 0 | I126: 0.5634768256 | J126: 0.6629841108 | K126: 0 | L126: 0 | M126: 0 | N126: 0
B127: 923 | C127: Københavns Byret | D127: Øvrige | E127: 0.8303924823 | F127: 0.09357821383 | G127: 1.036890178 | H127: 0.1168487587 | I127: 0.2967123019 | J127: 0.03343696845 | K127: 0.05342556347 | L127: 0.006020609421 | M127: 0.04326298314 | N127: 0.004875372518
B128: 924 | C128: Retten på Bornholm | D128: Jurister | E128: 0.9124199469 | F128: 0.2615995375 | G128: 0.8976441602 | H128: 0.2573631779 | I128: 0.5188778524 | J128: 0.1487672498 | K128: 0.3498092894 | L128: 0.1002936736 | M128: 0.01597349846 | N128: 0.004579754994
B129: 924 | C129: Retten på Bornholm | D129: Kontor | E129: 1.198936537 | F129: 0.153609966 | G129: 0.8166052496 | H129: 0.1046249745 | I129: 1.742024911 | J129: 0.2231914526 | K129: 1.796111237 | L129: 0.2301210927 | M129: 0.07407611872 | N129: 0.009490769297
B130: 924 | C130: Retten på Bornholm | D130: Elev | E130: 0.2759135831 | F130: 0.1394545333 | G130: 0.08032312772 | H130: 0.04059758189 | I130: 0.2268795629 | J130: 0.1146713518 | K130: 0.9330210921 | L130: 0.4715752644 | M130: 0 | N130: 0
B131: 924 | C131: Retten på Bornholm | D131: Fleks | E131: 0 | F131: 0 | G131: 0 | H131: 0 | I131: 0 | J131: 0 | K131: 0 | L131: 0 | M131: 0 | N131: 0
B132: 924 | C132: Retten på Bornholm | D132: Øvrige | E132: 0.0006480131676 | F132: 0.0005067829071 | G132: 0 | H132: 0 | I132: 0 | J132: 0 | K132: 0 | L132: 0 | M132: 0 | N132: 0
B134: 1) Procenten er beregnet i forhold til det samlede årsværksforbrug ved retten inkl. generel ledelse og administration, hvorfor der ikke kan summes op til 100 % for den enkelte ret.
B135: 2) Ansatte under socialt kapitel (fleksjobbere mv.) uden tidsfordeling indgår ikke i denne opgørelse.
B136: 3) Det opgjorte årsværksforbrug er inkl. de korrektioner, der foretages som led i produktivitetsberegningen.

Sheet Dataark til 901-924
B11: Samlet produktivitet, retten | D11: Samlet produktivitet, jurister | F11: Samlet produktivitet, kontor | H11: ÅRVK ledelse og adm. | J11: Sagstider domsmandssager | L11: Sagstider hfh. alm. Civil | N11: Sagstid alm. fogedsag | P11: Målopfyldelse vold | R11: Målopfyldelse voldtægt | T11: Sygefravær | V11: Personaleomsætning | X11: Årsværk retten | Z11: Årsværk jurist | AB11: Årsværk kontor | AD11: Samlet lønsum
A12: Ret | B12: 2012 | C12: 2013 | D12: 2012 | E12: 2013 | F12: 2012 | G12: 2013 | H12: 2012 | I12: 2013 | J12: 2012 | K12: 2013 | L12: 2012 | M12: 2013 | N12: 2012 | O12: 2013 | P12: 2012 | Q12: 2013 | R12: 2012 | S12: 2013 | T12: 2012 | U12: 2013 | V12: 2012 | W12: 2013 | X12: 2012 | Y12: 2013 | Z12: 2012 | AA12: 2013 | AB12: 2012 | AC12: 2013 | AD12: 2012 | AE12: 2013
A13: Retten i Hjørring | B13: 101.608501 | C13: 102.9146793 | D13: 97.53770583 | E13: 101.4346809 | F13: 106.2985107 | G13: 103.2149744 | H13: 0.1835611745 | I13: 0.1868261939 | J13: 118 | K13: 96 | L13: 609.3902439 | M13: 631.7745665 | N13: 53.4189 | O13: 49.86269469 | P13: 58.62068966 | Q13: 64 | R13: 50 | S13: 75 | T13: 10.68413379 | U13: 5.7 | V13: 10.2 | W13: 12.7 | X13: 54.11138 | Y13: 53.476 | Z13: 14.10477 | AA13: 14.51677 | AB13: 28.56927 | AC13: 29.3254 | AD13: 25.04165897 | AE13: 25.23077424 | AF13: Retten i Hjørring
A14: Retten i Aalborg | B14: 103.397762 | C14: 98.62855147 | D14: 105.2750334 | E14: 98.45801217 | F14: 99.54491084 | G14: 98.27397591 | H14: 0.1475502136 | I14: 0.1339181623 | J14: 99 | K14: 106 | L14: 536.6748768 | M14: 593.4757282 | N14: 52.07433 | O14: 41.55710276 | P14: 58.90410959 | Q14: 33.89830508 | R14: 33.33333333 | S14: 60 | T14: 9.639258459 | U14: 5.1 | V14: 9.4 | W14: 12 | X14: 75.03944 | Y14: 75.60557 | Z14: 20.59074 | AA14: 20.77576 | AB14: 45.10918 | AC14: 43.97071 | AD14: 37.34694476 | AE14: 36.32284163 | AF14: Retten i Aalborg
A15: Retten i Randers | B15: 96.15675216 | C15: 97.0241151 | D15: 89.34304966 | E15: 91.55018696 | F15: 106.4168365 | G15: 105.3368061 | H15: 0.1903877363 | I15: 0.1980503732 | J15: 133 | K15: 151 | L15: 585.5026455 | M15: 622.7865854 | N15: 66.47012 | O15: 47.72560892 | P15: 55.35714286 | Q15: 40 | R15: 50 | S15: 0 | T15: 5.013229315 | U15: 6.9 | V15: 13.7 | W15: 10.8 | X15: 57.5392 | Y15: 51.35568 | Z15: 16.67219 | AA15: 14.54448 | AB15: 31.22478 | AC15: 28.09834 | AD15: 28.96309771 | AE15: 26.74664964 | AF15: Retten i Randers
A16: Retten i Århus | B16: 100.3477046 | C16: 98.14882931 | D16: 99.09221998 | E16: 94.28098483 | F16: 101.7033542 | G16: 104.1593869 | H16: 0.1719431788 | I16: 0.1656399121 | J16: 132 | K16: 140 | L16: 523.8881119 | M16: 494.8684211 | N16: 53.26422 | O16: 56.95581015 | P16: 38.67924528 | Q16: 38.46153846 | R16: 40 | S16: 100 | T16: 8.124555932 | U16: 10.8 | V16: 5.9 | W16: 11.6 | X16: 88.23868 | Y16: 83.99051 | Z16: 26.02169 | AA16: 25.22725 | AB16: 50.21494 | AC16: 45.35235 | AD16: 43.63171909 | AE16: 41.02113215 | AF16: Retten i Århus
A17: Retten i Viborg | B17: 100.8562344 | C17: 97.24417792 | D17: 96.11459489 | E17: 92.31263346 | F17: 105.4691255 | G17: 105.8387295 | H17: 0.1879963296 | I17: 0.1831987808 | J17: 108 | K17: 108 | L17: 605.3956044 | M17: 534.7073171 | N17: 47.28447 | O17: 47.35630204 | P17: 61.53846154 | Q17: 67.74193548 | R17: 50 | S17: 0 | T17: 9.329235244 | U17: 4.7 | V17: 14.2 | W17: 16.2 | X17: 54.54146 | Y17: 53.08464 | Z17: 15.22501 | AA17: 15.00269 | AB17: 30.18385 | AC17: 28.03999 | AD17: 26.08492004 | AE17: 25.88336059 | AF17: Retten i Viborg
A18: Retten i Holstebro | B18: 102.5444604 | C18: 103.5572491 | D18: 104.7558316 | E18: 103.5300145 | F18: 105.9156364 | G18: 106.9435187 | H18: 0.2323087287 | I18: 0.2155162205 | J18: 92 | K18: 86 | L18: 550.6423358 | M18: 475.9032258 | N18: 33.75932 | O18: 32.54022491 | P18: 68.42105263 | Q18: 72.72727273 | R18: - | S18: 100 | T18: 8.955644828 | U18: 5 | V18: 20.3 | W18: 16.2 | X18: 43.06072 | Y18: 38.40156 | Z18: 10.21529 | AA18: 9.67165 | AB18: 21.61701 | AC18: 20.53304 | AD18: 20.61569091 | AE18: 19.40336905 | AF18: Retten i Holstebro
A19: Retten i Herning | B19: 98.43564203 | C19: 92.5848018 | D19: 91.78927512 | E19: 82.04356593 | F19: 109.6591234 | G19: 104.7436876 | H19: 0.2212270095 | I19: 0.1955231872 | J19: 96 | K19: 94 | L19: 511.8440367 | M19: 433.9708738 | N19: 46.06627 | O19: 46.84155791 | P19: 56.09756098 | Q19: 52.63157895 | R19: 60 | S19: 16.66666667 | T19: 5.1176259 | U19: 8.6 | V19: 2.4 | W19: 15.3 | X19: 38.91571 | Y19: 38.76992 | Z19: 11.80635 | AA19: 11.84085 | AB19: 21.44495 | AC19: 20.75833 | AD19: 20.03129257 | AE19: 20.02559767 | AF19: Retten i Herning
A20: Retten i Horsens | B20: 100.5766153 | C20: 96.30874721 | D20: 92.51026242 | E20: 90.97352822 | F20: 111.0834389 | G20: 103.1020684 | H20: 0.209942857 | I20: 0.1979407442 | J20: 81 | K20: 96 | L20: 523.7974684 | M20: 418 | N20: 48.22154 | O20: 49.71742972 | P20: 48.27586207 | Q20: 47.05882353 | R20: 40 | S20: 0 | T20: 7.42417316 | U20: 5.3 | V20: 9 | W20: 13.3 | X20: 50.08791 | Y20: 49.88988 | Z20: 14.55331 | AA20: 14.06581 | AB20: 24.84131 | AC20: 25.31688 | AD20: 24.06794401 | AE20: 24.53226103 | AF20: Retten i Horsens
A21: Retten i Kolding | B21: 110.0190829 | C21: 103.4065127 | D21: 101.5939537 | E21: 93.44213967 | F21: 116.958728 | G21: 112.1976912 | H21: 0.1719201832 | I21: 0.1814648532 | J21: 161 | K21: 105 | L21: 639.8318584 | M21: 510.0465116 | N21: 53.34716 | O21: 46.31372549 | P21: 41.42857143 | Q21: 61.2244898 | R21: 100 | S21: 100 | T21: 7.424129795 | U21: 11.7 | V21: 12.8 | W21: 6.6 | X21: 66.86654 | Y21: 67.53552 | Z21: 20.86366 | AA21: 21.33572 | AB21: 37.06553 | AC21: 37.2161 | AD21: 35.13474569 | AE21: 35.21200134 | AF21: Retten i Kolding
A22: Retten i Esbjerg | B22: 103.6514836 | C22: 99.69839621 | D22: 99.13883723 | E22: 95.03327915 | F22: 104.9467279 | G22: 101.4630039 | H22: 0.1591440989 | I22: 0.1544399994 | J22: 127 | K22: 143 | L22: 642.9142857 | M22: 631.4972067 | N22: 51.64978 | O22: 58.91485835 | P22: 46.47887324 | Q22: 30.86419753 | R22: 0 | S22: 0 | T22: 5.016104138 | U22: 10.3 | V22: 10.8 | W22: 15 | X22: 54.02795 | Y22: 54.27444 | Z22: 15.25467 | AA22: 14.92874 | AB22: 30.38967 | AC22: 29.74744 | AD22: 25.86329229 | AE22: 26.28483427 | AF22: Retten i Esbjerg
A23: Retten i Sønderborg | B23: 107.0772868 | C23: 103.0055282 | D23: 107.6559285 | E23: 98.84884045 | F23: 106.6503244 | G23: 105.9415153 | H23: 0.1934025343 | I23: 0.1968216784 | J23: 134 | K23: 77 | L23: 602.1081081 | M23: 588.0246914 | N23: 58.14703 | O23: 52.85101266 | P23: 63.01369863 | Q23: 75.67567568 | R23: 0 | S23: 100 | T23: 4.275216144 | U23: 7 | V23: 11.2 | W23: 10.2 | X23: 62.06763 | Y23: 58.41784 | Z23: 17.06251 | AA23: 17.36145 | AB23: 36.23841 | AC23: 33.50583 | AD23: 33.17015754 | AE23: 32.07104816 | AF23: Retten i Sønderborg
A24: Retten i Odense | B24: 105.27082 | C24: 108.3800934 | D24: 103.8910409 | E24: 106.2807687 | F24: 106.4838156 | G24: 110.9626462 | H24: 0.1615095919 | I24: 0.1610274217 | J24: 99 | K24: 97 | L24: 445.5172414 | M24: 460.0165746 | N24: 57.6438 | O24: 50.36748596 | P24: 37.5 | Q24: 51.11111111 | R24: 20 | S24: 40 | T24: 9.308874967 | U24: 7.7 | V24: 7.2 | W24: 8.3 | X24: 79.76766 | Y24: 77.86296 | Z24: 22.50138 | AA24: 21.81471 | AB24: 47.21948 | AC24: 45.22965 | AD24: 39.53978133 | AE24: 38.81514503 | AF24: Retten i Odense
A25: Retten i Svendborg | B25: 103.6473742 | C25: 98.99112703 | D25: 104.7766743 | E25: 96.48288534 | F25: 106.3248986 | G25: 103.5551398 | H25: 0.2102723368 | I25: 0.1662743921 | J25: 95 | K25: 105 | L25: 406.5824176 | M25: 479.2658228 | N25: 42.87955 | O25: 47.2630719 | P25: 43.90243902 | Q25: 56.60377358 | R25: 33.33333333 | S25: 40 | T25: 7.633832999 | U25: 14.2 | V25: 14.3 | W25: 17.7 | X25: 40.01834 | Y25: 36.96098 | Z25: 10.24366 | AA25: 10.30021 | AB25: 22.38851 | AC25: 21.70681 | AD25: 19.79365595 | AE25: 19.70705955 | AF25: Retten i Svendborg
A26: Retten i Nykøbing F. | B26: 92.45252938 | C26: 101.1958707 | D26: 95.38638008 | E26: 103.2506045 | F26: 90.34853719 | G26: 99.98645671 | H26: 0.1958201615 | I26: 0.2136326657 | J26: 86 | K26: 94 | L26: 384.1100917 | M26: 390.2222222 | N26: 52.24089 | O26: 51.22872467 | P26: 53.96825397 | Q26: 43.83561644 | R26: 80 | S26: 100 | T26: 5.009008356 | U26: 3.8 | V26: 2.5 | W26: 15.8 | X26: 54.23854 | Y26: 49.93317 | Z26: 14.72243 | AA26: 13.97805 | AB26: 33.51816 | AC26: 30.55141 | AD26: 27.22318931 | AE26: 25.6823684 | AF26: Retten i Nykøbing F.
A27: Retten i Næstved | B27: 97.9656872 | C27: 106.4522251 | D27: 91.72064455 | E27: 101.2406033 | F27: 105.2696408 | G27: 111.6879755 | H27: 0.2028531693 | I27: 0.2110018934 | J27: 161 | K27: 132 | L27: 581.2368421 | M27: 524.7538462 | N27: 66.24246 | O27: 59.44236241 | P27: 21.95121951 | Q27: 38.0952381 | R27: 100 | S27: 50 | T27: 7.919610949 | U27: 9 | V27: 9.9 | W27: 19.7 | X27: 69.75045 | Y27: 63.45753 | Z27: 20.10287 | AA27: 18.70124 | AB27: 38.25697 | AC27: 35.80973 | AD27: 32.37834381 | AE27: 31.63077126 | AF27: Retten i Næstved
A28: Retten i Holbæk | B28: 98.1335432 | C28: 97.5198651 | D28: 100.1226093 | E28: 98.0654575 | F28: 94.55354075 | G28: 95.65987869 | H28: 0.1873215912 | I28: 0.1791150763 | J28: 127 | K28: 121 | L28: 481 | M28: 423.1904762 | N28: 71.65932 | O28: 61.38024691 | P28: 34 | Q28: 66.66666667 | R28: 66.66666667 | S28: 66.66666667 | T28: 9.10569205 | U28: 7.3 | V28: 10.3 | W28: 14.1 | X28: 50.27662 | Y28: 49.02491 | Z28: 13.01914 | AA28: 12.88079 | AB28: 28.78562 | AC28: 27.5082 | AD28: 23.85466902 | AE28: 23.08612638 | AF28: Retten i Holbæk
A29: Retten i Roskilde | B29: 102.9507689 | C29: 101.069153 | D29: 101.0655399 | E29: 93.84592474 | F29: 103.2930941 | G29: 107.666467 | H29: 0.1870569967 | I29: 0.1856861136 | J29: 185 | K29: 152 | L29: 675.0504587 | M29: 631.7375566 | N29: 66.7605 | O29: 62.14235163 | P29: 23.07692308 | Q29: 38.46153846 | R29: 0 | S29: - | T29: 10.01963101 | U29: 8 | V29: 12.9 | W29: 19.9 | X29: 77.17866 | Y29: 73.92877 | Z29: 22.17122 | AA29: 22.48327 | AB29: 46.84143 | AC29: 41.59892 | AD29: 40.65059475 | AE29: 38.57747683 | AF29: Retten i Roskilde
A30: Retten i Hillerød | B30: 104.5136836 | C30: 98.37624366 | D30: 102.2756418 | E30: 93.0362009 | F30: 111.9204914 | G30: 111.8642549 | H30: 0.2168826305 | I30: 0.2259331167 | J30: 111 | K30: 93 | L30: 616.9745223 | M30: 457.4690265 | N30: 62.05107 | O30: 49.4952913 | P30: 71.79487179 | Q30: 56.25 | R30: 50 | S30: 50 | T30: 7.49647355 | U30: 9.2 | V30: 7.2 | W30: 20.1 | X30: 53.82546 | Y30: 51.95118 | Z30: 14.99594 | AA30: 14.9175 | AB30: 27.85588 | AC30: 25.88941 | AD30: 27.20830147 | AE30: 26.59530339 | AF30: Retten i Hillerød
A31: Retten i Helsingør | B31: 94.61025543 | C31: 96.60724523 | D31: 88.30871725 | E31: 85.9110245 | F31: 100.9814948 | G31: 105.9668203 | H31: 0.1775016144 | I31: 0.1578139783 | J31: 86 | K31: 106 | L31: 542.7058824 | M31: 446.7733333 | N31: 66.99364 | O31: 55.7016081 | P31: 60 | Q31: 53.84615385 | R31: 0 | S31: - | T31: 7.989385796 | U31: 13.1 | V31: 10.1 | W31: 17.9 | X31: 54.28777 | Y31: 47.84352 | Z31: 15.51454 | AA31: 14.47586 | AB31: 28.7663 | AC31: 25.18211 | AD31: 26.4579457 | AE31: 25.17136882 | AF31: Retten i Helsingør
A32: Retten i Lyngby | B32: 97.5738025 | C32: 96.82753324 | D32: 91.4498475 | E32: 86.51477605 | F32: 105.1754956 | G32: 110.7851418 | H32: 0.204565481 | I32: 0.2167293196 | J32: 90 | K32: 103 | L32: 580.7106918 | M32: 475.2258065 | N32: 45.55985 | O32: 39.57969813 | P32: 81.81818182 | Q32: 72.72727273 | R32: 0 | S32: 100 | T32: 8.67990897 | U32: 9.7 | V32: 8.8 | W32: 15.3 | X32: 61.11933 | Y32: 55.74239 | Z32: 19.85793 | AA32: 19.51242 | AB32: 33.78184 | AC32: 29.6227 | AD32: 31.84775109 | AE32: 31.14209533 | AF32: Retten i Lyngby
A33: Retten i Glostrup | B33: 99.60205684 | C33: 98.98202225 | D33: 99.33818845 | E33: 100.008897 | F33: 100.5687187 | G33: 99.29484206 | H33: 0.1934465322 | I33: 0.2005362955 | J33: 138 | K33: 146 | L33: 695.3764706 | M33: 614.8410405 | N33: 75.95509 | O33: 75.69489089 | P33: 38.02816901 | Q33: 43.75 | R33: 100 | S33: 0 | T33: 13.05476168 | U33: 11.8 | V33: 4.3 | W33: 20.6 | X33: 122.33135 | Y33: 115.40872 | Z33: 35.24743 | AA33: 32.60759 | AB33: 70.09358 | AC33: 66.42532 | AD33: 59.06418399 | AE33: 56.2588608 | AF33: Retten i Glostrup
A34: Retten på Frederiksberg | B34: 102.4240415 | C34: 101.2561076 | D34: 97.73990342 | E34: 97.63529013 | F34: 106.9287878 | G34: 107.7453051 | H34: 0.1656753859 | I34: 0.2027823079 | J34: 191 | K34: 180 | L34: 612.2 | M34: 551.3023256 | N34: 107.3468 | O34: 86.15949623 | P34: 30.76923077 | Q34: 8.695652174 | R34: 33.33333333 | S34: 0 | T34: 13.0568708 | U34: 12 | V34: 7.9 | W34: 18.3 | X34: 85.95793 | Y34: 79.92535 | Z34: 25.54098 | AA34: 23.83584 | AB34: 48.4444 | AC34: 44.71399 | AD34: 42.12214642 | AE34: 40.40890417 | AF34: Retten på Frederiksberg
A35: Københavns Byret | B35: 100.7150795 | C35: 96.14494276 | D35: 101.5332574 | E35: 97.09472333 | F35: 96.38904872 | G35: 91.31934696 | H35: 0.2151355177 | I35: 0.2065795179 | J35: 128 | K35: 96 | L35: 536.8896104 | M35: 512.7992278 | N35: 109.122 | O35: 78.12335474 | P35: 42.85714286 | Q35: 70 | R35: 20 | S35: - | T35: 8.516524098 | U35: 8.1 | V35: 4.3 | W35: 9.6 | X35: 195.29943 | Y35: 190.18872 | Z35: 59.44318 | AA35: 58.73651 | AB35: 115.9395 | AC35: 113.64497 | AD35: 104.6922399 | AE35: 102.9923745 | AF35: Københavns Byret
A36: Retten på Bornholm | B36: 61.45274762 | C36: 63.43657445 | D36: 61.85688567 | E36: 64.7059556 | F36: 62.76058041 | G36: 66.6434586 | H36: 0.3510888222 | I36: 0.3379421224 | J36: 38 | K36: 46 | L36: 368 | M36: 291.3529412 | N36: 27.81237 | O36: 27.57464366 | P36: 87.5 | Q36: 94.73684211 | R36: - | S36: 100 | T36: 7.374329829 | U36: 7.2 | V36: 13.3 | W36: 6.4 | X36: 15.66889 | Y36: 14.55013 | Z36: 3.90089 | AA36: 3.48785 | AB36: 8.60969 | AC36: 7.80507 | AD36: 7.50555179 | AE36: 7.31 | AF36: Retten på Bornholm
B37: 0 | C37: 0 | D37: 0 | E37: 0 | F37: 0 | G37: 0 | H37: 0 | I37: 0 | J37: 0 | K37: 0 | L37: 0 | M37: 0 | N37: 0 | O37: 0 | P37: 0 | Q37: 0 | R37: 0 | S37: 0 | T37: 0 | U37: 0 | V37: 0 | W37: 0 | X37: 0 | Y37: 0 | Z37: 0 | AA37: 0 | AB37: 0 | AC37: 0 | AD37: 0 | AE37: 0
B41: Samlet produktivitet, retten | D41: Samlet produktivitet, jurister | F41: Samlet produktivitet, kontor | H41: ÅRVK ledelse og adm. | J41: Sagstider domsmandssager | L41: Sagstider hfh. alm. Civil | N41: Sagstid alm. fogedsag | P41: Målopfyldelse vold | R41: Målopfyldelse voldtægt | T41: Sygefravær | V41: Personaleomsætning | X41: Årsværk retten | Z41: Årsværk jurist | AB41: Årsværk kontor | AD41: Samlet lønsum
A42: Ret | B42: 2010 | C42: 2011 | D42: 2010 | E42: 2011 | F42: 2010 | G42: 2011 | H42: 2011 | J42: 2011 | L42: 2011 | N42: 2011 | P42: 2011 | R42: 2011 | T42: 2011 | V42: 2011 | X42: 2011 | Z42: 2011 | AB42: 2011 | AD42: 2011
A43: Retten i Hjørring | H43: 0.1808500373 | I43: =#REF!-H43 ->  | J43: 93 | K43: =J13-J43 -> 25 | L43: 588.737931 | M43: =L13-L43 -> 20.65231287 | N43: 59.02804965 | O43: =N13-N43 -> -5.60914965 | P43: 72.72727273 | Q43: =P13-P43 -> -14.10658307 | R43: 75 | S43: =R13-R43 -> -25 | T43: 9.195340336 | U43: =T13-T43 -> 1.488793459 | V43: 13.3 | W43: =V13-V43 -> -3.1 | X43: 59.79526 | Y43: =X13-X43 -> -5.68388 | Z43: 13.34803 | AA43: =Z13-Z43 -> 0.75674 | AB43: 33.06976 | AC43: =AB13-AB43 -> -4.50049 | AD43: 25.84077727 | AE43: =AD13-AD43 -> -0.7991183
A44: Retten i Aalborg | H44: 0.1440885883 | I44: =#REF!-H44 ->  | J44: 89 | K44: =J14-J44 -> 10 | L44: 549.7346939 | M44: =L14-L44 -> -13.05981703 | N44: 81.29756381 | O44: =N14-N44 -> -29.22323381 | P44: 70 | Q44: =P14-P44 -> -11.09589041 | R44: 0 | S44: =R14-R44 -> 33.33333333 | T44: 7.44756948 | U44: =T14-T44 -> 2.191688979 | V44: 11.1 | W44: =V14-V44 -> -1.7 | X44: 80.50898 | Y44: =X14-X44 -> -5.46954 | Z44: 22.18722 | AA44: =Z14-Z44 -> -1.59648 | AB44: 48.742 | AC44: =AB14-AB44 -> -3.63282 | AD44: 38.77436805 | AE44: =AD14-AD44 -> -1.42742329
A45: Retten i Randers | H45: 0.2242573374 | I45: =#REF!-H45 ->  | J45: 160 | K45: -27 | L45: 633.4363636 | M45: -47.93371813 | N45: 76.65538674 | O45: -10.18526674 | P45: 43.1372549 | Q45: 12.21988796 | R45: 0 | S45: 50 | T45: 7.923213529 | U45: -2.909984214 | V45: 6.1 | W45: 7.6 | X45: 58.17027 | Y45: -0.63107 | Z45: 16.642 | AA45: 0.03019 | AB45: 31.602 | AC45: -0.37722 | AD45: 28.27830635 | AE45: 0.68479136
A46: Retten i Århus | H46: 0.1740744916 | I46: =#REF!-H46 ->  | J46: 187 | K46: -55 | L46: 585.8815789 | M46: -61.99346706 | N46: 68.09649662 | O46: -14.83227662 | P46: 44.44444444 | Q46: -5.765199161 | R46: 0 | S46: 40 | T46: 10.94548768 | U46: -2.820931744 | V46: 11.4 | W46: -5.5 | X46: 90.00205 | Y46: -1.76337 | Z46: 26.56876 | AA46: -0.54707 | AB46: 50.61565 | AC46: -0.40071 | AD46: 43.96941009 | AE46: -0.337691
A47: Retten i Viborg | H47: 0.1869106164 | I47: =#REF!-H47 ->  | J47: 110 | K47: -2 | L47: 598.0942408 | M47: 7.301363558 | N47: 70.36160608 | O47: -23.07713608 | P47: 67.64705882 | Q47: -6.108597285 | R47: 100 | S47: -50 | T47: 7.021671724 | U47: 2.30756352 | V47: 10.2 | W47: 4 | X47: 55.19659 | Y47: -0.65513 | Z47: 15.1701 | AA47: 0.05491 | AB47: 30.18242 | AC47: 0.00143 | AD47: 26.64360749 | AE47: -0.55868745
A48: Retten i Holstebro | H48: 0.2156894162 | I48: =#REF!-H48 ->  | J48: 99 | K48: -7 | L48: 517.1038961 | M48: 33.53843966 | N48: 33.32733875 | O48: 0.4319812485 | P48: 44.06779661 | Q48: 24.35325602 | R48: 66.66666667 | T48: 7.512563132 | U48: 1.443081695 | V48: 11.9 | W48: 8.4 | X48: 46.44103 | Y48: -3.38031 | Z48: 11.27 | AA48: -1.05471 | AB48: 23.056 | AC48: -1.43899 | AD48: 21.76629581 | AE48: -1.1506049
A49: Retten i Herning | H49: 0.2140891957 | I49: =#REF!-H49 ->  | J49: 93 | K49: 3 | L49: 504 | M49: 7.844036697 | N49: 46.15043463 | O49: -0.08416463 | P49: 60.41666667 | Q49: -4.319105691 | R49: 0 | S49: 60 | T49: 12.53367166 | U49: -7.416045761 | V49: 17.4 | W49: -15 | X49: 42.52615 | Y49: -3.61044 | Z49: 11.84873 | AA49: -0.04238 | AB49: 23.57106 | AC49: -2.12611 | AD49: 21.11471095 | AE49: -1.08341838
A50: Retten i Horsens | H50: 0.1978894442 | I50: =#REF!-H50 ->  | J50: 75 | K50: 6 | L50: 454.2037037 | M50: 69.59376465 | N50: 53.19851049 | O50: -4.97697049 | P50: 54.23728814 | Q50: -5.961426067 | R50: 999 | S50: -959 | T50: 9.656788281 | U50: -2.232615121 | V50: 12.5 | W50: -3.5 | X50: 53.41053 | Y50: -3.32262 | Z50: 14.38903 | AA50: 0.16428 | AB50: 26.41923 | AC50: -1.57792 | AD50: 25.08928797 | AE50: -1.02134396
A51: Retten i Kolding | H51: 0.1649720064 | I51: =#REF!-H51 ->  | J51: 150 | K51: 11 | L51: 651.4146341 | M51: -11.58277574 | N51: 50.7865086 | O51: 2.5606514 | P51: 65.51724138 | Q51: -24.08866995 | R51: 999 | S51: -899 | T51: 8.675627926 | U51: -1.251498131 | V51: 6.1 | W51: 6.7 | X51: 76.6875 | Y51: -9.82096 | Z51: 20.54952 | AA51: 0.31414 | AB51: 45.06554 | AC51: -8.00001 | AD51: 36.12998449 | AE51: -0.9952388
A52: Retten i Esbjerg | H52: 0.160884098 | I52: =#REF!-H52 ->  | J52: 134 | K52: -7 | L52: 627.5329949 | M52: 15.38129079 | N52: 57.25041368 | O52: -5.60063368 | P52: 31.91489362 | Q52: 14.56397962 | R52: 20 | S52: -20 | T52: 9.830962196 | U52: -4.814858058 | V52: 12.2 | W52: -1.4 | X52: 56.23196 | Y52: -2.20401 | Z52: 15.1442 | AA52: 0.11047 | AB52: 32.03157 | AC52: -1.6419 | AD52: 27.40345038 | AE52: -1.54015809
A53: Retten i Sønderborg | H53: 0.2093655007 | I53: =#REF!-H53 ->  | J53: 146 | K53: -12 | L53: 670.3020134 | M53: -68.19390531 | N53: 66.74565217 | O53: -8.59862217 | P53: 51.25 | Q53: 11.76369863 | R53: 0 | S53: 0 | T53: 5.1 | U53: -0.8247838563 | V53: 12.9 | W53: -1.7 | X53: 62.58565 | Y53: -0.51802 | Z53: 15.411 | AA53: 1.65151 | AB53: 36.905 | AC53: -0.66659 | AD53: 32.31378702 | AE53: 0.85637052
A54: Retten i Odense | H54: 0.1463671875 | I54: =#REF!-H54 ->  | J54: 86 | K54: 13 | L54: 428.4694836 | M54: 17.04775781 | N54: 66.62457364 | O54: -8.980773638 | P54: 60.46511628 | Q54: -22.96511628 | R54: 37.5 | S54: -17.5 | T54: 7.222463525 | U54: 2.086411442 | V54: 20.8 | W54: -13.6 | X54: 89.18757 | Y54: -9.41991 | Z54: 24.26146 | AA54: -1.76008 | AB54: 52.27552 | AC54: -5.05604 | AD54: 42.19547545 | AE54: -2.65569412
A55: Retten i Svendborg | H55: 0.2310023534 | I55: =#REF!-H55 ->  | J55: 100 | K55: -5 | L55: 457.0487805 | M55: -50.46636291 | N55: 39.74894068 | O55: 3.130609322 | P55: 60.52631579 | Q55: -16.62387677 | R55: 0 | S55: 33.33333333 | T55: 7.534810135 | U55: 0.09902286456 | V55: 13.5 | W55: 0.8 | X55: 46.62935 | Y55: -6.61101 | Z55: 12.16381 | AA55: -1.92015 | AB55: 26.86367 | AC55: -4.47516 | AD55: 21.33413431 | AE55: -1.54047836
A56: Retten i Nykøbing F. | H56: 0.2106800886 | I56: =#REF!-H56 ->  | J56: 89 | K56: -3 | L56: 511.1076923 | M56: -126.9976006 | N56: 58.32441823 | O56: -6.083528229 | P56: 75 | Q56: -21.03174603 | R56: 33.33333333 | S56: 46.66666667 | T56: 3.1 | U56: 1.909008356 | V56: 5.9 | W56: -3.4 | X56: 57.71872 | Y56: -3.48018 | Z56: 15.11914 | AA56: -0.39671 | AB56: 36.06329 | AC56: -2.54513 | AD56: 27.75952561 | AE56: -0.5363363
A57: Retten i Næstved | H57: 0.2009634119 | I57: =#REF!-H57 ->  | J57: 175 | K57: -14 | L57: 667.1578947 | M57: -85.92105263 | N57: 90.31952363 | O57: -24.07706363 | P57: 19.60784314 | Q57: 2.343376375 | R57: 42.85714286 | S57: 57.14285714 | T57: 9.143692893 | U57: -1.224081944 | V57: 8.7 | W57: 1.2 | X57: 71.95559 | Y57: -2.20514 | Z57: 19.95737 | AA57: 0.1455 | AB57: 40.2327 | AC57: -1.97573 | AD57: 33.44395386 | AE57: -1.06561005
A58: Retten i Holbæk | H58: 0.2013305659 | I58: =#REF!-H58 ->  | J58: 129 | K58: -2 | L58: 492.7288136 | M58: -11.72881356 | N58: 79.91707956 | O58: -8.25775956 | P58: 45.90163934 | Q58: -11.90163934 | R58: 0 | S58: 66.66666667 | T58: 10.0927266 | U58: -0.9870345481 | V58: 3.7 | W58: 6.6 | X58: 52.84805 | Y58: -2.57143 | Z58: 12.96697 | AA58: 0.05217 | AB58: 31.22812 | AC58: -2.4425 | AD58: 24.06054675 | AE58: -0.20587773
A59: Retten i Roskilde | H59: 0.1985138754 | I59: =#REF!-H59 ->  | J59: 161 | K59: 24 | L59: 580.0681818 | M59: 94.9822769 | N59: 78.76805332 | O59: -12.00755332 | P59: 57.69230769 | Q59: -34.61538462 | R59: 0 | S59: 0 | T59: 8.041632025 | U59: 1.977998989 | V59: 8.1 | W59: 4.8 | X59: 81.93291 | Y59: -4.75425 | Z59: 20.991 | AA59: 1.18022 | AB59: 50.15184 | AC59: -3.31041 | AD59: 40.35202857 | AE59: 0.29856618
A60: Retten i Hillerød | H60: 0.1966681251 | I60: =#REF!-H60 ->  | J60: 94 | K60: =J30-J60 -> 17 | L60: 535.2297297 | M60: 81.74479256 | N60: 69.77698997 | O60: -7.72591997 | P60: 67.56756757 | Q60: 4.227304227 | R60: 0 | S60: 50 | T60: 10.53646297 | U60: -3.039989419 | V60: 15.7 | W60: -8.5 | X60: 59.93847 | Y60: -6.11301 | Z60: 15.51429 | AA60: -0.51835 | AB60: 31.81079 | AC60: -3.95491 | AD60: 28.1485882 | AE60: -0.94028673
A61: Retten i Helsingør | H61: 0.1747076542 | I61: =#REF!-H61 ->  | J61: 91 | K61: -5 | L61: 625.1616766 | M61: -82.45579429 | N61: 80.56226998 | O61: -13.56862998 | P61: 65.71428571 | Q61: -5.714285714 | R61: 33.33333333 | S61: -33.33333333 | T61: 8.100239201 | U61: -0.1108534054 | V61: 11 | W61: -0.9 | X61: 59.49472 | Y61: -5.20695 | Z61: 16.67005 | AA61: -1.15551 | AB61: 30.65085 | AC61: -1.88455 | AD61: 27.2421141 | AE61: -0.7841684
A62: Retten i Lyngby | H62: 0.215369746 | I62: =#REF!-H62 ->  | J62: 97 | K62: -7 | L62: 681.4340426 | M62: -100.7233507 | N62: 48.64405845 | O62: -3.08420845 | P62: 92 | Q62: -10.18181818 | R62: 0 | S62: 0 | T62: 13.96319244 | U62: -5.283283469 | V62: 11.4 | W62: -2.6 | X62: 64.72881 | Y62: -3.60948 | Z62: 18.96953 | AA62: 0.8884 | AB62: 37.24601 | AC62: -3.46417 | AD62: 32.28066977 | AE62: -0.43291868
A63: Retten i Glostrup | H63: 0.1969059645 | I63: =#REF!-H63 ->  | J63: 204 | K63: -66 | L63: 771.7123746 | M63: -76.33590399 | N63: 86.84454431 | O63: -10.88945431 | P63: 31.86813187 | Q63: 6.160037146 | R63: 0 | S63: 100 | T63: 10.93379043 | U63: 2.120971256 | V63: 11.7 | W63: -7.4 | X63: 130.88573 | Y63: -8.55438 | Z63: 35.62068 | AA63: -0.37325 | AB63: 77.10199 | AC63: -7.00841 | AD63: 61.81072972 | AE63: -2.74654573
A64: Retten på Frederiksberg | H64: 0.174762062 | I64: =#REF!-H64 ->  | J64: 165 | K64: 26 | L64: 581.0327869 | M64: 31.16721311 | N64: 111.6069617 | O64: -4.2601617 | P64: 13.79310345 | Q64: 16.97612732 | R64: 0 | S64: 33.33333333 | T64: 13.6 | U64: -0.543129199 | V64: 6.9 | W64: 1 | X64: 85.6221 | Y64: 0.33583 | Z64: 23.5809 | AA64: 1.96008 | AB64: 50.499 | AC64: -2.0546 | AD64: 41.59169201 | AE64: 0.53045441
A65: Københavns Byret | H65: 0.2193251818 | I65: =#REF!-H65 ->  | J65: 149 | K65: -21 | L65: 545 | M65: -8.11038961 | N65: 119.5509634 | O65: -10.4289634 | P65: 31.50684932 | Q65: 11.35029354 | R65: 12.5 | S65: 7.5 | T65: 9.68431915 | U65: -1.167795052 | V65: 7 | W65: -2.7 | X65: 193.76867 | Y65: 1.53076 | Z65: 57.94189 | AA65: 1.50129 | AB65: 116.4215 | AC65: -0.482 | AD65: 102.5840725 | AE65: 2.10816738
A66: Retten på Bornholm | H66: 0.3437150824 | I66: =#REF!-H66 ->  | J66: 37 | K66: 1 | L66: 359.8181818 | M66: 8.181818182 | N66: 39.08944028 | O66: -11.27707028 | P66: 100 | Q66: -12.5 | R66: 999 | T66: 6.887992143 | U66: 0.4863376859 | V66: 6.4 | W66: 6.9 | X66: 15.32718 | Y66: 0.34171 | Z66: 3.68583 | AA66: 0.21506 | AB66: 8.36564 | AC66: 0.24405 | AD66: 7.34 | AE66: 0.16555179
B67: 0 | C67: 0 | D67: 0 | E67: 0 | F67: 0 | G67: 0 | H67: 0 | I67: 0 | J67: 0 | K67: 0 | L67: 0 | M67: 0 | N67: 0 | O67: 0 | P67: 0 | Q67: 0 | R67: 0 | S67: 0 | T67: 0 | U67: 0 | V67: 0 | W67: 0 | X67: 0 | Y67: 0 | Z67: 0 | AA67: 0 | AB67: 0 | AC67: 0 | AD67: 0 | AE67: 0
